Department Family,Entity,Date,Expense Type,Expense Area,Supplier,Transaction Number,Amount,Description,Expenditure Type
HM Land Registry,HM Land Registry,03/03/2021,Employment Agency Staff Costs,Finance,Alexander Mann Solutions Limited,6007387,3040.95,Employment Agency Staff Costs,Programme
HM Land Registry,HM Land Registry,03/03/2021,Employment Agency Staff Costs,Finance,Alexander Mann Solutions Limited,6007387,608.19,Employment Agency Staff Costs,Programme
HM Land Registry,HM Land Registry,18/03/2021,Employment Agency Staff Costs,Transformation Change Activities,Alexander Mann Solutions Limited,6007563,2874.32,Employment Agency Staff Costs,Programme
HM Land Registry,HM Land Registry,18/03/2021,Employment Agency Staff Costs,Transformation Change Activities,Alexander Mann Solutions Limited,6007563,574.86,Employment Agency Staff Costs,Programme
HM Land Registry,HM Land Registry,10/03/2021,Employment Agency Staff Costs,DDaT Change Activities,Alexander Mann Solutions Limited,6007469,2520.24,Employment Agency Staff Costs,Programme
HM Land Registry,HM Land Registry,10/03/2021,Employment Agency Staff Costs,DDaT Change Activities,Alexander Mann Solutions Limited,6007469,504.05,Employment Agency Staff Costs,Programme
HM Land Registry,HM Land Registry,18/03/2021,Employment Agency Staff Costs,Transformation Change Activities,Alexander Mann Solutions Limited,6007563,2874.32,Employment Agency Staff Costs,Programme
HM Land Registry,HM Land Registry,18/03/2021,Employment Agency Staff Costs,Transformation Change Activities,Alexander Mann Solutions Limited,6007563,574.86,Employment Agency Staff Costs,Programme
HM Land Registry,HM Land Registry,18/03/2021,Employment Agency Staff Costs,Transformation Change Activities,Alexander Mann Solutions Limited,6007563,3592.9,Employment Agency Staff Costs,Programme
HM Land Registry,HM Land Registry,18/03/2021,Employment Agency Staff Costs,Transformation Change Activities,Alexander Mann Solutions Limited,6007563,718.58,Employment Agency Staff Costs,Programme
HM Land Registry,HM Land Registry,29/03/2021,Employment Agency Staff Costs,Finance,Alexander Mann Solutions Limited,6007659,6081.9,Employment Agency Staff Costs,Programme
HM Land Registry,HM Land Registry,29/03/2021,Employment Agency Staff Costs,Finance,Alexander Mann Solutions Limited,6007659,1216.38,Employment Agency Staff Costs,Programme
HM Land Registry,HM Land Registry,03/03/2021,Employment Agency Staff Costs,DDaT Change Activities,Alexander Mann Solutions Limited,6007387,2206.23,Employment Agency Staff Costs,Programme
HM Land Registry,HM Land Registry,03/03/2021,Employment Agency Staff Costs,DDaT Change Activities,Alexander Mann Solutions Limited,6007387,441.25,Employment Agency Staff Costs,Programme
HM Land Registry,HM Land Registry,03/03/2021,Employment Agency Staff Costs,Finance & Business Services Change Activities,Alexander Mann Solutions Limited,6007387,3040.95,Employment Agency Staff Costs,Programme
HM Land Registry,HM Land Registry,03/03/2021,Employment Agency Staff Costs,Finance & Business Services Change Activities,Alexander Mann Solutions Limited,6007387,608.19,Employment Agency Staff Costs,Programme
HM Land Registry,HM Land Registry,03/03/2021,Employment Agency Staff Costs,Customer Insight & Experience,Alexander Mann Solutions Limited,6007387,4106.2,Employment Agency Staff Costs,Programme
HM Land Registry,HM Land Registry,03/03/2021,Employment Agency Staff Costs,Finance & Business Services Change Activities,Alexander Mann Solutions Limited,6007387,2698.55,Employment Agency Staff Costs,Programme
HM Land Registry,HM Land Registry,03/03/2021,Employment Agency Staff Costs,Finance & Business Services Change Activities,Alexander Mann Solutions Limited,6007387,539.71,Employment Agency Staff Costs,Programme
HM Land Registry,HM Land Registry,08/03/2021,Employment Agency Staff Costs,Transformation Change Activities,Alexander Mann Solutions Limited,6007438,557.25,Employment Agency Staff Costs,Programme
HM Land Registry,HM Land Registry,08/03/2021,Employment Agency Staff Costs,Transformation Change Activities,Alexander Mann Solutions Limited,6007438,111.45,Employment Agency Staff Costs,Programme
HM Land Registry,HM Land Registry,08/03/2021,Employment Agency Staff Costs,Transformation Change Activities,Alexander Mann Solutions Limited,6007438,557.25,Employment Agency Staff Costs,Programme
HM Land Registry,HM Land Registry,08/03/2021,Employment Agency Staff Costs,Transformation Change Activities,Alexander Mann Solutions Limited,6007438,111.45,Employment Agency Staff Costs,Programme
HM Land Registry,HM Land Registry,08/03/2021,Employment Agency Staff Costs,Transformation Change Activities,Alexander Mann Solutions Limited,6007438,445.8,Employment Agency Staff Costs,Programme
HM Land Registry,HM Land Registry,08/03/2021,Employment Agency Staff Costs,Transformation Change Activities,Alexander Mann Solutions Limited,6007438,89.16,Employment Agency Staff Costs,Programme
HM Land Registry,HM Land Registry,08/03/2021,Employment Agency Staff Costs,Transformation Change Activities,Alexander Mann Solutions Limited,6007438,557.25,Employment Agency Staff Costs,Programme
HM Land Registry,HM Land Registry,08/03/2021,Employment Agency Staff Costs,Transformation Change Activities,Alexander Mann Solutions Limited,6007438,111.45,Employment Agency Staff Costs,Programme
HM Land Registry,HM Land Registry,08/03/2021,Employment Agency Staff Costs,Transformation Change Activities,Alexander Mann Solutions Limited,6007438,445.8,Employment Agency Staff Costs,Programme
HM Land Registry,HM Land Registry,08/03/2021,Employment Agency Staff Costs,Transformation Change Activities,Alexander Mann Solutions Limited,6007438,89.16,Employment Agency Staff Costs,Programme
HM Land Registry,HM Land Registry,08/03/2021,Employment Agency Staff Costs,Transformation Change Activities,Alexander Mann Solutions Limited,6007438,557.25,Employment Agency Staff Costs,Programme
HM Land Registry,HM Land Registry,08/03/2021,Employment Agency Staff Costs,Transformation Change Activities,Alexander Mann Solutions Limited,6007438,111.45,Employment Agency Staff Costs,Programme
HM Land Registry,HM Land Registry,08/03/2021,Employment Agency Staff Costs,Transformation Change Activities,Alexander Mann Solutions Limited,6007438,557.25,Employment Agency Staff Costs,Programme
HM Land Registry,HM Land Registry,08/03/2021,Employment Agency Staff Costs,Transformation Change Activities,Alexander Mann Solutions Limited,6007438,111.45,Employment Agency Staff Costs,Programme
HM Land Registry,HM Land Registry,03/03/2021,Employment Agency Staff Costs,Operations Change Activities,Alexander Mann Solutions Limited,6007387,2669.05,Employment Agency Staff Costs,Programme
HM Land Registry,HM Land Registry,03/03/2021,Employment Agency Staff Costs,Operations Change Activities,Alexander Mann Solutions Limited,6007387,533.81,Employment Agency Staff Costs,Programme
HM Land Registry,HM Land Registry,03/03/2021,Employment Agency Staff Costs,DDaT Change Activities,Alexander Mann Solutions Limited,6007387,2992.75,Employment Agency Staff Costs,Programme
HM Land Registry,HM Land Registry,03/03/2021,Employment Agency Staff Costs,DDaT Change Activities,Alexander Mann Solutions Limited,6007387,598.55,Employment Agency Staff Costs,Programme
HM Land Registry,HM Land Registry,03/03/2021,Employment Agency Staff Costs,Office of DDaT,Alexander Mann Solutions Limited,6007387,1567.83,Employment Agency Staff Costs,Programme
HM Land Registry,HM Land Registry,03/03/2021,Employment Agency Staff Costs,Office of DDaT,Alexander Mann Solutions Limited,6007387,313.57,Employment Agency Staff Costs,Programme
HM Land Registry,HM Land Registry,08/03/2021,Employment Agency Staff Costs,Finance,Alexander Mann Solutions Limited,6007438,3040.95,Employment Agency Staff Costs,Programme
HM Land Registry,HM Land Registry,08/03/2021,Employment Agency Staff Costs,Finance,Alexander Mann Solutions Limited,6007438,608.19,Employment Agency Staff Costs,Programme
HM Land Registry,HM Land Registry,08/03/2021,Employment Agency Staff Costs,Transformation Change Activities,Alexander Mann Solutions Limited,6007438,557.25,Employment Agency Staff Costs,Programme
HM Land Registry,HM Land Registry,08/03/2021,Employment Agency Staff Costs,Transformation Change Activities,Alexander Mann Solutions Limited,6007438,111.45,Employment Agency Staff Costs,Programme
HM Land Registry,HM Land Registry,08/03/2021,Employment Agency Staff Costs,Transformation Change Activities,Alexander Mann Solutions Limited,6007438,111.45,Employment Agency Staff Costs,Programme
HM Land Registry,HM Land Registry,08/03/2021,Employment Agency Staff Costs,Transformation Change Activities,Alexander Mann Solutions Limited,6007438,22.29,Employment Agency Staff Costs,Programme
HM Land Registry,HM Land Registry,03/03/2021,Employment Agency Staff Costs,DDaT Change Activities,Alexander Mann Solutions Limited,6007387,2694.7,Employment Agency Staff Costs,Programme
HM Land Registry,HM Land Registry,03/03/2021,Employment Agency Staff Costs,DDaT Change Activities,Alexander Mann Solutions Limited,6007387,538.94,Employment Agency Staff Costs,Programme
HM Land Registry,HM Land Registry,03/03/2021,Employment Agency Staff Costs,Operations Change Activities,Alexander Mann Solutions Limited,6007387,2887.75,Employment Agency Staff Costs,Programme
HM Land Registry,HM Land Registry,03/03/2021,Employment Agency Staff Costs,Operations Change Activities,Alexander Mann Solutions Limited,6007387,577.55,Employment Agency Staff Costs,Programme
HM Land Registry,HM Land Registry,03/03/2021,Employment Agency Staff Costs,Operations Change Activities,Alexander Mann Solutions Limited,6007387,2078.75,Employment Agency Staff Costs,Programme
HM Land Registry,HM Land Registry,03/03/2021,Employment Agency Staff Costs,Operations Change Activities,Alexander Mann Solutions Limited,6007387,415.75,Employment Agency Staff Costs,Programme
HM Land Registry,HM Land Registry,03/03/2021,Employment Agency Staff Costs,DDaT Change Activities,Alexander Mann Solutions Limited,6007387,2100.2,Employment Agency Staff Costs,Programme
HM Land Registry,HM Land Registry,03/03/2021,Employment Agency Staff Costs,DDaT Change Activities,Alexander Mann Solutions Limited,6007387,420.04,Employment Agency Staff Costs,Programme
HM Land Registry,HM Land Registry,03/03/2021,Employment Agency Staff Costs,Operations Change Activities,Alexander Mann Solutions Limited,6007387,2100.2,Employment Agency Staff Costs,Programme
HM Land Registry,HM Land Registry,03/03/2021,Employment Agency Staff Costs,Operations Change Activities,Alexander Mann Solutions Limited,6007387,420.04,Employment Agency Staff Costs,Programme
HM Land Registry,HM Land Registry,03/03/2021,Employment Agency Staff Costs,DDaT Change Activities,Alexander Mann Solutions Limited,6007387,2258.44,Employment Agency Staff Costs,Programme
HM Land Registry,HM Land Registry,03/03/2021,Employment Agency Staff Costs,DDaT Change Activities,Alexander Mann Solutions Limited,6007387,451.69,Employment Agency Staff Costs,Programme
HM Land Registry,HM Land Registry,10/03/2021,Employment Agency Staff Costs,Transformation Change Activities,Alexander Mann Solutions Limited,6007469,7185.8,Employment Agency Staff Costs,Programme
HM Land Registry,HM Land Registry,10/03/2021,Employment Agency Staff Costs,Transformation Change Activities,Alexander Mann Solutions Limited,6007469,1437.16,Employment Agency Staff Costs,Programme
HM Land Registry,HM Land Registry,08/03/2021,Employment Agency Staff Costs,Transformation Change Activities,Alexander Mann Solutions Limited,6007438,557.25,Employment Agency Staff Costs,Programme
HM Land Registry,HM Land Registry,08/03/2021,Employment Agency Staff Costs,Transformation Change Activities,Alexander Mann Solutions Limited,6007438,111.45,Employment Agency Staff Costs,Programme
HM Land Registry,HM Land Registry,08/03/2021,Employment Agency Staff Costs,Transformation Change Activities,Alexander Mann Solutions Limited,6007438,490.38,Employment Agency Staff Costs,Programme
HM Land Registry,HM Land Registry,08/03/2021,Employment Agency Staff Costs,Transformation Change Activities,Alexander Mann Solutions Limited,6007438,98.08,Employment Agency Staff Costs,Programme
HM Land Registry,HM Land Registry,03/03/2021,Employment Agency Staff Costs,Finance & Business Services Change Activities,Alexander Mann Solutions Limited,6007387,1942.7,Employment Agency Staff Costs,Programme
HM Land Registry,HM Land Registry,03/03/2021,Employment Agency Staff Costs,Finance & Business Services Change Activities,Alexander Mann Solutions Limited,6007387,388.54,Employment Agency Staff Costs,Programme
HM Land Registry,HM Land Registry,03/03/2021,Employment Agency Staff Costs,Office of DDaT,Alexander Mann Solutions Limited,6007387,549.82,Employment Agency Staff Costs,Programme
HM Land Registry,HM Land Registry,03/03/2021,Employment Agency Staff Costs,Office of DDaT,Alexander Mann Solutions Limited,6007387,109.96,Employment Agency Staff Costs,Programme
HM Land Registry,HM Land Registry,03/03/2021,Employment Agency Staff Costs,DDaT Change Activities,Alexander Mann Solutions Limited,6007387,3150.3,Employment Agency Staff Costs,Programme
HM Land Registry,HM Land Registry,03/03/2021,Employment Agency Staff Costs,DDaT Change Activities,Alexander Mann Solutions Limited,6007387,630.06,Employment Agency Staff Costs,Programme
HM Land Registry,HM Land Registry,03/03/2021,Employment Agency Staff Costs,Office of DDaT,Alexander Mann Solutions Limited,6007387,553.54,Employment Agency Staff Costs,Programme
HM Land Registry,HM Land Registry,03/03/2021,Employment Agency Staff Costs,Office of DDaT,Alexander Mann Solutions Limited,6007387,110.71,Employment Agency Staff Costs,Programme
HM Land Registry,HM Land Registry,08/03/2021,Employment Agency Staff Costs,DDaT Change Activities,Alexander Mann Solutions Limited,6007438,2304.55,Employment Agency Staff Costs,Programme
HM Land Registry,HM Land Registry,08/03/2021,Employment Agency Staff Costs,DDaT Change Activities,Alexander Mann Solutions Limited,6007438,460.91,Employment Agency Staff Costs,Programme
HM Land Registry,HM Land Registry,08/03/2021,Employment Agency Staff Costs,DDaT Change Activities,Alexander Mann Solutions Limited,6007438,3677.05,Employment Agency Staff Costs,Programme
HM Land Registry,HM Land Registry,08/03/2021,Employment Agency Staff Costs,DDaT Change Activities,Alexander Mann Solutions Limited,6007438,735.41,Employment Agency Staff Costs,Programme
HM Land Registry,HM Land Registry,08/03/2021,Employment Agency Staff Costs,Finance & Business Services Change Activities,Alexander Mann Solutions Limited,6007438,3649.14,Employment Agency Staff Costs,Programme
HM Land Registry,HM Land Registry,08/03/2021,Employment Agency Staff Costs,Finance & Business Services Change Activities,Alexander Mann Solutions Limited,6007438,729.83,Employment Agency Staff Costs,Programme
HM Land Registry,HM Land Registry,10/03/2021,Employment Agency Staff Costs,Customer Insight & Experience,Alexander Mann Solutions Limited,6007469,4106.2,Employment Agency Staff Costs,Programme
HM Land Registry,HM Land Registry,08/03/2021,Employment Agency Staff Costs,Finance & Business Services Change Activities,Alexander Mann Solutions Limited,6007438,2698.55,Employment Agency Staff Costs,Programme
HM Land Registry,HM Land Registry,08/03/2021,Employment Agency Staff Costs,Finance & Business Services Change Activities,Alexander Mann Solutions Limited,6007438,539.71,Employment Agency Staff Costs,Programme
HM Land Registry,HM Land Registry,10/03/2021,Employment Agency Staff Costs,Transformation Change Activities,Alexander Mann Solutions Limited,6007469,557.25,Employment Agency Staff Costs,Programme
HM Land Registry,HM Land Registry,10/03/2021,Employment Agency Staff Costs,Transformation Change Activities,Alexander Mann Solutions Limited,6007469,111.45,Employment Agency Staff Costs,Programme
HM Land Registry,HM Land Registry,10/03/2021,Employment Agency Staff Costs,Transformation Change Activities,Alexander Mann Solutions Limited,6007469,237.76,Employment Agency Staff Costs,Programme
HM Land Registry,HM Land Registry,10/03/2021,Employment Agency Staff Costs,Transformation Change Activities,Alexander Mann Solutions Limited,6007469,47.55,Employment Agency Staff Costs,Programme
HM Land Registry,HM Land Registry,10/03/2021,Employment Agency Staff Costs,Transformation Change Activities,Alexander Mann Solutions Limited,6007469,445.8,Employment Agency Staff Costs,Programme
HM Land Registry,HM Land Registry,10/03/2021,Employment Agency Staff Costs,Transformation Change Activities,Alexander Mann Solutions Limited,6007469,89.16,Employment Agency Staff Costs,Programme
HM Land Registry,HM Land Registry,10/03/2021,Employment Agency Staff Costs,Transformation Change Activities,Alexander Mann Solutions Limited,6007469,557.25,Employment Agency Staff Costs,Programme
HM Land Registry,HM Land Registry,10/03/2021,Employment Agency Staff Costs,Transformation Change Activities,Alexander Mann Solutions Limited,6007469,111.45,Employment Agency Staff Costs,Programme
HM Land Registry,HM Land Registry,10/03/2021,Employment Agency Staff Costs,Transformation Change Activities,Alexander Mann Solutions Limited,6007469,557.25,Employment Agency Staff Costs,Programme
HM Land Registry,HM Land Registry,10/03/2021,Employment Agency Staff Costs,Transformation Change Activities,Alexander Mann Solutions Limited,6007469,111.45,Employment Agency Staff Costs,Programme
HM Land Registry,HM Land Registry,10/03/2021,Employment Agency Staff Costs,Transformation Change Activities,Alexander Mann Solutions Limited,6007469,445.8,Employment Agency Staff Costs,Programme
HM Land Registry,HM Land Registry,10/03/2021,Employment Agency Staff Costs,Transformation Change Activities,Alexander Mann Solutions Limited,6007469,89.16,Employment Agency Staff Costs,Programme
HM Land Registry,HM Land Registry,08/03/2021,Employment Agency Staff Costs,Operations Change Activities,Alexander Mann Solutions Limited,6007438,2669.05,Employment Agency Staff Costs,Programme
HM Land Registry,HM Land Registry,08/03/2021,Employment Agency Staff Costs,Operations Change Activities,Alexander Mann Solutions Limited,6007438,533.81,Employment Agency Staff Costs,Programme
HM Land Registry,HM Land Registry,08/03/2021,Employment Agency Staff Costs,DDaT Change Activities,Alexander Mann Solutions Limited,6007438,2992.75,Employment Agency Staff Costs,Programme
HM Land Registry,HM Land Registry,08/03/2021,Employment Agency Staff Costs,DDaT Change Activities,Alexander Mann Solutions Limited,6007438,598.55,Employment Agency Staff Costs,Programme
HM Land Registry,HM Land Registry,08/03/2021,Employment Agency Staff Costs,Office of DDaT,Alexander Mann Solutions Limited,6007438,1567.83,Employment Agency Staff Costs,Programme
HM Land Registry,HM Land Registry,08/03/2021,Employment Agency Staff Costs,Office of DDaT,Alexander Mann Solutions Limited,6007438,313.57,Employment Agency Staff Costs,Programme
HM Land Registry,HM Land Registry,10/03/2021,Employment Agency Staff Costs,Finance,Alexander Mann Solutions Limited,6007469,3040.95,Employment Agency Staff Costs,Programme
HM Land Registry,HM Land Registry,10/03/2021,Employment Agency Staff Costs,Finance,Alexander Mann Solutions Limited,6007469,608.19,Employment Agency Staff Costs,Programme
HM Land Registry,HM Land Registry,10/03/2021,Employment Agency Staff Costs,Transformation Change Activities,Alexander Mann Solutions Limited,6007469,445.8,Employment Agency Staff Costs,Programme
HM Land Registry,HM Land Registry,10/03/2021,Employment Agency Staff Costs,Transformation Change Activities,Alexander Mann Solutions Limited,6007469,89.16,Employment Agency Staff Costs,Programme
HM Land Registry,HM Land Registry,10/03/2021,Employment Agency Staff Costs,Transformation Change Activities,Alexander Mann Solutions Limited,6007469,557.25,Employment Agency Staff Costs,Programme
HM Land Registry,HM Land Registry,10/03/2021,Employment Agency Staff Costs,Transformation Change Activities,Alexander Mann Solutions Limited,6007469,111.45,Employment Agency Staff Costs,Programme
HM Land Registry,HM Land Registry,10/03/2021,Employment Agency Staff Costs,Transformation Change Activities,Alexander Mann Solutions Limited,6007469,3592.9,Employment Agency Staff Costs,Programme
HM Land Registry,HM Land Registry,10/03/2021,Employment Agency Staff Costs,Transformation Change Activities,Alexander Mann Solutions Limited,6007469,718.58,Employment Agency Staff Costs,Programme
HM Land Registry,HM Land Registry,08/03/2021,Employment Agency Staff Costs,DDaT Change Activities,Alexander Mann Solutions Limited,6007438,2694.7,Employment Agency Staff Costs,Programme
HM Land Registry,HM Land Registry,08/03/2021,Employment Agency Staff Costs,DDaT Change Activities,Alexander Mann Solutions Limited,6007438,538.94,Employment Agency Staff Costs,Programme
HM Land Registry,HM Land Registry,08/03/2021,Employment Agency Staff Costs,Operations Change Activities,Alexander Mann Solutions Limited,6007438,2887.75,Employment Agency Staff Costs,Programme
HM Land Registry,HM Land Registry,08/03/2021,Employment Agency Staff Costs,Operations Change Activities,Alexander Mann Solutions Limited,6007438,577.55,Employment Agency Staff Costs,Programme
HM Land Registry,HM Land Registry,08/03/2021,Employment Agency Staff Costs,Operations Change Activities,Alexander Mann Solutions Limited,6007438,2078.75,Employment Agency Staff Costs,Programme
HM Land Registry,HM Land Registry,08/03/2021,Employment Agency Staff Costs,Operations Change Activities,Alexander Mann Solutions Limited,6007438,415.75,Employment Agency Staff Costs,Programme
HM Land Registry,HM Land Registry,08/03/2021,Employment Agency Staff Costs,Finance & Business Services Change Activities,Alexander Mann Solutions Limited,6007438,3150.3,Employment Agency Staff Costs,Programme
HM Land Registry,HM Land Registry,08/03/2021,Employment Agency Staff Costs,Finance & Business Services Change Activities,Alexander Mann Solutions Limited,6007438,630.06,Employment Agency Staff Costs,Programme
HM Land Registry,HM Land Registry,08/03/2021,Employment Agency Staff Costs,DDaT Change Activities,Alexander Mann Solutions Limited,6007438,2100.2,Employment Agency Staff Costs,Programme
HM Land Registry,HM Land Registry,08/03/2021,Employment Agency Staff Costs,DDaT Change Activities,Alexander Mann Solutions Limited,6007438,420.04,Employment Agency Staff Costs,Programme
HM Land Registry,HM Land Registry,08/03/2021,Employment Agency Staff Costs,Operations Change Activities,Alexander Mann Solutions Limited,6007438,2100.2,Employment Agency Staff Costs,Programme
HM Land Registry,HM Land Registry,08/03/2021,Employment Agency Staff Costs,Operations Change Activities,Alexander Mann Solutions Limited,6007438,420.04,Employment Agency Staff Costs,Programme
HM Land Registry,HM Land Registry,08/03/2021,Employment Agency Staff Costs,DDaT Change Activities,Alexander Mann Solutions Limited,6007438,2258.44,Employment Agency Staff Costs,Programme
HM Land Registry,HM Land Registry,08/03/2021,Employment Agency Staff Costs,DDaT Change Activities,Alexander Mann Solutions Limited,6007438,451.69,Employment Agency Staff Costs,Programme
HM Land Registry,HM Land Registry,10/03/2021,Employment Agency Staff Costs,Transformation Change Activities,Alexander Mann Solutions Limited,6007469,2874.32,Employment Agency Staff Costs,Programme
HM Land Registry,HM Land Registry,10/03/2021,Employment Agency Staff Costs,Transformation Change Activities,Alexander Mann Solutions Limited,6007469,574.86,Employment Agency Staff Costs,Programme
HM Land Registry,HM Land Registry,10/03/2021,Employment Agency Staff Costs,Transformation Change Activities,Alexander Mann Solutions Limited,6007469,557.25,Employment Agency Staff Costs,Programme
HM Land Registry,HM Land Registry,10/03/2021,Employment Agency Staff Costs,Transformation Change Activities,Alexander Mann Solutions Limited,6007469,111.45,Employment Agency Staff Costs,Programme
HM Land Registry,HM Land Registry,10/03/2021,Employment Agency Staff Costs,Transformation Change Activities,Alexander Mann Solutions Limited,6007469,557.25,Employment Agency Staff Costs,Programme
HM Land Registry,HM Land Registry,10/03/2021,Employment Agency Staff Costs,Transformation Change Activities,Alexander Mann Solutions Limited,6007469,111.45,Employment Agency Staff Costs,Programme
HM Land Registry,HM Land Registry,08/03/2021,Employment Agency Staff Costs,DDaT Change Activities,Alexander Mann Solutions Limited,6007438,1890.18,Employment Agency Staff Costs,Programme
HM Land Registry,HM Land Registry,08/03/2021,Employment Agency Staff Costs,DDaT Change Activities,Alexander Mann Solutions Limited,6007438,378.04,Employment Agency Staff Costs,Programme
HM Land Registry,HM Land Registry,08/03/2021,Employment Agency Staff Costs,Finance & Business Services Change Activities,Alexander Mann Solutions Limited,6007438,1942.7,Employment Agency Staff Costs,Programme
HM Land Registry,HM Land Registry,08/03/2021,Employment Agency Staff Costs,Finance & Business Services Change Activities,Alexander Mann Solutions Limited,6007438,388.54,Employment Agency Staff Costs,Programme
HM Land Registry,HM Land Registry,10/03/2021,Employment Agency Staff Costs,Office of DDaT,Alexander Mann Solutions Limited,6007469,442.09,Employment Agency Staff Costs,Programme
HM Land Registry,HM Land Registry,10/03/2021,Employment Agency Staff Costs,Office of DDaT,Alexander Mann Solutions Limited,6007469,88.42,Employment Agency Staff Costs,Programme
HM Land Registry,HM Land Registry,08/03/2021,Employment Agency Staff Costs,DDaT Change Activities,Alexander Mann Solutions Limited,6007438,3150.3,Employment Agency Staff Costs,Programme
HM Land Registry,HM Land Registry,08/03/2021,Employment Agency Staff Costs,DDaT Change Activities,Alexander Mann Solutions Limited,6007438,630.06,Employment Agency Staff Costs,Programme
HM Land Registry,HM Land Registry,10/03/2021,Employment Agency Staff Costs,Office of DDaT,Alexander Mann Solutions Limited,6007469,553.54,Employment Agency Staff Costs,Programme
HM Land Registry,HM Land Registry,10/03/2021,Employment Agency Staff Costs,Office of DDaT,Alexander Mann Solutions Limited,6007469,110.71,Employment Agency Staff Costs,Programme
HM Land Registry,HM Land Registry,08/03/2021,Employment Agency Staff Costs,Risk and Assurance,Alexander Mann Solutions Limited,6007438,3412.8,Employment Agency Staff Costs,Programme
HM Land Registry,HM Land Registry,08/03/2021,Employment Agency Staff Costs,Risk and Assurance,Alexander Mann Solutions Limited,6007438,682.56,Employment Agency Staff Costs,Programme
HM Land Registry,HM Land Registry,08/03/2021,Employment Agency Staff Costs,Office of DDaT,Alexander Mann Solutions Limited,6007438,549.82,Employment Agency Staff Costs,Programme
HM Land Registry,HM Land Registry,08/03/2021,Employment Agency Staff Costs,Office of DDaT,Alexander Mann Solutions Limited,6007438,109.96,Employment Agency Staff Costs,Programme
HM Land Registry,HM Land Registry,16/03/2021,Employment Agency Staff Costs,DDaT Change Activities,Alexander Mann Solutions Limited,6007540,2304.55,Employment Agency Staff Costs,Programme
HM Land Registry,HM Land Registry,16/03/2021,Employment Agency Staff Costs,DDaT Change Activities,Alexander Mann Solutions Limited,6007540,460.91,Employment Agency Staff Costs,Programme
HM Land Registry,HM Land Registry,16/03/2021,Employment Agency Staff Costs,DDaT Change Activities,Alexander Mann Solutions Limited,6007540,3677.05,Employment Agency Staff Costs,Programme
HM Land Registry,HM Land Registry,16/03/2021,Employment Agency Staff Costs,DDaT Change Activities,Alexander Mann Solutions Limited,6007540,735.41,Employment Agency Staff Costs,Programme
HM Land Registry,HM Land Registry,16/03/2021,Employment Agency Staff Costs,Operations Change Activities,Alexander Mann Solutions Limited,6007540,2371.32,Employment Agency Staff Costs,Programme
HM Land Registry,HM Land Registry,16/03/2021,Employment Agency Staff Costs,Operations Change Activities,Alexander Mann Solutions Limited,6007540,2371.32,Employment Agency Staff Costs,Programme
HM Land Registry,HM Land Registry,16/03/2021,Employment Agency Staff Costs,Operations Change Activities,Alexander Mann Solutions Limited,6007540,474.27,Employment Agency Staff Costs,Programme
HM Land Registry,HM Land Registry,16/03/2021,Employment Agency Staff Costs,Operations Change Activities,Alexander Mann Solutions Limited,6007540,474.26,Employment Agency Staff Costs,Programme
HM Land Registry,HM Land Registry,16/03/2021,Employment Agency Staff Costs,Finance & Business Services Change Activities,Alexander Mann Solutions Limited,6007540,3040.95,Employment Agency Staff Costs,Programme
HM Land Registry,HM Land Registry,16/03/2021,Employment Agency Staff Costs,Finance & Business Services Change Activities,Alexander Mann Solutions Limited,6007540,608.19,Employment Agency Staff Costs,Programme
HM Land Registry,HM Land Registry,16/03/2021,Employment Agency Staff Costs,Customer Insight & Experience,Alexander Mann Solutions Limited,6007540,2874.34,Employment Agency Staff Costs,Programme
HM Land Registry,HM Land Registry,16/03/2021,Employment Agency Staff Costs,Finance & Business Services Change Activities,Alexander Mann Solutions Limited,6007540,2698.55,Employment Agency Staff Costs,Programme
HM Land Registry,HM Land Registry,16/03/2021,Employment Agency Staff Costs,Finance & Business Services Change Activities,Alexander Mann Solutions Limited,6007540,539.71,Employment Agency Staff Costs,Programme
HM Land Registry,HM Land Registry,16/03/2021,Employment Agency Staff Costs,Operations Change Activities,Alexander Mann Solutions Limited,6007540,2669.05,Employment Agency Staff Costs,Programme
HM Land Registry,HM Land Registry,16/03/2021,Employment Agency Staff Costs,Operations Change Activities,Alexander Mann Solutions Limited,6007540,533.81,Employment Agency Staff Costs,Programme
HM Land Registry,HM Land Registry,16/03/2021,Employment Agency Staff Costs,DDaT Change Activities,Alexander Mann Solutions Limited,6007540,2992.75,Employment Agency Staff Costs,Programme
HM Land Registry,HM Land Registry,16/03/2021,Employment Agency Staff Costs,DDaT Change Activities,Alexander Mann Solutions Limited,6007540,598.55,Employment Agency Staff Costs,Programme
HM Land Registry,HM Land Registry,16/03/2021,Employment Agency Staff Costs,Office of DDaT,Alexander Mann Solutions Limited,6007540,1567.83,Employment Agency Staff Costs,Programme
HM Land Registry,HM Land Registry,16/03/2021,Employment Agency Staff Costs,Office of DDaT,Alexander Mann Solutions Limited,6007540,313.57,Employment Agency Staff Costs,Programme
HM Land Registry,HM Land Registry,18/03/2021,Employment Agency Staff Costs,Finance,Alexander Mann Solutions Limited,6007563,3040.95,Employment Agency Staff Costs,Programme
HM Land Registry,HM Land Registry,18/03/2021,Employment Agency Staff Costs,Finance,Alexander Mann Solutions Limited,6007563,608.19,Employment Agency Staff Costs,Programme
HM Land Registry,HM Land Registry,16/03/2021,Employment Agency Staff Costs,Transformation Change Activities,Alexander Mann Solutions Limited,6007540,3592.9,Employment Agency Staff Costs,Programme
HM Land Registry,HM Land Registry,16/03/2021,Employment Agency Staff Costs,Transformation Change Activities,Alexander Mann Solutions Limited,6007540,718.58,Employment Agency Staff Costs,Programme
HM Land Registry,HM Land Registry,16/03/2021,Employment Agency Staff Costs,DDaT Change Activities,Alexander Mann Solutions Limited,6007540,2694.7,Employment Agency Staff Costs,Programme
HM Land Registry,HM Land Registry,16/03/2021,Employment Agency Staff Costs,DDaT Change Activities,Alexander Mann Solutions Limited,6007540,538.94,Employment Agency Staff Costs,Programme
HM Land Registry,HM Land Registry,16/03/2021,Employment Agency Staff Costs,Operations Change Activities,Alexander Mann Solutions Limited,6007540,2887.75,Employment Agency Staff Costs,Programme
HM Land Registry,HM Land Registry,16/03/2021,Employment Agency Staff Costs,Operations Change Activities,Alexander Mann Solutions Limited,6007540,577.55,Employment Agency Staff Costs,Programme
HM Land Registry,HM Land Registry,16/03/2021,Employment Agency Staff Costs,Operations Change Activities,Alexander Mann Solutions Limited,6007540,2078.75,Employment Agency Staff Costs,Programme
HM Land Registry,HM Land Registry,16/03/2021,Employment Agency Staff Costs,Operations Change Activities,Alexander Mann Solutions Limited,6007540,415.75,Employment Agency Staff Costs,Programme
HM Land Registry,HM Land Registry,18/03/2021,Employment Agency Staff Costs,Finance & Business Services Change Activities,Alexander Mann Solutions Limited,6007563,3675.35,Employment Agency Staff Costs,Programme
HM Land Registry,HM Land Registry,18/03/2021,Employment Agency Staff Costs,Finance & Business Services Change Activities,Alexander Mann Solutions Limited,6007563,735.07,Employment Agency Staff Costs,Programme
HM Land Registry,HM Land Registry,16/03/2021,Employment Agency Staff Costs,Operations Change Activities,Alexander Mann Solutions Limited,6007540,2100.2,Employment Agency Staff Costs,Programme
HM Land Registry,HM Land Registry,16/03/2021,Employment Agency Staff Costs,Operations Change Activities,Alexander Mann Solutions Limited,6007540,420.04,Employment Agency Staff Costs,Programme
HM Land Registry,HM Land Registry,18/03/2021,Employment Agency Staff Costs,Transformation Change Activities,Alexander Mann Solutions Limited,6007563,557.25,Employment Agency Staff Costs,Programme
HM Land Registry,HM Land Registry,18/03/2021,Employment Agency Staff Costs,Transformation Change Activities,Alexander Mann Solutions Limited,6007563,111.45,Employment Agency Staff Costs,Programme
HM Land Registry,HM Land Registry,16/03/2021,Employment Agency Staff Costs,DDaT Change Activities,Alexander Mann Solutions Limited,6007540,2520.24,Employment Agency Staff Costs,Programme
HM Land Registry,HM Land Registry,16/03/2021,Employment Agency Staff Costs,DDaT Change Activities,Alexander Mann Solutions Limited,6007540,504.05,Employment Agency Staff Costs,Programme
HM Land Registry,HM Land Registry,16/03/2021,Employment Agency Staff Costs,Finance & Business Services Change Activities,Alexander Mann Solutions Limited,6007540,1942.7,Employment Agency Staff Costs,Programme
HM Land Registry,HM Land Registry,16/03/2021,Employment Agency Staff Costs,Finance & Business Services Change Activities,Alexander Mann Solutions Limited,6007540,388.54,Employment Agency Staff Costs,Programme
HM Land Registry,HM Land Registry,22/03/2021,Employment Agency Staff Costs,Office of DDaT,Alexander Mann Solutions Limited,6007599,600.51,Employment Agency Staff Costs,Programme
HM Land Registry,HM Land Registry,22/03/2021,Employment Agency Staff Costs,Office of DDaT,Alexander Mann Solutions Limited,6007599,120.1,Employment Agency Staff Costs,Programme
HM Land Registry,HM Land Registry,18/03/2021,Employment Agency Staff Costs,Office of DDaT,Alexander Mann Solutions Limited,6007563,600.51,Employment Agency Staff Costs,Programme
HM Land Registry,HM Land Registry,18/03/2021,Employment Agency Staff Costs,Office of DDaT,Alexander Mann Solutions Limited,6007563,120.1,Employment Agency Staff Costs,Programme
HM Land Registry,HM Land Registry,22/03/2021,Employment Agency Staff Costs,DDaT Change Activities,Alexander Mann Solutions Limited,6007599,3150.3,Employment Agency Staff Costs,Programme
HM Land Registry,HM Land Registry,22/03/2021,Employment Agency Staff Costs,DDaT Change Activities,Alexander Mann Solutions Limited,6007599,630.06,Employment Agency Staff Costs,Programme
HM Land Registry,HM Land Registry,18/03/2021,Employment Agency Staff Costs,Office of DDaT,Alexander Mann Solutions Limited,6007563,243.45,Employment Agency Staff Costs,Programme
HM Land Registry,HM Land Registry,18/03/2021,Employment Agency Staff Costs,Office of DDaT,Alexander Mann Solutions Limited,6007563,48.69,Employment Agency Staff Costs,Programme
HM Land Registry,HM Land Registry,18/03/2021,Employment Agency Staff Costs,Risk and Assurance,Alexander Mann Solutions Limited,6007563,3412.8,Employment Agency Staff Costs,Programme
HM Land Registry,HM Land Registry,18/03/2021,Employment Agency Staff Costs,Risk and Assurance,Alexander Mann Solutions Limited,6007563,682.56,Employment Agency Staff Costs,Programme
HM Land Registry,HM Land Registry,18/03/2021,Employment Agency Staff Costs,Risk and Assurance,Alexander Mann Solutions Limited,6007563,6817.4,Employment Agency Staff Costs,Programme
HM Land Registry,HM Land Registry,18/03/2021,Employment Agency Staff Costs,Risk and Assurance,Alexander Mann Solutions Limited,6007563,1363.48,Employment Agency Staff Costs,Programme
HM Land Registry,HM Land Registry,22/03/2021,Employment Agency Staff Costs,Transformation Change Activities,Alexander Mann Solutions Limited,6007599,23,Employment Agency Staff Costs,Programme
HM Land Registry,HM Land Registry,22/03/2021,Employment Agency Staff Costs,Transformation Change Activities,Alexander Mann Solutions Limited,6007599,4.6,Employment Agency Staff Costs,Programme
HM Land Registry,HM Land Registry,22/03/2021,Employment Agency Staff Costs,Transformation Change Activities,Alexander Mann Solutions Limited,6007599,23,Employment Agency Staff Costs,Programme
HM Land Registry,HM Land Registry,22/03/2021,Employment Agency Staff Costs,Transformation Change Activities,Alexander Mann Solutions Limited,6007599,4.6,Employment Agency Staff Costs,Programme
HM Land Registry,HM Land Registry,22/03/2021,Employment Agency Staff Costs,Transformation Change Activities,Alexander Mann Solutions Limited,6007599,23,Employment Agency Staff Costs,Programme
HM Land Registry,HM Land Registry,22/03/2021,Employment Agency Staff Costs,Transformation Change Activities,Alexander Mann Solutions Limited,6007599,4.6,Employment Agency Staff Costs,Programme
HM Land Registry,HM Land Registry,22/03/2021,Employment Agency Staff Costs,DDaT Change Activities,Alexander Mann Solutions Limited,6007599,460.91,Employment Agency Staff Costs,Programme
HM Land Registry,HM Land Registry,22/03/2021,Employment Agency Staff Costs,DDaT Change Activities,Alexander Mann Solutions Limited,6007599,2304.55,Employment Agency Staff Costs,Programme
HM Land Registry,HM Land Registry,22/03/2021,Employment Agency Staff Costs,DDaT Change Activities,Alexander Mann Solutions Limited,6007599,3677.05,Employment Agency Staff Costs,Programme
HM Land Registry,HM Land Registry,22/03/2021,Employment Agency Staff Costs,DDaT Change Activities,Alexander Mann Solutions Limited,6007599,735.41,Employment Agency Staff Costs,Programme
HM Land Registry,HM Land Registry,29/03/2021,Employment Agency Staff Costs,Operations Change Activities,Alexander Mann Solutions Limited,6007659,1693.8,Employment Agency Staff Costs,Programme
HM Land Registry,HM Land Registry,29/03/2021,Employment Agency Staff Costs,Operations Change Activities,Alexander Mann Solutions Limited,6007659,1693.8,Employment Agency Staff Costs,Programme
HM Land Registry,HM Land Registry,29/03/2021,Employment Agency Staff Costs,Operations Change Activities,Alexander Mann Solutions Limited,6007659,338.76,Employment Agency Staff Costs,Programme
HM Land Registry,HM Land Registry,29/03/2021,Employment Agency Staff Costs,Operations Change Activities,Alexander Mann Solutions Limited,6007659,338.76,Employment Agency Staff Costs,Programme
HM Land Registry,HM Land Registry,22/03/2021,Employment Agency Staff Costs,Finance & Business Services Change Activities,Alexander Mann Solutions Limited,6007599,3649.14,Employment Agency Staff Costs,Programme
HM Land Registry,HM Land Registry,22/03/2021,Employment Agency Staff Costs,Finance & Business Services Change Activities,Alexander Mann Solutions Limited,6007599,729.83,Employment Agency Staff Costs,Programme
HM Land Registry,HM Land Registry,22/03/2021,Employment Agency Staff Costs,Finance & Business Services Change Activities,Alexander Mann Solutions Limited,6007599,2698.55,Employment Agency Staff Costs,Programme
HM Land Registry,HM Land Registry,22/03/2021,Employment Agency Staff Costs,Finance & Business Services Change Activities,Alexander Mann Solutions Limited,6007599,539.71,Employment Agency Staff Costs,Programme
HM Land Registry,HM Land Registry,22/03/2021,Employment Agency Staff Costs,Transformation Change Activities,Alexander Mann Solutions Limited,6007599,163.46,Employment Agency Staff Costs,Programme
HM Land Registry,HM Land Registry,22/03/2021,Employment Agency Staff Costs,Transformation Change Activities,Alexander Mann Solutions Limited,6007599,32.69,Employment Agency Staff Costs,Programme
HM Land Registry,HM Land Registry,22/03/2021,Employment Agency Staff Costs,Operations Change Activities,Alexander Mann Solutions Limited,6007599,2669.05,Employment Agency Staff Costs,Programme
HM Land Registry,HM Land Registry,22/03/2021,Employment Agency Staff Costs,Operations Change Activities,Alexander Mann Solutions Limited,6007599,533.81,Employment Agency Staff Costs,Programme
HM Land Registry,HM Land Registry,22/03/2021,Employment Agency Staff Costs,DDaT Change Activities,Alexander Mann Solutions Limited,6007599,598.55,Employment Agency Staff Costs,Programme
HM Land Registry,HM Land Registry,22/03/2021,Employment Agency Staff Costs,DDaT Change Activities,Alexander Mann Solutions Limited,6007599,2992.75,Employment Agency Staff Costs,Programme
HM Land Registry,HM Land Registry,22/03/2021,Employment Agency Staff Costs,Office of DDaT,Alexander Mann Solutions Limited,6007599,1567.83,Employment Agency Staff Costs,Programme
HM Land Registry,HM Land Registry,22/03/2021,Employment Agency Staff Costs,Office of DDaT,Alexander Mann Solutions Limited,6007599,313.57,Employment Agency Staff Costs,Programme
HM Land Registry,HM Land Registry,22/03/2021,Employment Agency Staff Costs,Finance,Alexander Mann Solutions Limited,6007599,3040.95,Employment Agency Staff Costs,Programme
HM Land Registry,HM Land Registry,22/03/2021,Employment Agency Staff Costs,Finance,Alexander Mann Solutions Limited,6007599,608.19,Employment Agency Staff Costs,Programme
HM Land Registry,HM Land Registry,22/03/2021,Employment Agency Staff Costs,Transformation Change Activities,Alexander Mann Solutions Limited,6007599,3592.9,Employment Agency Staff Costs,Programme
HM Land Registry,HM Land Registry,22/03/2021,Employment Agency Staff Costs,Transformation Change Activities,Alexander Mann Solutions Limited,6007599,718.58,Employment Agency Staff Costs,Programme
HM Land Registry,HM Land Registry,22/03/2021,Employment Agency Staff Costs,DDaT Change Activities,Alexander Mann Solutions Limited,6007599,2694.7,Employment Agency Staff Costs,Programme
HM Land Registry,HM Land Registry,22/03/2021,Employment Agency Staff Costs,DDaT Change Activities,Alexander Mann Solutions Limited,6007599,538.94,Employment Agency Staff Costs,Programme
HM Land Registry,HM Land Registry,22/03/2021,Employment Agency Staff Costs,Operations Change Activities,Alexander Mann Solutions Limited,6007599,2887.75,Employment Agency Staff Costs,Programme
HM Land Registry,HM Land Registry,22/03/2021,Employment Agency Staff Costs,Operations Change Activities,Alexander Mann Solutions Limited,6007599,577.55,Employment Agency Staff Costs,Programme
HM Land Registry,HM Land Registry,22/03/2021,Employment Agency Staff Costs,Operations Change Activities,Alexander Mann Solutions Limited,6007599,2078.75,Employment Agency Staff Costs,Programme
HM Land Registry,HM Land Registry,22/03/2021,Employment Agency Staff Costs,Operations Change Activities,Alexander Mann Solutions Limited,6007599,415.75,Employment Agency Staff Costs,Programme
HM Land Registry,HM Land Registry,22/03/2021,Employment Agency Staff Costs,Finance & Business Services Change Activities,Alexander Mann Solutions Limited,6007599,6300.6,Employment Agency Staff Costs,Programme
HM Land Registry,HM Land Registry,22/03/2021,Employment Agency Staff Costs,Finance & Business Services Change Activities,Alexander Mann Solutions Limited,6007599,1260.12,Employment Agency Staff Costs,Programme
HM Land Registry,HM Land Registry,22/03/2021,Employment Agency Staff Costs,DDaT Change Activities,Alexander Mann Solutions Limited,6007599,1260.12,Employment Agency Staff Costs,Programme
HM Land Registry,HM Land Registry,22/03/2021,Employment Agency Staff Costs,DDaT Change Activities,Alexander Mann Solutions Limited,6007599,252.02,Employment Agency Staff Costs,Programme
HM Land Registry,HM Land Registry,22/03/2021,Employment Agency Staff Costs,Operations Change Activities,Alexander Mann Solutions Limited,6007599,2100.2,Employment Agency Staff Costs,Programme
HM Land Registry,HM Land Registry,22/03/2021,Employment Agency Staff Costs,Operations Change Activities,Alexander Mann Solutions Limited,6007599,420.04,Employment Agency Staff Costs,Programme
HM Land Registry,HM Land Registry,22/03/2021,Employment Agency Staff Costs,DDaT Change Activities,Alexander Mann Solutions Limited,6007599,2258.44,Employment Agency Staff Costs,Programme
HM Land Registry,HM Land Registry,22/03/2021,Employment Agency Staff Costs,DDaT Change Activities,Alexander Mann Solutions Limited,6007599,451.69,Employment Agency Staff Costs,Programme
HM Land Registry,HM Land Registry,22/03/2021,Employment Agency Staff Costs,Transformation Change Activities,Alexander Mann Solutions Limited,6007599,3592.9,Employment Agency Staff Costs,Programme
HM Land Registry,HM Land Registry,22/03/2021,Employment Agency Staff Costs,Transformation Change Activities,Alexander Mann Solutions Limited,6007599,718.58,Employment Agency Staff Costs,Programme
HM Land Registry,HM Land Registry,22/03/2021,Employment Agency Staff Costs,DDaT Change Activities,Alexander Mann Solutions Limited,6007599,1890.18,Employment Agency Staff Costs,Programme
HM Land Registry,HM Land Registry,22/03/2021,Employment Agency Staff Costs,DDaT Change Activities,Alexander Mann Solutions Limited,6007599,378.04,Employment Agency Staff Costs,Programme
HM Land Registry,HM Land Registry,22/03/2021,Employment Agency Staff Costs,Finance & Business Services Change Activities,Alexander Mann Solutions Limited,6007599,1942.7,Employment Agency Staff Costs,Programme
HM Land Registry,HM Land Registry,22/03/2021,Employment Agency Staff Costs,Finance & Business Services Change Activities,Alexander Mann Solutions Limited,6007599,388.54,Employment Agency Staff Costs,Programme
HM Land Registry,HM Land Registry,22/03/2021,Employment Agency Staff Costs,Office of DDaT,Alexander Mann Solutions Limited,6007599,600.51,Employment Agency Staff Costs,Programme
HM Land Registry,HM Land Registry,22/03/2021,Employment Agency Staff Costs,Office of DDaT,Alexander Mann Solutions Limited,6007599,120.1,Employment Agency Staff Costs,Programme
HM Land Registry,HM Land Registry,22/03/2021,Employment Agency Staff Costs,Office of DDaT,Alexander Mann Solutions Limited,6007599,600.51,Employment Agency Staff Costs,Programme
HM Land Registry,HM Land Registry,22/03/2021,Employment Agency Staff Costs,Office of DDaT,Alexander Mann Solutions Limited,6007599,120.1,Employment Agency Staff Costs,Programme
HM Land Registry,HM Land Registry,22/03/2021,Employment Agency Staff Costs,DDaT Change Activities,Alexander Mann Solutions Limited,6007599,3150.3,Employment Agency Staff Costs,Programme
HM Land Registry,HM Land Registry,22/03/2021,Employment Agency Staff Costs,DDaT Change Activities,Alexander Mann Solutions Limited,6007599,630.06,Employment Agency Staff Costs,Programme
HM Land Registry,HM Land Registry,22/03/2021,Employment Agency Staff Costs,Office of DDaT,Alexander Mann Solutions Limited,6007599,357.06,Employment Agency Staff Costs,Programme
HM Land Registry,HM Land Registry,22/03/2021,Employment Agency Staff Costs,Office of DDaT,Alexander Mann Solutions Limited,6007599,71.41,Employment Agency Staff Costs,Programme
HM Land Registry,HM Land Registry,29/03/2021,Employment Agency Staff Costs,Risk and Assurance,Alexander Mann Solutions Limited,6007659,3412.8,Employment Agency Staff Costs,Programme
HM Land Registry,HM Land Registry,29/03/2021,Employment Agency Staff Costs,Risk and Assurance,Alexander Mann Solutions Limited,6007659,682.56,Employment Agency Staff Costs,Programme
HM Land Registry,HM Land Registry,26/03/2021,Employment Agency Staff Costs,DDaT Change Activities,Alexander Mann Solutions Limited,6007647,3677.05,Employment Agency Staff Costs,Programme
HM Land Registry,HM Land Registry,26/03/2021,Employment Agency Staff Costs,DDaT Change Activities,Alexander Mann Solutions Limited,6007647,735.41,Employment Agency Staff Costs,Programme
HM Land Registry,HM Land Registry,26/03/2021,Employment Agency Staff Costs,Finance & Business Services Change Activities,Alexander Mann Solutions Limited,6007647,34492.08,Employment Agency Staff Costs,Programme
HM Land Registry,HM Land Registry,26/03/2021,Employment Agency Staff Costs,Finance & Business Services Change Activities,Alexander Mann Solutions Limited,6007647,6898.42,Employment Agency Staff Costs,Programme
HM Land Registry,HM Land Registry,26/03/2021,Employment Agency Staff Costs,Finance & Business Services Change Activities,Alexander Mann Solutions Limited,6007647,3040.95,Employment Agency Staff Costs,Programme
HM Land Registry,HM Land Registry,26/03/2021,Employment Agency Staff Costs,Finance & Business Services Change Activities,Alexander Mann Solutions Limited,6007647,608.19,Employment Agency Staff Costs,Programme
HM Land Registry,HM Land Registry,26/03/2021,Employment Agency Staff Costs,Customer Insight & Experience,Alexander Mann Solutions Limited,6007647,4516.82,Employment Agency Staff Costs,Programme
HM Land Registry,HM Land Registry,26/03/2021,Employment Agency Staff Costs,Operations Change Activities,Alexander Mann Solutions Limited,6007647,2669.05,Employment Agency Staff Costs,Programme
HM Land Registry,HM Land Registry,26/03/2021,Employment Agency Staff Costs,Operations Change Activities,Alexander Mann Solutions Limited,6007647,533.81,Employment Agency Staff Costs,Programme
HM Land Registry,HM Land Registry,26/03/2021,Employment Agency Staff Costs,DDaT Change Activities,Alexander Mann Solutions Limited,6007647,2992.75,Employment Agency Staff Costs,Programme
HM Land Registry,HM Land Registry,26/03/2021,Employment Agency Staff Costs,DDaT Change Activities,Alexander Mann Solutions Limited,6007647,598.55,Employment Agency Staff Costs,Programme
HM Land Registry,HM Land Registry,26/03/2021,Employment Agency Staff Costs,Office of DDaT,Alexander Mann Solutions Limited,6007647,1567.83,Employment Agency Staff Costs,Programme
HM Land Registry,HM Land Registry,26/03/2021,Employment Agency Staff Costs,Office of DDaT,Alexander Mann Solutions Limited,6007647,313.57,Employment Agency Staff Costs,Programme
HM Land Registry,HM Land Registry,26/03/2021,Employment Agency Staff Costs,Finance,Alexander Mann Solutions Limited,6007647,3040.95,Employment Agency Staff Costs,Programme
HM Land Registry,HM Land Registry,26/03/2021,Employment Agency Staff Costs,Finance,Alexander Mann Solutions Limited,6007647,608.19,Employment Agency Staff Costs,Programme
HM Land Registry,HM Land Registry,26/03/2021,Employment Agency Staff Costs,DDaT Change Activities,Alexander Mann Solutions Limited,6007647,2694.7,Employment Agency Staff Costs,Programme
HM Land Registry,HM Land Registry,26/03/2021,Employment Agency Staff Costs,DDaT Change Activities,Alexander Mann Solutions Limited,6007647,538.94,Employment Agency Staff Costs,Programme
HM Land Registry,HM Land Registry,26/03/2021,Employment Agency Staff Costs,Operations Change Activities,Alexander Mann Solutions Limited,6007647,2887.75,Employment Agency Staff Costs,Programme
HM Land Registry,HM Land Registry,26/03/2021,Employment Agency Staff Costs,Operations Change Activities,Alexander Mann Solutions Limited,6007647,577.55,Employment Agency Staff Costs,Programme
HM Land Registry,HM Land Registry,26/03/2021,Employment Agency Staff Costs,Operations Change Activities,Alexander Mann Solutions Limited,6007647,2078.75,Employment Agency Staff Costs,Programme
HM Land Registry,HM Land Registry,26/03/2021,Employment Agency Staff Costs,Operations Change Activities,Alexander Mann Solutions Limited,6007647,415.75,Employment Agency Staff Costs,Programme
HM Land Registry,HM Land Registry,29/03/2021,Employment Agency Staff Costs,Operations Change Activities,Alexander Mann Solutions Limited,6007659,2100.2,Employment Agency Staff Costs,Programme
HM Land Registry,HM Land Registry,29/03/2021,Employment Agency Staff Costs,Operations Change Activities,Alexander Mann Solutions Limited,6007659,420.04,Employment Agency Staff Costs,Programme
HM Land Registry,HM Land Registry,26/03/2021,Employment Agency Staff Costs,DDaT Change Activities,Alexander Mann Solutions Limited,6007647,2258.44,Employment Agency Staff Costs,Programme
HM Land Registry,HM Land Registry,26/03/2021,Employment Agency Staff Costs,DDaT Change Activities,Alexander Mann Solutions Limited,6007647,451.69,Employment Agency Staff Costs,Programme
HM Land Registry,HM Land Registry,29/03/2021,Employment Agency Staff Costs,DDaT Change Activities,Alexander Mann Solutions Limited,6007659,2520.24,Employment Agency Staff Costs,Programme
HM Land Registry,HM Land Registry,29/03/2021,Employment Agency Staff Costs,DDaT Change Activities,Alexander Mann Solutions Limited,6007659,504.05,Employment Agency Staff Costs,Programme
HM Land Registry,HM Land Registry,29/03/2021,Employment Agency Staff Costs,Finance & Business Services Change Activities,Alexander Mann Solutions Limited,6007659,1942.7,Employment Agency Staff Costs,Programme
HM Land Registry,HM Land Registry,29/03/2021,Employment Agency Staff Costs,Finance & Business Services Change Activities,Alexander Mann Solutions Limited,6007659,388.54,Employment Agency Staff Costs,Programme
HM Land Registry,HM Land Registry,29/03/2021,Employment Agency Staff Costs,DDaT Change Activities,Alexander Mann Solutions Limited,6007659,3150.3,Employment Agency Staff Costs,Programme
HM Land Registry,HM Land Registry,29/03/2021,Employment Agency Staff Costs,DDaT Change Activities,Alexander Mann Solutions Limited,6007659,630.06,Employment Agency Staff Costs,Programme
HM Land Registry,HM Land Registry,26/03/2021,Employment Agency Staff Costs,Office of DDaT,Alexander Mann Solutions Limited,6007647,600.51,Employment Agency Staff Costs,Programme
HM Land Registry,HM Land Registry,26/03/2021,Employment Agency Staff Costs,Office of DDaT,Alexander Mann Solutions Limited,6007647,120.1,Employment Agency Staff Costs,Programme
HM Land Registry,HM Land Registry,29/03/2021,Employment Agency Staff Costs,Finance & Business Services Change Activities,Alexander Mann Solutions Limited,6007659,3675.35,Employment Agency Staff Costs,Programme
HM Land Registry,HM Land Registry,29/03/2021,Employment Agency Staff Costs,Finance & Business Services Change Activities,Alexander Mann Solutions Limited,6007659,735.07,Employment Agency Staff Costs,Programme
HM Land Registry,HM Land Registry,29/03/2021,Employment Agency Staff Costs,Finance & Business Services Change Activities,Alexander Mann Solutions Limited,6007659,3675.35,Employment Agency Staff Costs,Programme
HM Land Registry,HM Land Registry,29/03/2021,Employment Agency Staff Costs,Finance & Business Services Change Activities,Alexander Mann Solutions Limited,6007659,735.07,Employment Agency Staff Costs,Programme
HM Land Registry,HM Land Registry,29/03/2021,Employment Agency Staff Costs,DDaT Change Activities,Alexander Mann Solutions Limited,6007659,2887.75,Employment Agency Staff Costs,Programme
HM Land Registry,HM Land Registry,29/03/2021,Employment Agency Staff Costs,DDaT Change Activities,Alexander Mann Solutions Limited,6007659,577.55,Employment Agency Staff Costs,Programme
HM Land Registry,HM Land Registry,29/03/2021,Employment Agency Staff Costs,DDaT Change Activities,Alexander Mann Solutions Limited,6007659,2205.21,Employment Agency Staff Costs,Programme
HM Land Registry,HM Land Registry,29/03/2021,Employment Agency Staff Costs,DDaT Change Activities,Alexander Mann Solutions Limited,6007659,441.04,Employment Agency Staff Costs,Programme
HM Land Registry,HM Land Registry,16/03/2021,Employment Agency Staff Costs,DDaT Change Activities,Alexander Mann Solutions Limited,6007540,451.69,Employment Agency Staff Costs,Programme
HM Land Registry,HM Land Registry,16/03/2021,Employment Agency Staff Costs,DDaT Change Activities,Alexander Mann Solutions Limited,6007540,2258.44,Employment Agency Staff Costs,Programme
HM Land Registry,HM Land Registry,17/03/2021,Software as a Service (Cloud),DDaT Change Activities,Amazon Web Services Inc,56420,74753.14,Software as a Service (Cloud),Programme
HM Land Registry,HM Land Registry,17/03/2021,Software as a Service (Cloud),Transformation Change Activities,Amazon Web Services Inc,56420,12240.14,Software as a Service (Cloud),Programme
HM Land Registry,HM Land Registry,31/03/2021,Software as a Service (Cloud),Finance & Business Services Change Activities,Anaplan Limited,6007708,37337.5,Software as a Service (Cloud),Programme
HM Land Registry,HM Land Registry,16/03/2021,Stationery National Contracts,Facilities,Banner Group Limited,6007543,222,Stationery National Contracts,Programme
HM Land Registry,HM Land Registry,16/03/2021,Stationery National Contracts,Facilities,Banner Group Limited,6007543,91.47,Stationery National Contracts,Programme
HM Land Registry,HM Land Registry,16/03/2021,Stationery National Contracts,Facilities,Banner Group Limited,6007543,18.26,Stationery National Contracts,Programme
HM Land Registry,HM Land Registry,16/03/2021,Stationery National Contracts,Facilities,Banner Group Limited,6007543,39.72,Stationery National Contracts,Programme
HM Land Registry,HM Land Registry,16/03/2021,Stationery National Contracts,Facilities,Banner Group Limited,6007543,57.12,Stationery National Contracts,Programme
HM Land Registry,HM Land Registry,16/03/2021,Stationery National Contracts,Facilities,Banner Group Limited,6007543,66,Stationery National Contracts,Programme
HM Land Registry,HM Land Registry,16/03/2021,Stationery National Contracts,Facilities,Banner Group Limited,6007543,199.5,Stationery National Contracts,Programme
HM Land Registry,HM Land Registry,16/03/2021,Stationery National Contracts,Facilities,Banner Group Limited,6007543,207.3,Stationery National Contracts,Programme
HM Land Registry,HM Land Registry,16/03/2021,Stationery National Contracts,Facilities,Banner Group Limited,6007543,14.4,Stationery National Contracts,Programme
HM Land Registry,HM Land Registry,16/03/2021,Stationery National Contracts,Facilities,Banner Group Limited,6007543,67.8,Stationery National Contracts,Programme
HM Land Registry,HM Land Registry,16/03/2021,Stationery National Contracts,Facilities,Banner Group Limited,6007543,81.38,Stationery National Contracts,Programme
HM Land Registry,HM Land Registry,16/03/2021,Stationery National Contracts,Facilities,Banner Group Limited,6007543,457.6,Stationery National Contracts,Programme
HM Land Registry,HM Land Registry,16/03/2021,Stationery National Contracts,Facilities,Banner Group Limited,6007543,43.82,Stationery National Contracts,Programme
HM Land Registry,HM Land Registry,16/03/2021,Stationery National Contracts,Facilities,Banner Group Limited,6007543,23.79,Stationery National Contracts,Programme
HM Land Registry,HM Land Registry,16/03/2021,Stationery National Contracts,Facilities,Banner Group Limited,6007543,5.08,Stationery National Contracts,Programme
HM Land Registry,HM Land Registry,16/03/2021,Stationery National Contracts,Facilities,Banner Group Limited,6007543,4.41,Stationery National Contracts,Programme
HM Land Registry,HM Land Registry,16/03/2021,Stationery National Contracts,Facilities,Banner Group Limited,6007543,6.26,Stationery National Contracts,Programme
HM Land Registry,HM Land Registry,16/03/2021,Stationery National Contracts,Facilities,Banner Group Limited,6007543,19.95,Stationery National Contracts,Programme
HM Land Registry,HM Land Registry,16/03/2021,Stationery National Contracts,Facilities,Banner Group Limited,6007543,2.75,Stationery National Contracts,Programme
HM Land Registry,HM Land Registry,16/03/2021,Stationery National Contracts,Facilities,Banner Group Limited,6007543,4.41,Stationery National Contracts,Programme
HM Land Registry,HM Land Registry,16/03/2021,Stationery National Contracts,Facilities,Banner Group Limited,6007543,19.95,Stationery National Contracts,Programme
HM Land Registry,HM Land Registry,16/03/2021,Stationery National Contracts,Facilities,Banner Group Limited,6007543,23.79,Stationery National Contracts,Programme
HM Land Registry,HM Land Registry,16/03/2021,Stationery National Contracts,Facilities,Banner Group Limited,6007543,2.75,Stationery National Contracts,Programme
HM Land Registry,HM Land Registry,16/03/2021,Stationery National Contracts,Facilities,Banner Group Limited,6007543,47.58,Stationery National Contracts,Programme
HM Land Registry,HM Land Registry,16/03/2021,Stationery National Contracts,Facilities,Banner Group Limited,6007543,1.08,Stationery National Contracts,Programme
HM Land Registry,HM Land Registry,16/03/2021,Stationery National Contracts,Facilities,Banner Group Limited,6007543,19.95,Stationery National Contracts,Programme
HM Land Registry,HM Land Registry,16/03/2021,Stationery National Contracts,Facilities,Banner Group Limited,6007543,7.05,Stationery National Contracts,Programme
HM Land Registry,HM Land Registry,16/03/2021,Stationery National Contracts,Facilities,Banner Group Limited,6007543,14.66,Stationery National Contracts,Programme
HM Land Registry,HM Land Registry,16/03/2021,Stationery National Contracts,Facilities,Banner Group Limited,6007543,2.75,Stationery National Contracts,Programme
HM Land Registry,HM Land Registry,16/03/2021,Stationery National Contracts,Facilities,Banner Group Limited,6007543,8.82,Stationery National Contracts,Programme
HM Land Registry,HM Land Registry,16/03/2021,Stationery National Contracts,Facilities,Banner Group Limited,6007543,6.26,Stationery National Contracts,Programme
HM Land Registry,HM Land Registry,16/03/2021,Stationery National Contracts,Facilities,Banner Group Limited,6007543,19.95,Stationery National Contracts,Programme
HM Land Registry,HM Land Registry,16/03/2021,Stationery National Contracts,Facilities,Banner Group Limited,6007543,19.95,Stationery National Contracts,Programme
HM Land Registry,HM Land Registry,16/03/2021,Stationery National Contracts,Facilities,Banner Group Limited,6007543,2.22,Stationery National Contracts,Programme
HM Land Registry,HM Land Registry,16/03/2021,Stationery National Contracts,Facilities,Banner Group Limited,6007543,4.41,Stationery National Contracts,Programme
HM Land Registry,HM Land Registry,16/03/2021,Stationery National Contracts,Facilities,Banner Group Limited,6007543,6.6,Stationery National Contracts,Programme
HM Land Registry,HM Land Registry,16/03/2021,Stationery National Contracts,Facilities,Banner Group Limited,6007543,19.95,Stationery National Contracts,Programme
HM Land Registry,HM Land Registry,16/03/2021,Stationery National Contracts,Facilities,Banner Group Limited,6007543,5.08,Stationery National Contracts,Programme
HM Land Registry,HM Land Registry,16/03/2021,Stationery National Contracts,Facilities,Banner Group Limited,6007543,19.95,Stationery National Contracts,Programme
HM Land Registry,HM Land Registry,16/03/2021,Stationery National Contracts,Facilities,Banner Group Limited,6007543,14.86,Stationery National Contracts,Programme
HM Land Registry,HM Land Registry,16/03/2021,Stationery National Contracts,Facilities,Banner Group Limited,6007543,5.08,Stationery National Contracts,Programme
HM Land Registry,HM Land Registry,16/03/2021,Stationery National Contracts,Facilities,Banner Group Limited,6007543,30.49,Stationery National Contracts,Programme
HM Land Registry,HM Land Registry,16/03/2021,Stationery National Contracts,Facilities,Banner Group Limited,6007543,3.8,Stationery National Contracts,Programme
HM Land Registry,HM Land Registry,16/03/2021,Stationery National Contracts,Facilities,Banner Group Limited,6007543,23.79,Stationery National Contracts,Programme
HM Land Registry,HM Land Registry,16/03/2021,Stationery National Contracts,Facilities,Banner Group Limited,6007543,18.25,Stationery National Contracts,Programme
HM Land Registry,HM Land Registry,16/03/2021,Stationery National Contracts,Facilities,Banner Group Limited,6007543,18.25,Stationery National Contracts,Programme
HM Land Registry,HM Land Registry,16/03/2021,Stationery National Contracts,Facilities,Banner Group Limited,6007543,18.25,Stationery National Contracts,Programme
HM Land Registry,HM Land Registry,16/03/2021,Stationery National Contracts,Facilities,Banner Group Limited,6007543,18.25,Stationery National Contracts,Programme
HM Land Registry,HM Land Registry,16/03/2021,Stationery National Contracts,Facilities,Banner Group Limited,6007543,18.25,Stationery National Contracts,Programme
HM Land Registry,HM Land Registry,16/03/2021,Stationery National Contracts,Facilities,Banner Group Limited,6007543,18.25,Stationery National Contracts,Programme
HM Land Registry,HM Land Registry,16/03/2021,Stationery National Contracts,Facilities,Banner Group Limited,6007543,18.25,Stationery National Contracts,Programme
HM Land Registry,HM Land Registry,16/03/2021,Stationery National Contracts,Facilities,Banner Group Limited,6007543,18.25,Stationery National Contracts,Programme
HM Land Registry,HM Land Registry,16/03/2021,Stationery National Contracts,Facilities,Banner Group Limited,6007543,23.79,Stationery National Contracts,Programme
HM Land Registry,HM Land Registry,16/03/2021,Stationery National Contracts,Facilities,Banner Group Limited,6007543,23.79,Stationery National Contracts,Programme
HM Land Registry,HM Land Registry,16/03/2021,Stationery National Contracts,Facilities,Banner Group Limited,6007543,23.79,Stationery National Contracts,Programme
HM Land Registry,HM Land Registry,16/03/2021,Stationery National Contracts,Facilities,Banner Group Limited,6007543,19.95,Stationery National Contracts,Programme
HM Land Registry,HM Land Registry,16/03/2021,Stationery National Contracts,Facilities,Banner Group Limited,6007543,19.95,Stationery National Contracts,Programme
HM Land Registry,HM Land Registry,16/03/2021,Stationery National Contracts,Facilities,Banner Group Limited,6007543,5.08,Stationery National Contracts,Programme
HM Land Registry,HM Land Registry,16/03/2021,Stationery National Contracts,Facilities,Banner Group Limited,6007543,6.26,Stationery National Contracts,Programme
HM Land Registry,HM Land Registry,16/03/2021,Stationery National Contracts,Facilities,Banner Group Limited,6007543,19.95,Stationery National Contracts,Programme
HM Land Registry,HM Land Registry,16/03/2021,Stationery National Contracts,Facilities,Banner Group Limited,6007543,5.08,Stationery National Contracts,Programme
HM Land Registry,HM Land Registry,16/03/2021,Stationery National Contracts,Facilities,Banner Group Limited,6007543,6.26,Stationery National Contracts,Programme
HM Land Registry,HM Land Registry,16/03/2021,Stationery National Contracts,Facilities,Banner Group Limited,6007543,4.41,Stationery National Contracts,Programme
HM Land Registry,HM Land Registry,16/03/2021,Stationery National Contracts,Facilities,Banner Group Limited,6007543,30.49,Stationery National Contracts,Programme
HM Land Registry,HM Land Registry,16/03/2021,Stationery National Contracts,Facilities,Banner Group Limited,6007543,23.79,Stationery National Contracts,Programme
HM Land Registry,HM Land Registry,16/03/2021,Stationery National Contracts,Facilities,Banner Group Limited,6007543,4.41,Stationery National Contracts,Programme
HM Land Registry,HM Land Registry,16/03/2021,Stationery National Contracts,Facilities,Banner Group Limited,6007543,6.26,Stationery National Contracts,Programme
HM Land Registry,HM Land Registry,16/03/2021,Stationery National Contracts,Facilities,Banner Group Limited,6007543,5.08,Stationery National Contracts,Programme
HM Land Registry,HM Land Registry,16/03/2021,Stationery National Contracts,Facilities,Banner Group Limited,6007543,5.08,Stationery National Contracts,Programme
HM Land Registry,HM Land Registry,16/03/2021,Stationery National Contracts,Facilities,Banner Group Limited,6007543,6.26,Stationery National Contracts,Programme
HM Land Registry,HM Land Registry,16/03/2021,Stationery National Contracts,Facilities,Banner Group Limited,6007543,4.41,Stationery National Contracts,Programme
HM Land Registry,HM Land Registry,16/03/2021,Stationery National Contracts,Facilities,Banner Group Limited,6007543,6,Stationery National Contracts,Programme
HM Land Registry,HM Land Registry,16/03/2021,Stationery National Contracts,Facilities,Banner Group Limited,6007543,4.41,Stationery National Contracts,Programme
HM Land Registry,HM Land Registry,16/03/2021,Stationery National Contracts,Facilities,Banner Group Limited,6007543,0.55,Stationery National Contracts,Programme
HM Land Registry,HM Land Registry,16/03/2021,Stationery National Contracts,Facilities,Banner Group Limited,6007543,3.8,Stationery National Contracts,Programme
HM Land Registry,HM Land Registry,16/03/2021,Stationery National Contracts,Facilities,Banner Group Limited,6007543,3.3,Stationery National Contracts,Programme
HM Land Registry,HM Land Registry,16/03/2021,Stationery National Contracts,Facilities,Banner Group Limited,6007543,23.79,Stationery National Contracts,Programme
HM Land Registry,HM Land Registry,16/03/2021,Stationery National Contracts,Facilities,Banner Group Limited,6007543,6.75,Stationery National Contracts,Programme
HM Land Registry,HM Land Registry,16/03/2021,Stationery National Contracts,Facilities,Banner Group Limited,6007543,1.4,Stationery National Contracts,Programme
HM Land Registry,HM Land Registry,16/03/2021,Stationery National Contracts,Facilities,Banner Group Limited,6007543,4.41,Stationery National Contracts,Programme
HM Land Registry,HM Land Registry,16/03/2021,Stationery National Contracts,Facilities,Banner Group Limited,6007543,19.95,Stationery National Contracts,Programme
HM Land Registry,HM Land Registry,16/03/2021,Stationery National Contracts,Facilities,Banner Group Limited,6007543,4.41,Stationery National Contracts,Programme
HM Land Registry,HM Land Registry,16/03/2021,Stationery National Contracts,Facilities,Banner Group Limited,6007543,6.6,Stationery National Contracts,Programme
HM Land Registry,HM Land Registry,16/03/2021,Stationery National Contracts,Facilities,Banner Group Limited,6007543,119.7,Stationery National Contracts,Programme
HM Land Registry,HM Land Registry,16/03/2021,Stationery National Contracts,Facilities,Banner Group Limited,6007543,6.26,Stationery National Contracts,Programme
HM Land Registry,HM Land Registry,16/03/2021,Stationery National Contracts,Facilities,Banner Group Limited,6007543,4.41,Stationery National Contracts,Programme
HM Land Registry,HM Land Registry,16/03/2021,Stationery National Contracts,Facilities,Banner Group Limited,6007543,23.79,Stationery National Contracts,Programme
HM Land Registry,HM Land Registry,16/03/2021,Stationery National Contracts,Facilities,Banner Group Limited,6007543,19.95,Stationery National Contracts,Programme
HM Land Registry,HM Land Registry,16/03/2021,Stationery National Contracts,Facilities,Banner Group Limited,6007543,135.36,Stationery National Contracts,Programme
HM Land Registry,HM Land Registry,16/03/2021,Stationery National Contracts,Facilities,Banner Group Limited,6007543,19.8,Stationery National Contracts,Programme
HM Land Registry,HM Land Registry,16/03/2021,Stationery National Contracts,Facilities,Banner Group Limited,6007543,135.36,Stationery National Contracts,Programme
HM Land Registry,HM Land Registry,16/03/2021,Stationery National Contracts,Facilities,Banner Group Limited,6007543,91.47,Stationery National Contracts,Programme
HM Land Registry,HM Land Registry,16/03/2021,Stationery National Contracts,Facilities,Banner Group Limited,6007543,36.54,Stationery National Contracts,Programme
HM Land Registry,HM Land Registry,16/03/2021,Stationery National Contracts,Facilities,Banner Group Limited,6007543,3.8,Stationery National Contracts,Programme
HM Land Registry,HM Land Registry,16/03/2021,Stationery National Contracts,Facilities,Banner Group Limited,6007543,44.1,Stationery National Contracts,Programme
HM Land Registry,HM Land Registry,16/03/2021,Stationery National Contracts,Facilities,Banner Group Limited,6007543,102.54,Stationery National Contracts,Programme
HM Land Registry,HM Land Registry,16/03/2021,Stationery National Contracts,Facilities,Banner Group Limited,6007543,39.27,Stationery National Contracts,Programme
HM Land Registry,HM Land Registry,16/03/2021,Stationery National Contracts,Facilities,Banner Group Limited,6007543,14.64,Stationery National Contracts,Programme
HM Land Registry,HM Land Registry,16/03/2021,Stationery National Contracts,Facilities,Banner Group Limited,6007543,2.44,Stationery National Contracts,Programme
HM Land Registry,HM Land Registry,16/03/2021,Stationery National Contracts,Facilities,Banner Group Limited,6007543,68.36,Stationery National Contracts,Programme
HM Land Registry,HM Land Registry,16/03/2021,Stationery National Contracts,Facilities,Banner Group Limited,6007543,91.25,Stationery National Contracts,Programme
HM Land Registry,HM Land Registry,16/03/2021,Stationery National Contracts,Facilities,Banner Group Limited,6007543,81.06,Stationery National Contracts,Programme
HM Land Registry,HM Land Registry,16/03/2021,Stationery National Contracts,Facilities,Banner Group Limited,6007543,41.6,Stationery National Contracts,Programme
HM Land Registry,HM Land Registry,16/03/2021,Stationery National Contracts,Facilities,Banner Group Limited,6007543,20.35,Stationery National Contracts,Programme
HM Land Registry,HM Land Registry,16/03/2021,Stationery National Contracts,Facilities,Banner Group Limited,6007543,60.98,Stationery National Contracts,Programme
HM Land Registry,HM Land Registry,16/03/2021,Stationery National Contracts,Facilities,Banner Group Limited,6007543,12.36,Stationery National Contracts,Programme
HM Land Registry,HM Land Registry,16/03/2021,Stationery National Contracts,Facilities,Banner Group Limited,6007543,7.6,Stationery National Contracts,Programme
HM Land Registry,HM Land Registry,16/03/2021,Stationery National Contracts,Facilities,Banner Group Limited,6007543,70.98,Stationery National Contracts,Programme
HM Land Registry,HM Land Registry,16/03/2021,Stationery National Contracts,Facilities,Banner Group Limited,6007543,36.36,Stationery National Contracts,Programme
HM Land Registry,HM Land Registry,16/03/2021,Stationery National Contracts,Facilities,Banner Group Limited,6007543,94.57,Stationery National Contracts,Programme
HM Land Registry,HM Land Registry,16/03/2021,Stationery National Contracts,Facilities,Banner Group Limited,6007543,9.76,Stationery National Contracts,Programme
HM Land Registry,HM Land Registry,16/03/2021,Stationery National Contracts,Facilities,Banner Group Limited,6007543,0.29,Stationery National Contracts,Programme
HM Land Registry,HM Land Registry,16/03/2021,Stationery National Contracts,Facilities,Banner Group Limited,6007543,1.65,Stationery National Contracts,Programme
HM Land Registry,HM Land Registry,16/03/2021,Stationery National Contracts,Facilities,Banner Group Limited,6007543,5.04,Stationery National Contracts,Programme
HM Land Registry,HM Land Registry,16/03/2021,Stationery National Contracts,Facilities,Banner Group Limited,6007543,9.45,Stationery National Contracts,Programme
HM Land Registry,HM Land Registry,16/03/2021,Stationery National Contracts,Facilities,Banner Group Limited,6007543,0.6,Stationery National Contracts,Programme
HM Land Registry,HM Land Registry,16/03/2021,Stationery National Contracts,Facilities,Banner Group Limited,6007543,17.52,Stationery National Contracts,Programme
HM Land Registry,HM Land Registry,16/03/2021,Stationery National Contracts,Facilities,Banner Group Limited,6007543,8.27,Stationery National Contracts,Programme
HM Land Registry,HM Land Registry,16/03/2021,Stationery National Contracts,Facilities,Banner Group Limited,6007543,19.95,Stationery National Contracts,Programme
HM Land Registry,HM Land Registry,16/03/2021,Stationery National Contracts,Facilities,Banner Group Limited,6007543,19.95,Stationery National Contracts,Programme
HM Land Registry,HM Land Registry,16/03/2021,Stationery National Contracts,Facilities,Banner Group Limited,6007543,0.72,Stationery National Contracts,Programme
HM Land Registry,HM Land Registry,16/03/2021,Stationery National Contracts,Facilities,Banner Group Limited,6007543,4.54,Stationery National Contracts,Programme
HM Land Registry,HM Land Registry,16/03/2021,Stationery National Contracts,Facilities,Banner Group Limited,6007543,2.68,Stationery National Contracts,Programme
HM Land Registry,HM Land Registry,16/03/2021,Stationery National Contracts,Facilities,Banner Group Limited,6007543,2.35,Stationery National Contracts,Programme
HM Land Registry,HM Land Registry,16/03/2021,Stationery National Contracts,Facilities,Banner Group Limited,6007543,19.95,Stationery National Contracts,Programme
HM Land Registry,HM Land Registry,16/03/2021,Stationery National Contracts,Facilities,Banner Group Limited,6007543,4.54,Stationery National Contracts,Programme
HM Land Registry,HM Land Registry,16/03/2021,Stationery National Contracts,Facilities,Banner Group Limited,6007543,1.34,Stationery National Contracts,Programme
HM Land Registry,HM Land Registry,16/03/2021,Stationery National Contracts,Facilities,Banner Group Limited,6007543,4.7,Stationery National Contracts,Programme
HM Land Registry,HM Land Registry,16/03/2021,Stationery National Contracts,Facilities,Banner Group Limited,6007543,19.95,Stationery National Contracts,Programme
HM Land Registry,HM Land Registry,16/03/2021,Stationery National Contracts,Facilities,Banner Group Limited,6007543,4.54,Stationery National Contracts,Programme
HM Land Registry,HM Land Registry,16/03/2021,Stationery National Contracts,Facilities,Banner Group Limited,6007543,1.34,Stationery National Contracts,Programme
HM Land Registry,HM Land Registry,16/03/2021,Stationery National Contracts,Facilities,Banner Group Limited,6007543,4.7,Stationery National Contracts,Programme
HM Land Registry,HM Land Registry,16/03/2021,Stationery National Contracts,Facilities,Banner Group Limited,6007543,19.95,Stationery National Contracts,Programme
HM Land Registry,HM Land Registry,16/03/2021,Stationery National Contracts,Facilities,Banner Group Limited,6007543,4.54,Stationery National Contracts,Programme
HM Land Registry,HM Land Registry,16/03/2021,Stationery National Contracts,Facilities,Banner Group Limited,6007543,1.34,Stationery National Contracts,Programme
HM Land Registry,HM Land Registry,16/03/2021,Stationery National Contracts,Facilities,Banner Group Limited,6007543,2.35,Stationery National Contracts,Programme
HM Land Registry,HM Land Registry,16/03/2021,Stationery National Contracts,Facilities,Banner Group Limited,6007543,16.82,Stationery National Contracts,Programme
HM Land Registry,HM Land Registry,16/03/2021,Stationery National Contracts,Facilities,Banner Group Limited,6007543,19.95,Stationery National Contracts,Programme
HM Land Registry,HM Land Registry,16/03/2021,Stationery National Contracts,Facilities,Banner Group Limited,6007543,146,Stationery National Contracts,Programme
HM Land Registry,HM Land Registry,16/03/2021,Stationery National Contracts,Facilities,Banner Group Limited,6007543,11.4,Stationery National Contracts,Programme
HM Land Registry,HM Land Registry,16/03/2021,Stationery National Contracts,Facilities,Banner Group Limited,6007543,27.87,Stationery National Contracts,Programme
HM Land Registry,HM Land Registry,16/03/2021,Stationery National Contracts,Facilities,Banner Group Limited,6007543,16.39,Stationery National Contracts,Programme
HM Land Registry,HM Land Registry,16/03/2021,Stationery National Contracts,Facilities,Banner Group Limited,6007543,15.12,Stationery National Contracts,Programme
HM Land Registry,HM Land Registry,16/03/2021,Stationery National Contracts,Facilities,Banner Group Limited,6007543,8.2,Stationery National Contracts,Programme
HM Land Registry,HM Land Registry,16/03/2021,Stationery National Contracts,Facilities,Banner Group Limited,6007543,11.9,Stationery National Contracts,Programme
HM Land Registry,HM Land Registry,16/03/2021,Stationery National Contracts,Facilities,Banner Group Limited,6007543,49.12,Stationery National Contracts,Programme
HM Land Registry,HM Land Registry,16/03/2021,Stationery National Contracts,Facilities,Banner Group Limited,6007543,2.16,Stationery National Contracts,Programme
HM Land Registry,HM Land Registry,16/03/2021,Stationery National Contracts,Facilities,Banner Group Limited,6007543,16.4,Stationery National Contracts,Programme
HM Land Registry,HM Land Registry,16/03/2021,Stationery National Contracts,Facilities,Banner Group Limited,6007543,40.53,Stationery National Contracts,Programme
HM Land Registry,HM Land Registry,16/03/2021,Stationery National Contracts,Facilities,Banner Group Limited,6007543,19.07,Stationery National Contracts,Programme
HM Land Registry,HM Land Registry,16/03/2021,Stationery National Contracts,Facilities,Banner Group Limited,6007543,27.47,Stationery National Contracts,Programme
HM Land Registry,HM Land Registry,16/03/2021,Stationery National Contracts,Facilities,Banner Group Limited,6007543,20.73,Stationery National Contracts,Programme
HM Land Registry,HM Land Registry,16/03/2021,Stationery National Contracts,Facilities,Banner Group Limited,6007543,19.84,Stationery National Contracts,Programme
HM Land Registry,HM Land Registry,16/03/2021,Stationery National Contracts,Facilities,Banner Group Limited,6007543,60.98,Stationery National Contracts,Programme
HM Land Registry,HM Land Registry,16/03/2021,Stationery National Contracts,Facilities,Banner Group Limited,6007543,91.47,Stationery National Contracts,Programme
HM Land Registry,HM Land Registry,16/03/2021,Stationery National Contracts,Facilities,Banner Group Limited,6007543,15.2,Stationery National Contracts,Programme
HM Land Registry,HM Land Registry,16/03/2021,Stationery National Contracts,Facilities,Banner Group Limited,6007543,15.2,Stationery National Contracts,Programme
HM Land Registry,HM Land Registry,16/03/2021,Stationery National Contracts,Facilities,Banner Group Limited,6007543,63.36,Stationery National Contracts,Programme
HM Land Registry,HM Land Registry,16/03/2021,Stationery National Contracts,Facilities,Banner Group Limited,6007543,25.28,Stationery National Contracts,Programme
HM Land Registry,HM Land Registry,16/03/2021,Stationery National Contracts,Facilities,Banner Group Limited,6007543,4.08,Stationery National Contracts,Programme
HM Land Registry,HM Land Registry,16/03/2021,Stationery National Contracts,Facilities,Banner Group Limited,6007543,27.84,Stationery National Contracts,Programme
HM Land Registry,HM Land Registry,16/03/2021,Stationery National Contracts,Facilities,Banner Group Limited,6007543,9.77,Stationery National Contracts,Programme
HM Land Registry,HM Land Registry,16/03/2021,Stationery National Contracts,Facilities,Banner Group Limited,6007543,25.26,Stationery National Contracts,Programme
HM Land Registry,HM Land Registry,16/03/2021,Stationery National Contracts,Facilities,Banner Group Limited,6007543,11.4,Stationery National Contracts,Programme
HM Land Registry,HM Land Registry,16/03/2021,Stationery National Contracts,Facilities,Banner Group Limited,6007543,20.4,Stationery National Contracts,Programme
HM Land Registry,HM Land Registry,16/03/2021,Stationery National Contracts,Facilities,Banner Group Limited,6007543,48.5,Stationery National Contracts,Programme
HM Land Registry,HM Land Registry,16/03/2021,Stationery National Contracts,Facilities,Banner Group Limited,6007543,23.79,Stationery National Contracts,Programme
HM Land Registry,HM Land Registry,16/03/2021,Stationery National Contracts,Facilities,Banner Group Limited,6007543,7.56,Stationery National Contracts,Programme
HM Land Registry,HM Land Registry,16/03/2021,Stationery National Contracts,Facilities,Banner Group Limited,6007543,11.3,Stationery National Contracts,Programme
HM Land Registry,HM Land Registry,16/03/2021,Stationery National Contracts,Facilities,Banner Group Limited,6007543,59.37,Stationery National Contracts,Programme
HM Land Registry,HM Land Registry,16/03/2021,Stationery National Contracts,Facilities,Banner Group Limited,6007543,11.3,Stationery National Contracts,Programme
HM Land Registry,HM Land Registry,16/03/2021,Stationery National Contracts,Facilities,Banner Group Limited,6007543,11.97,Stationery National Contracts,Programme
HM Land Registry,HM Land Registry,16/03/2021,Stationery National Contracts,Facilities,Banner Group Limited,6007543,11.3,Stationery National Contracts,Programme
HM Land Registry,HM Land Registry,16/03/2021,Stationery National Contracts,Facilities,Banner Group Limited,6007543,11.3,Stationery National Contracts,Programme
HM Land Registry,HM Land Registry,16/03/2021,Stationery National Contracts,Facilities,Banner Group Limited,6007543,13.34,Stationery National Contracts,Programme
HM Land Registry,HM Land Registry,16/03/2021,Stationery National Contracts,Facilities,Banner Group Limited,6007543,11.3,Stationery National Contracts,Programme
HM Land Registry,HM Land Registry,16/03/2021,Stationery National Contracts,Facilities,Banner Group Limited,6007543,11.3,Stationery National Contracts,Programme
HM Land Registry,HM Land Registry,16/03/2021,Stationery National Contracts,Facilities,Banner Group Limited,6007543,11.97,Stationery National Contracts,Programme
HM Land Registry,HM Land Registry,16/03/2021,Stationery National Contracts,Facilities,Banner Group Limited,6007543,19.95,Stationery National Contracts,Programme
HM Land Registry,HM Land Registry,16/03/2021,Stationery National Contracts,Facilities,Banner Group Limited,6007543,7.05,Stationery National Contracts,Programme
HM Land Registry,HM Land Registry,16/03/2021,Stationery National Contracts,Facilities,Banner Group Limited,6007543,16.39,Stationery National Contracts,Programme
HM Land Registry,HM Land Registry,16/03/2021,Stationery National Contracts,Facilities,Banner Group Limited,6007543,7.67,Stationery National Contracts,Programme
HM Land Registry,HM Land Registry,16/03/2021,Stationery National Contracts,Facilities,Banner Group Limited,6007543,1.78,Stationery National Contracts,Programme
HM Land Registry,HM Land Registry,16/03/2021,Stationery National Contracts,Facilities,Banner Group Limited,6007543,19.95,Stationery National Contracts,Programme
HM Land Registry,HM Land Registry,16/03/2021,Stationery National Contracts,Facilities,Banner Group Limited,6007543,11.3,Stationery National Contracts,Programme
HM Land Registry,HM Land Registry,16/03/2021,Stationery National Contracts,Facilities,Banner Group Limited,6007543,11.97,Stationery National Contracts,Programme
HM Land Registry,HM Land Registry,16/03/2021,Stationery National Contracts,Facilities,Banner Group Limited,6007543,17.64,Stationery National Contracts,Programme
HM Land Registry,HM Land Registry,16/03/2021,Stationery National Contracts,Facilities,Banner Group Limited,6007543,35.9,Stationery National Contracts,Programme
HM Land Registry,HM Land Registry,16/03/2021,Stationery National Contracts,Facilities,Banner Group Limited,6007543,13.4,Stationery National Contracts,Programme
HM Land Registry,HM Land Registry,16/03/2021,Stationery National Contracts,Facilities,Banner Group Limited,6007543,41.81,Stationery National Contracts,Programme
HM Land Registry,HM Land Registry,16/03/2021,Stationery National Contracts,Facilities,Banner Group Limited,6007543,6.6,Stationery National Contracts,Programme
HM Land Registry,HM Land Registry,16/03/2021,Stationery National Contracts,Facilities,Banner Group Limited,6007543,38.63,Stationery National Contracts,Programme
HM Land Registry,HM Land Registry,16/03/2021,Stationery National Contracts,Facilities,Banner Group Limited,6007543,19.95,Stationery National Contracts,Programme
HM Land Registry,HM Land Registry,16/03/2021,Stationery National Contracts,Facilities,Banner Group Limited,6007543,15.2,Stationery National Contracts,Programme
HM Land Registry,HM Land Registry,16/03/2021,Stationery National Contracts,Facilities,Banner Group Limited,6007543,8.78,Stationery National Contracts,Programme
HM Land Registry,HM Land Registry,16/03/2021,Stationery National Contracts,Facilities,Banner Group Limited,6007543,17.6,Stationery National Contracts,Programme
HM Land Registry,HM Land Registry,16/03/2021,Stationery National Contracts,Facilities,Banner Group Limited,6007543,3.92,Stationery National Contracts,Programme
HM Land Registry,HM Land Registry,16/03/2021,Stationery National Contracts,Facilities,Banner Group Limited,6007543,2.12,Stationery National Contracts,Programme
HM Land Registry,HM Land Registry,16/03/2021,Stationery National Contracts,Facilities,Banner Group Limited,6007543,0.55,Stationery National Contracts,Programme
HM Land Registry,HM Land Registry,16/03/2021,Stationery National Contracts,Facilities,Banner Group Limited,6007543,0.74,Stationery National Contracts,Programme
HM Land Registry,HM Land Registry,16/03/2021,Stationery National Contracts,Facilities,Banner Group Limited,6007543,14.99,Stationery National Contracts,Programme
HM Land Registry,HM Land Registry,16/03/2021,Stationery National Contracts,Facilities,Banner Group Limited,6007543,9.24,Stationery National Contracts,Programme
HM Land Registry,HM Land Registry,16/03/2021,Stationery National Contracts,Facilities,Banner Group Limited,6007543,91.47,Stationery National Contracts,Programme
HM Land Registry,HM Land Registry,16/03/2021,Stationery National Contracts,Facilities,Banner Group Limited,6007543,8.3,Stationery National Contracts,Programme
HM Land Registry,HM Land Registry,16/03/2021,Stationery National Contracts,Facilities,Banner Group Limited,6007543,2.2,Stationery National Contracts,Programme
HM Land Registry,HM Land Registry,16/03/2021,Stationery National Contracts,Facilities,Banner Group Limited,6007543,13.24,Stationery National Contracts,Programme
HM Land Registry,HM Land Registry,16/03/2021,Stationery National Contracts,Facilities,Banner Group Limited,6007543,51.12,Stationery National Contracts,Programme
HM Land Registry,HM Land Registry,16/03/2021,Stationery National Contracts,Facilities,Banner Group Limited,6007543,52.8,Stationery National Contracts,Programme
HM Land Registry,HM Land Registry,16/03/2021,Stationery National Contracts,Facilities,Banner Group Limited,6007543,8.82,Stationery National Contracts,Programme
HM Land Registry,HM Land Registry,16/03/2021,Stationery National Contracts,Facilities,Banner Group Limited,6007543,11.3,Stationery National Contracts,Programme
HM Land Registry,HM Land Registry,16/03/2021,Stationery National Contracts,Facilities,Banner Group Limited,6007543,6.6,Stationery National Contracts,Programme
HM Land Registry,HM Land Registry,16/03/2021,Stationery National Contracts,Facilities,Banner Group Limited,6007543,23.79,Stationery National Contracts,Programme
HM Land Registry,HM Land Registry,16/03/2021,Stationery National Contracts,Facilities,Banner Group Limited,6007543,19.95,Stationery National Contracts,Programme
HM Land Registry,HM Land Registry,16/03/2021,Stationery National Contracts,Facilities,Banner Group Limited,6007543,19.95,Stationery National Contracts,Programme
HM Land Registry,HM Land Registry,16/03/2021,Stationery National Contracts,Facilities,Banner Group Limited,6007543,7.6,Stationery National Contracts,Programme
HM Land Registry,HM Land Registry,16/03/2021,Stationery National Contracts,Facilities,Banner Group Limited,6007543,41.81,Stationery National Contracts,Programme
HM Land Registry,HM Land Registry,16/03/2021,Stationery National Contracts,Facilities,Banner Group Limited,6007543,1.08,Stationery National Contracts,Programme
HM Land Registry,HM Land Registry,16/03/2021,Stationery National Contracts,Facilities,Banner Group Limited,6007543,8.82,Stationery National Contracts,Programme
HM Land Registry,HM Land Registry,16/03/2021,Stationery National Contracts,Facilities,Banner Group Limited,6007543,6.6,Stationery National Contracts,Programme
HM Land Registry,HM Land Registry,16/03/2021,Stationery National Contracts,Facilities,Banner Group Limited,6007543,19.95,Stationery National Contracts,Programme
HM Land Registry,HM Land Registry,16/03/2021,Stationery National Contracts,Facilities,Banner Group Limited,6007543,13.23,Stationery National Contracts,Programme
HM Land Registry,HM Land Registry,16/03/2021,Stationery National Contracts,Facilities,Banner Group Limited,6007543,56.5,Stationery National Contracts,Programme
HM Land Registry,HM Land Registry,16/03/2021,Stationery National Contracts,Facilities,Banner Group Limited,6007543,18.25,Stationery National Contracts,Programme
HM Land Registry,HM Land Registry,16/03/2021,Stationery National Contracts,Facilities,Banner Group Limited,6007543,18.25,Stationery National Contracts,Programme
HM Land Registry,HM Land Registry,16/03/2021,Stationery National Contracts,Facilities,Banner Group Limited,6007543,18.25,Stationery National Contracts,Programme
HM Land Registry,HM Land Registry,16/03/2021,Stationery National Contracts,Facilities,Banner Group Limited,6007543,18.25,Stationery National Contracts,Programme
HM Land Registry,HM Land Registry,16/03/2021,Stationery National Contracts,Facilities,Banner Group Limited,6007543,19.95,Stationery National Contracts,Programme
HM Land Registry,HM Land Registry,16/03/2021,Stationery National Contracts,Facilities,Banner Group Limited,6007543,0.6,Stationery National Contracts,Programme
HM Land Registry,HM Land Registry,16/03/2021,Stationery National Contracts,Facilities,Banner Group Limited,6007543,0.36,Stationery National Contracts,Programme
HM Land Registry,HM Land Registry,16/03/2021,Stationery National Contracts,Facilities,Banner Group Limited,6007543,16.95,Stationery National Contracts,Programme
HM Land Registry,HM Land Registry,16/03/2021,Stationery National Contracts,Facilities,Banner Group Limited,6007543,18.78,Stationery National Contracts,Programme
HM Land Registry,HM Land Registry,16/03/2021,Stationery National Contracts,Facilities,Banner Group Limited,6007543,5.74,Stationery National Contracts,Programme
HM Land Registry,HM Land Registry,16/03/2021,Stationery National Contracts,Facilities,Banner Group Limited,6007543,36.36,Stationery National Contracts,Programme
HM Land Registry,HM Land Registry,16/03/2021,Stationery National Contracts,Facilities,Banner Group Limited,6007543,45.12,Stationery National Contracts,Programme
HM Land Registry,HM Land Registry,16/03/2021,Stationery National Contracts,Facilities,Banner Group Limited,6007543,0.6,Stationery National Contracts,Programme
HM Land Registry,HM Land Registry,16/03/2021,Stationery National Contracts,Facilities,Banner Group Limited,6007543,3.28,Stationery National Contracts,Programme
HM Land Registry,HM Land Registry,16/03/2021,Stationery National Contracts,Facilities,Banner Group Limited,6007543,3.08,Stationery National Contracts,Programme
HM Land Registry,HM Land Registry,16/03/2021,Stationery National Contracts,Facilities,Banner Group Limited,6007543,56.8,Stationery National Contracts,Programme
HM Land Registry,HM Land Registry,16/03/2021,Stationery National Contracts,Facilities,Banner Group Limited,6007543,18.27,Stationery National Contracts,Programme
HM Land Registry,HM Land Registry,16/03/2021,Stationery National Contracts,Facilities,Banner Group Limited,6007543,85.2,Stationery National Contracts,Programme
HM Land Registry,HM Land Registry,16/03/2021,Stationery National Contracts,Facilities,Banner Group Limited,6007543,9.9,Stationery National Contracts,Programme
HM Land Registry,HM Land Registry,16/03/2021,Stationery National Contracts,Facilities,Banner Group Limited,6007543,18.78,Stationery National Contracts,Programme
HM Land Registry,HM Land Registry,16/03/2021,Stationery National Contracts,Facilities,Banner Group Limited,6007543,13.23,Stationery National Contracts,Programme
HM Land Registry,HM Land Registry,16/03/2021,Stationery National Contracts,Facilities,Banner Group Limited,6007543,1.63,Stationery National Contracts,Programme
HM Land Registry,HM Land Registry,16/03/2021,Stationery National Contracts,Facilities,Banner Group Limited,6007543,4.41,Stationery National Contracts,Programme
HM Land Registry,HM Land Registry,16/03/2021,Stationery National Contracts,Facilities,Banner Group Limited,6007543,3.39,Stationery National Contracts,Programme
HM Land Registry,HM Land Registry,16/03/2021,Stationery National Contracts,Facilities,Banner Group Limited,6007543,6.09,Stationery National Contracts,Programme
HM Land Registry,HM Land Registry,16/03/2021,Stationery National Contracts,Facilities,Banner Group Limited,6007543,3.28,Stationery National Contracts,Programme
HM Land Registry,HM Land Registry,16/03/2021,Stationery National Contracts,Facilities,Banner Group Limited,6007543,4.54,Stationery National Contracts,Programme
HM Land Registry,HM Land Registry,16/03/2021,Stationery National Contracts,Facilities,Banner Group Limited,6007543,1.08,Stationery National Contracts,Programme
HM Land Registry,HM Land Registry,16/03/2021,Stationery National Contracts,Facilities,Banner Group Limited,6007543,14.64,Stationery National Contracts,Programme
HM Land Registry,HM Land Registry,16/03/2021,Stationery National Contracts,Facilities,Banner Group Limited,6007543,7.98,Stationery National Contracts,Programme
HM Land Registry,HM Land Registry,16/03/2021,Stationery National Contracts,Facilities,Banner Group Limited,6007543,4.41,Stationery National Contracts,Programme
HM Land Registry,HM Land Registry,16/03/2021,Stationery National Contracts,Facilities,Banner Group Limited,6007543,10.17,Stationery National Contracts,Programme
HM Land Registry,HM Land Registry,16/03/2021,Stationery National Contracts,Facilities,Banner Group Limited,6007543,56.4,Stationery National Contracts,Programme
HM Land Registry,HM Land Registry,16/03/2021,Stationery National Contracts,Facilities,Banner Group Limited,6007543,33.28,Stationery National Contracts,Programme
HM Land Registry,HM Land Registry,16/03/2021,Stationery National Contracts,Facilities,Banner Group Limited,6007543,7.6,Stationery National Contracts,Programme
HM Land Registry,HM Land Registry,16/03/2021,Stationery National Contracts,Facilities,Banner Group Limited,6007543,41.81,Stationery National Contracts,Programme
HM Land Registry,HM Land Registry,16/03/2021,Stationery National Contracts,Facilities,Banner Group Limited,6007543,55.96,Stationery National Contracts,Programme
HM Land Registry,HM Land Registry,16/03/2021,Stationery National Contracts,Facilities,Banner Group Limited,6007543,6.6,Stationery National Contracts,Programme
HM Land Registry,HM Land Registry,16/03/2021,Stationery National Contracts,Facilities,Banner Group Limited,6007543,4.88,Stationery National Contracts,Programme
HM Land Registry,HM Land Registry,16/03/2021,Stationery National Contracts,Facilities,Banner Group Limited,6007543,4.54,Stationery National Contracts,Programme
HM Land Registry,HM Land Registry,16/03/2021,Stationery National Contracts,Facilities,Banner Group Limited,6007543,0.65,Stationery National Contracts,Programme
HM Land Registry,HM Land Registry,16/03/2021,Stationery National Contracts,Facilities,Banner Group Limited,6007543,18.27,Stationery National Contracts,Programme
HM Land Registry,HM Land Registry,16/03/2021,Stationery National Contracts,Facilities,Banner Group Limited,6007543,60.98,Stationery National Contracts,Programme
HM Land Registry,HM Land Registry,16/03/2021,Stationery National Contracts,Facilities,Banner Group Limited,6007543,15.11,Stationery National Contracts,Programme
HM Land Registry,HM Land Registry,16/03/2021,Stationery National Contracts,Facilities,Banner Group Limited,6007543,23.79,Stationery National Contracts,Programme
HM Land Registry,HM Land Registry,16/03/2021,Stationery National Contracts,Facilities,Banner Group Limited,6007543,4.41,Stationery National Contracts,Programme
HM Land Registry,HM Land Registry,16/03/2021,Stationery National Contracts,Facilities,Banner Group Limited,6007543,3.39,Stationery National Contracts,Programme
HM Land Registry,HM Land Registry,16/03/2021,Stationery National Contracts,Facilities,Banner Group Limited,6007543,19.95,Stationery National Contracts,Programme
HM Land Registry,HM Land Registry,16/03/2021,Stationery National Contracts,Facilities,Banner Group Limited,6007543,46.34,Stationery National Contracts,Programme
HM Land Registry,HM Land Registry,16/03/2021,Stationery National Contracts,Facilities,Banner Group Limited,6007543,54.94,Stationery National Contracts,Programme
HM Land Registry,HM Land Registry,16/03/2021,Stationery National Contracts,Facilities,Banner Group Limited,6007543,1.63,Stationery National Contracts,Programme
HM Land Registry,HM Land Registry,16/03/2021,Stationery National Contracts,Facilities,Banner Group Limited,6007543,0.3,Stationery National Contracts,Programme
HM Land Registry,HM Land Registry,16/03/2021,Stationery National Contracts,Facilities,Banner Group Limited,6007543,4.47,Stationery National Contracts,Programme
HM Land Registry,HM Land Registry,16/03/2021,Stationery National Contracts,Facilities,Banner Group Limited,6007543,2.64,Stationery National Contracts,Programme
HM Land Registry,HM Land Registry,16/03/2021,Stationery National Contracts,Facilities,Banner Group Limited,6007543,54.94,Stationery National Contracts,Programme
HM Land Registry,HM Land Registry,16/03/2021,Stationery National Contracts,Facilities,Banner Group Limited,6007543,17.64,Stationery National Contracts,Programme
HM Land Registry,HM Land Registry,16/03/2021,Stationery National Contracts,Facilities,Banner Group Limited,6007543,30.49,Stationery National Contracts,Programme
HM Land Registry,HM Land Registry,16/03/2021,Stationery National Contracts,Facilities,Banner Group Limited,6007543,3.8,Stationery National Contracts,Programme
HM Land Registry,HM Land Registry,16/03/2021,Stationery National Contracts,Facilities,Banner Group Limited,6007543,46.34,Stationery National Contracts,Programme
HM Land Registry,HM Land Registry,16/03/2021,Stationery National Contracts,Facilities,Banner Group Limited,6007543,18.92,Stationery National Contracts,Programme
HM Land Registry,HM Land Registry,16/03/2021,Stationery National Contracts,Facilities,Banner Group Limited,6007543,20.5,Stationery National Contracts,Programme
HM Land Registry,HM Land Registry,16/03/2021,Stationery National Contracts,Facilities,Banner Group Limited,6007543,22.8,Stationery National Contracts,Programme
HM Land Registry,HM Land Registry,16/03/2021,Stationery National Contracts,Facilities,Banner Group Limited,6007543,91.47,Stationery National Contracts,Programme
HM Land Registry,HM Land Registry,16/03/2021,Stationery National Contracts,Facilities,Banner Group Limited,6007543,152.45,Stationery National Contracts,Programme
HM Land Registry,HM Land Registry,16/03/2021,Stationery National Contracts,Facilities,Banner Group Limited,6007543,2.95,Stationery National Contracts,Programme
HM Land Registry,HM Land Registry,16/03/2021,Stationery National Contracts,Facilities,Banner Group Limited,6007543,46.34,Stationery National Contracts,Programme
HM Land Registry,HM Land Registry,16/03/2021,Stationery National Contracts,Facilities,Banner Group Limited,6007543,24.57,Stationery National Contracts,Programme
HM Land Registry,HM Land Registry,16/03/2021,Stationery National Contracts,Facilities,Banner Group Limited,6007543,91.47,Stationery National Contracts,Programme
HM Land Registry,HM Land Registry,16/03/2021,Stationery National Contracts,Facilities,Banner Group Limited,6007543,5.83,Stationery National Contracts,Programme
HM Land Registry,HM Land Registry,16/03/2021,Stationery National Contracts,Facilities,Banner Group Limited,6007543,365,Stationery National Contracts,Programme
HM Land Registry,HM Land Registry,16/03/2021,Stationery National Contracts,Facilities,Banner Group Limited,6007543,109.5,Stationery National Contracts,Programme
HM Land Registry,HM Land Registry,16/03/2021,Stationery National Contracts,Facilities,Banner Group Limited,6007543,19.8,Stationery National Contracts,Programme
HM Land Registry,HM Land Registry,16/03/2021,Stationery National Contracts,Facilities,Banner Group Limited,6007543,270.2,Stationery National Contracts,Programme
HM Land Registry,HM Land Registry,16/03/2021,Stationery National Contracts,Facilities,Banner Group Limited,6007543,109.08,Stationery National Contracts,Programme
HM Land Registry,HM Land Registry,16/03/2021,Stationery National Contracts,Facilities,Banner Group Limited,6007543,66.56,Stationery National Contracts,Programme
HM Land Registry,HM Land Registry,16/03/2021,Stationery National Contracts,Facilities,Banner Group Limited,6007543,66.56,Stationery National Contracts,Programme
HM Land Registry,HM Land Registry,16/03/2021,Stationery National Contracts,Facilities,Banner Group Limited,6007543,25.28,Stationery National Contracts,Programme
HM Land Registry,HM Land Registry,16/03/2021,Stationery National Contracts,Facilities,Banner Group Limited,6007543,2.96,Stationery National Contracts,Programme
HM Land Registry,HM Land Registry,16/03/2021,Stationery National Contracts,Facilities,Banner Group Limited,6007543,19.8,Stationery National Contracts,Programme
HM Land Registry,HM Land Registry,16/03/2021,Stationery National Contracts,Facilities,Banner Group Limited,6007543,22.8,Stationery National Contracts,Programme
HM Land Registry,HM Land Registry,16/03/2021,Stationery National Contracts,Facilities,Banner Group Limited,6007543,88.8,Stationery National Contracts,Programme
HM Land Registry,HM Land Registry,16/03/2021,Stationery National Contracts,Facilities,Banner Group Limited,6007543,79.8,Stationery National Contracts,Programme
HM Land Registry,HM Land Registry,16/03/2021,Stationery National Contracts,Facilities,Banner Group Limited,6007543,4.7,Stationery National Contracts,Programme
HM Land Registry,HM Land Registry,16/03/2021,Stationery National Contracts,Facilities,Banner Group Limited,6007543,3.36,Stationery National Contracts,Programme
HM Land Registry,HM Land Registry,16/03/2021,Stationery National Contracts,Facilities,Banner Group Limited,6007543,34.18,Stationery National Contracts,Programme
HM Land Registry,HM Land Registry,16/03/2021,Stationery National Contracts,Facilities,Banner Group Limited,6007543,19.95,Stationery National Contracts,Programme
HM Land Registry,HM Land Registry,16/03/2021,Stationery National Contracts,Facilities,Banner Group Limited,6007543,67.68,Stationery National Contracts,Programme
HM Land Registry,HM Land Registry,16/03/2021,Stationery National Contracts,Facilities,Banner Group Limited,6007543,33.5,Stationery National Contracts,Programme
HM Land Registry,HM Land Registry,16/03/2021,Stationery National Contracts,Facilities,Banner Group Limited,6007543,25.42,Stationery National Contracts,Programme
HM Land Registry,HM Land Registry,16/03/2021,Stationery National Contracts,Facilities,Banner Group Limited,6007543,2.96,Stationery National Contracts,Programme
HM Land Registry,HM Land Registry,16/03/2021,Stationery National Contracts,Facilities,Banner Group Limited,6007543,1,Stationery National Contracts,Programme
HM Land Registry,HM Land Registry,16/03/2021,Stationery National Contracts,Facilities,Banner Group Limited,6007543,0.5,Stationery National Contracts,Programme
HM Land Registry,HM Land Registry,16/03/2021,Stationery National Contracts,Facilities,Banner Group Limited,6007543,3.96,Stationery National Contracts,Programme
HM Land Registry,HM Land Registry,16/03/2021,Stationery National Contracts,Facilities,Banner Group Limited,6007543,22.56,Stationery National Contracts,Programme
HM Land Registry,HM Land Registry,16/03/2021,Stationery National Contracts,Facilities,Banner Group Limited,6007543,3.8,Stationery National Contracts,Programme
HM Land Registry,HM Land Registry,16/03/2021,Stationery National Contracts,Facilities,Banner Group Limited,6007543,16.39,Stationery National Contracts,Programme
HM Land Registry,HM Land Registry,16/03/2021,Stationery National Contracts,Facilities,Banner Group Limited,6007543,0.2,Stationery National Contracts,Programme
HM Land Registry,HM Land Registry,16/03/2021,Stationery National Contracts,Facilities,Banner Group Limited,6007543,6.12,Stationery National Contracts,Programme
HM Land Registry,HM Land Registry,16/03/2021,Stationery National Contracts,Facilities,Banner Group Limited,6007543,22.2,Stationery National Contracts,Programme
HM Land Registry,HM Land Registry,16/03/2021,Stationery National Contracts,Facilities,Banner Group Limited,6007543,2.73,Stationery National Contracts,Programme
HM Land Registry,HM Land Registry,16/03/2021,Stationery National Contracts,Facilities,Banner Group Limited,6007543,18.18,Stationery National Contracts,Programme
HM Land Registry,HM Land Registry,16/03/2021,Stationery National Contracts,Facilities,Banner Group Limited,6007543,2.2,Stationery National Contracts,Programme
HM Land Registry,HM Land Registry,16/03/2021,Stationery National Contracts,Facilities,Banner Group Limited,6007543,16.18,Stationery National Contracts,Programme
HM Land Registry,HM Land Registry,16/03/2021,Stationery National Contracts,Facilities,Banner Group Limited,6007543,54.04,Stationery National Contracts,Programme
HM Land Registry,HM Land Registry,16/03/2021,Stationery National Contracts,Facilities,Banner Group Limited,6007543,54.04,Stationery National Contracts,Programme
HM Land Registry,HM Land Registry,16/03/2021,Stationery National Contracts,Facilities,Banner Group Limited,6007543,133.38,Stationery National Contracts,Programme
HM Land Registry,HM Land Registry,16/03/2021,Stationery National Contracts,Facilities,Banner Group Limited,6007543,64.04,Stationery National Contracts,Programme
HM Land Registry,HM Land Registry,16/03/2021,Stationery National Contracts,Facilities,Banner Group Limited,6007543,0.79,Stationery National Contracts,Programme
HM Land Registry,HM Land Registry,16/03/2021,Stationery National Contracts,Facilities,Banner Group Limited,6007543,1.35,Stationery National Contracts,Programme
HM Land Registry,HM Land Registry,16/03/2021,Stationery National Contracts,Facilities,Banner Group Limited,6007543,0.55,Stationery National Contracts,Programme
HM Land Registry,HM Land Registry,16/03/2021,Stationery National Contracts,Facilities,Banner Group Limited,6007543,0.79,Stationery National Contracts,Programme
HM Land Registry,HM Land Registry,16/03/2021,Stationery National Contracts,Facilities,Banner Group Limited,6007543,3,Stationery National Contracts,Programme
HM Land Registry,HM Land Registry,16/03/2021,Stationery National Contracts,Facilities,Banner Group Limited,6007543,0.9,Stationery National Contracts,Programme
HM Land Registry,HM Land Registry,16/03/2021,Stationery National Contracts,Facilities,Banner Group Limited,6007543,2.35,Stationery National Contracts,Programme
HM Land Registry,HM Land Registry,16/03/2021,Stationery National Contracts,Facilities,Banner Group Limited,6007543,158.2,Stationery National Contracts,Programme
HM Land Registry,HM Land Registry,16/03/2021,Stationery National Contracts,Facilities,Banner Group Limited,6007543,67.6,Stationery National Contracts,Programme
HM Land Registry,HM Land Registry,16/03/2021,Stationery National Contracts,Facilities,Banner Group Limited,6007543,26.7,Stationery National Contracts,Programme
HM Land Registry,HM Land Registry,16/03/2021,Stationery National Contracts,Facilities,Banner Group Limited,6007543,4.54,Stationery National Contracts,Programme
HM Land Registry,HM Land Registry,16/03/2021,Stationery National Contracts,Facilities,Banner Group Limited,6007543,0.94,Stationery National Contracts,Programme
HM Land Registry,HM Land Registry,16/03/2021,Stationery National Contracts,Facilities,Banner Group Limited,6007543,4.62,Stationery National Contracts,Programme
HM Land Registry,HM Land Registry,16/03/2021,Stationery National Contracts,Facilities,Banner Group Limited,6007543,6.15,Stationery National Contracts,Programme
HM Land Registry,HM Land Registry,16/03/2021,Stationery National Contracts,Facilities,Banner Group Limited,6007543,4.73,Stationery National Contracts,Programme
HM Land Registry,HM Land Registry,16/03/2021,Stationery National Contracts,Facilities,Banner Group Limited,6007543,3.43,Stationery National Contracts,Programme
HM Land Registry,HM Land Registry,16/03/2021,Stationery National Contracts,Facilities,Banner Group Limited,6007543,7.25,Stationery National Contracts,Programme
HM Land Registry,HM Land Registry,16/03/2021,Stationery National Contracts,Facilities,Banner Group Limited,6007543,2.37,Stationery National Contracts,Programme
HM Land Registry,HM Land Registry,16/03/2021,Stationery National Contracts,Facilities,Banner Group Limited,6007543,3.9,Stationery National Contracts,Programme
HM Land Registry,HM Land Registry,16/03/2021,Stationery National Contracts,Facilities,Banner Group Limited,6007543,5.64,Stationery National Contracts,Programme
HM Land Registry,HM Land Registry,16/03/2021,Stationery National Contracts,Facilities,Banner Group Limited,6007543,0.99,Stationery National Contracts,Programme
HM Land Registry,HM Land Registry,16/03/2021,Stationery National Contracts,Facilities,Banner Group Limited,6007543,18.25,Stationery National Contracts,Programme
HM Land Registry,HM Land Registry,16/03/2021,Stationery National Contracts,Facilities,Banner Group Limited,6007543,18.25,Stationery National Contracts,Programme
HM Land Registry,HM Land Registry,16/03/2021,Stationery National Contracts,Facilities,Banner Group Limited,6007543,18.25,Stationery National Contracts,Programme
HM Land Registry,HM Land Registry,16/03/2021,Stationery National Contracts,Facilities,Banner Group Limited,6007543,18.25,Stationery National Contracts,Programme
HM Land Registry,HM Land Registry,16/03/2021,Stationery National Contracts,Facilities,Banner Group Limited,6007543,18.25,Stationery National Contracts,Programme
HM Land Registry,HM Land Registry,16/03/2021,Stationery National Contracts,Facilities,Banner Group Limited,6007543,18.25,Stationery National Contracts,Programme
HM Land Registry,HM Land Registry,16/03/2021,Stationery National Contracts,Facilities,Banner Group Limited,6007543,46.98,Stationery National Contracts,Programme
HM Land Registry,HM Land Registry,16/03/2021,Stationery National Contracts,Facilities,Banner Group Limited,6007543,18.25,Stationery National Contracts,Programme
HM Land Registry,HM Land Registry,16/03/2021,Stationery National Contracts,Facilities,Banner Group Limited,6007543,18.25,Stationery National Contracts,Programme
HM Land Registry,HM Land Registry,16/03/2021,Stationery National Contracts,Facilities,Banner Group Limited,6007543,19.95,Stationery National Contracts,Programme
HM Land Registry,HM Land Registry,16/03/2021,Stationery National Contracts,Facilities,Banner Group Limited,6007543,19.95,Stationery National Contracts,Programme
HM Land Registry,HM Land Registry,16/03/2021,Stationery National Contracts,Facilities,Banner Group Limited,6007543,19.95,Stationery National Contracts,Programme
HM Land Registry,HM Land Registry,16/03/2021,Stationery National Contracts,Facilities,Banner Group Limited,6007543,19.95,Stationery National Contracts,Programme
HM Land Registry,HM Land Registry,16/03/2021,Stationery National Contracts,Facilities,Banner Group Limited,6007543,23.79,Stationery National Contracts,Programme
HM Land Registry,HM Land Registry,16/03/2021,Stationery National Contracts,Facilities,Banner Group Limited,6007543,1.14,Stationery National Contracts,Programme
HM Land Registry,HM Land Registry,16/03/2021,Stationery National Contracts,Facilities,Banner Group Limited,6007543,1.34,Stationery National Contracts,Programme
HM Land Registry,HM Land Registry,16/03/2021,Stationery National Contracts,Facilities,Banner Group Limited,6007543,0.89,Stationery National Contracts,Programme
HM Land Registry,HM Land Registry,16/03/2021,Stationery National Contracts,Facilities,Banner Group Limited,6007543,0.84,Stationery National Contracts,Programme
HM Land Registry,HM Land Registry,16/03/2021,Stationery National Contracts,Facilities,Banner Group Limited,6007543,1.02,Stationery National Contracts,Programme
HM Land Registry,HM Land Registry,16/03/2021,Stationery National Contracts,Facilities,Banner Group Limited,6007543,1.06,Stationery National Contracts,Programme
HM Land Registry,HM Land Registry,16/03/2021,Stationery National Contracts,Facilities,Banner Group Limited,6007543,26.47,Stationery National Contracts,Programme
HM Land Registry,HM Land Registry,16/03/2021,Stationery National Contracts,Facilities,Banner Group Limited,6007543,14.86,Stationery National Contracts,Programme
HM Land Registry,HM Land Registry,16/03/2021,Stationery National Contracts,Facilities,Banner Group Limited,6007543,26.47,Stationery National Contracts,Programme
HM Land Registry,HM Land Registry,16/03/2021,Stationery National Contracts,Facilities,Banner Group Limited,6007543,1.14,Stationery National Contracts,Programme
HM Land Registry,HM Land Registry,16/03/2021,Stationery National Contracts,Facilities,Banner Group Limited,6007543,0.84,Stationery National Contracts,Programme
HM Land Registry,HM Land Registry,16/03/2021,Stationery National Contracts,Facilities,Banner Group Limited,6007543,1.02,Stationery National Contracts,Programme
HM Land Registry,HM Land Registry,16/03/2021,Stationery National Contracts,Facilities,Banner Group Limited,6007543,1.06,Stationery National Contracts,Programme
HM Land Registry,HM Land Registry,16/03/2021,Stationery National Contracts,Facilities,Banner Group Limited,6007543,1.04,Stationery National Contracts,Programme
HM Land Registry,HM Land Registry,16/03/2021,Stationery National Contracts,Facilities,Banner Group Limited,6007543,19.95,Stationery National Contracts,Programme
HM Land Registry,HM Land Registry,16/03/2021,Stationery National Contracts,Facilities,Banner Group Limited,6007543,19.95,Stationery National Contracts,Programme
HM Land Registry,HM Land Registry,16/03/2021,Stationery National Contracts,Facilities,Banner Group Limited,6007543,4.41,Stationery National Contracts,Programme
HM Land Registry,HM Land Registry,16/03/2021,Stationery National Contracts,Facilities,Banner Group Limited,6007543,6.09,Stationery National Contracts,Programme
HM Land Registry,HM Land Registry,16/03/2021,Stationery National Contracts,Facilities,Banner Group Limited,6007543,19.95,Stationery National Contracts,Programme
HM Land Registry,HM Land Registry,16/03/2021,Stationery National Contracts,Facilities,Banner Group Limited,6007543,23.79,Stationery National Contracts,Programme
HM Land Registry,HM Land Registry,16/03/2021,Stationery National Contracts,Facilities,Banner Group Limited,6007543,6.6,Stationery National Contracts,Programme
HM Land Registry,HM Land Registry,16/03/2021,Stationery National Contracts,Facilities,Banner Group Limited,6007543,19.95,Stationery National Contracts,Programme
HM Land Registry,HM Land Registry,16/03/2021,Stationery National Contracts,Facilities,Banner Group Limited,6007543,1.38,Stationery National Contracts,Programme
HM Land Registry,HM Land Registry,16/03/2021,Stationery National Contracts,Facilities,Banner Group Limited,6007543,2,Stationery National Contracts,Programme
HM Land Registry,HM Land Registry,16/03/2021,Stationery National Contracts,Facilities,Banner Group Limited,6007543,0.94,Stationery National Contracts,Programme
HM Land Registry,HM Land Registry,16/03/2021,Stationery National Contracts,Facilities,Banner Group Limited,6007543,0.87,Stationery National Contracts,Programme
HM Land Registry,HM Land Registry,16/03/2021,Stationery National Contracts,Facilities,Banner Group Limited,6007543,0.57,Stationery National Contracts,Programme
HM Land Registry,HM Land Registry,16/03/2021,Stationery National Contracts,Facilities,Banner Group Limited,6007543,0.89,Stationery National Contracts,Programme
HM Land Registry,HM Land Registry,16/03/2021,Stationery National Contracts,Facilities,Banner Group Limited,6007543,23.79,Stationery National Contracts,Programme
HM Land Registry,HM Land Registry,16/03/2021,Stationery National Contracts,Facilities,Banner Group Limited,6007543,19.95,Stationery National Contracts,Programme
HM Land Registry,HM Land Registry,16/03/2021,Stationery National Contracts,Facilities,Banner Group Limited,6007543,4.41,Stationery National Contracts,Programme
HM Land Registry,HM Land Registry,16/03/2021,Stationery National Contracts,Facilities,Banner Group Limited,6007543,4.41,Stationery National Contracts,Programme
HM Land Registry,HM Land Registry,16/03/2021,Stationery National Contracts,Facilities,Banner Group Limited,6007543,6.09,Stationery National Contracts,Programme
HM Land Registry,HM Land Registry,16/03/2021,Stationery National Contracts,Facilities,Banner Group Limited,6007543,19.95,Stationery National Contracts,Programme
HM Land Registry,HM Land Registry,16/03/2021,Stationery National Contracts,Facilities,Banner Group Limited,6007543,23.79,Stationery National Contracts,Programme
HM Land Registry,HM Land Registry,16/03/2021,Stationery National Contracts,Facilities,Banner Group Limited,6007543,4.41,Stationery National Contracts,Programme
HM Land Registry,HM Land Registry,16/03/2021,Stationery National Contracts,Facilities,Banner Group Limited,6007543,4.41,Stationery National Contracts,Programme
HM Land Registry,HM Land Registry,16/03/2021,Stationery National Contracts,Facilities,Banner Group Limited,6007543,4.41,Stationery National Contracts,Programme
HM Land Registry,HM Land Registry,16/03/2021,Stationery National Contracts,Facilities,Banner Group Limited,6007543,30.88,Stationery National Contracts,Programme
HM Land Registry,HM Land Registry,16/03/2021,Stationery National Contracts,Facilities,Banner Group Limited,6007543,26.4,Stationery National Contracts,Programme
HM Land Registry,HM Land Registry,16/03/2021,Stationery National Contracts,Facilities,Banner Group Limited,6007543,730.5,Stationery National Contracts,Programme
HM Land Registry,HM Land Registry,16/03/2021,Stationery National Contracts,Facilities,Banner Group Limited,6007543,83.2,Stationery National Contracts,Programme
HM Land Registry,HM Land Registry,16/03/2021,Stationery National Contracts,Facilities,Banner Group Limited,6007543,22.06,Stationery National Contracts,Programme
HM Land Registry,HM Land Registry,16/03/2021,Stationery National Contracts,Facilities,Banner Group Limited,6007543,510.6,Stationery National Contracts,Programme
HM Land Registry,HM Land Registry,16/03/2021,Stationery National Contracts,Facilities,Banner Group Limited,6007543,479.4,Stationery National Contracts,Programme
HM Land Registry,HM Land Registry,16/03/2021,Stationery National Contracts,Facilities,Banner Group Limited,6007543,438.3,Stationery National Contracts,Programme
HM Land Registry,HM Land Registry,16/03/2021,Stationery National Contracts,Facilities,Banner Group Limited,6007543,511.35,Stationery National Contracts,Programme
HM Land Registry,HM Land Registry,16/03/2021,Stationery National Contracts,Facilities,Banner Group Limited,6007543,1.82,Stationery National Contracts,Programme
HM Land Registry,HM Land Registry,16/03/2021,Stationery National Contracts,Facilities,Banner Group Limited,6007543,1.58,Stationery National Contracts,Programme
HM Land Registry,HM Land Registry,16/03/2021,Stationery National Contracts,Facilities,Banner Group Limited,6007543,1.58,Stationery National Contracts,Programme
HM Land Registry,HM Land Registry,16/03/2021,Stationery National Contracts,Facilities,Banner Group Limited,6007543,292.2,Stationery National Contracts,Programme
HM Land Registry,HM Land Registry,16/03/2021,Stationery National Contracts,Facilities,Banner Group Limited,6007543,292.2,Stationery National Contracts,Programme
HM Land Registry,HM Land Registry,16/03/2021,Stationery National Contracts,Facilities,Banner Group Limited,6007543,11.58,Stationery National Contracts,Programme
HM Land Registry,HM Land Registry,16/03/2021,Stationery National Contracts,Facilities,Banner Group Limited,6007543,6.11,Stationery National Contracts,Programme
HM Land Registry,HM Land Registry,16/03/2021,Stationery National Contracts,Facilities,Banner Group Limited,6007543,53.6,Stationery National Contracts,Programme
HM Land Registry,HM Land Registry,16/03/2021,Stationery National Contracts,Facilities,Banner Group Limited,6007543,62.4,Stationery National Contracts,Programme
HM Land Registry,HM Land Registry,16/03/2021,Stationery National Contracts,Facilities,Banner Group Limited,6007543,16.48,Stationery National Contracts,Programme
HM Land Registry,HM Land Registry,16/03/2021,Stationery National Contracts,Facilities,Banner Group Limited,6007543,14.1,Stationery National Contracts,Programme
HM Land Registry,HM Land Registry,16/03/2021,Stationery National Contracts,Facilities,Banner Group Limited,6007543,4.4,Stationery National Contracts,Programme
HM Land Registry,HM Land Registry,16/03/2021,Stationery National Contracts,Facilities,Banner Group Limited,6007543,133.2,Stationery National Contracts,Programme
HM Land Registry,HM Land Registry,16/03/2021,Stationery National Contracts,Facilities,Banner Group Limited,6007543,69.78,Stationery National Contracts,Programme
HM Land Registry,HM Land Registry,16/03/2021,Stationery National Contracts,Facilities,Banner Group Limited,6007543,51.27,Stationery National Contracts,Programme
HM Land Registry,HM Land Registry,16/03/2021,Stationery National Contracts,Facilities,Banner Group Limited,6007543,7.25,Stationery National Contracts,Programme
HM Land Registry,HM Land Registry,16/03/2021,Stationery National Contracts,Facilities,Banner Group Limited,6007543,3.32,Stationery National Contracts,Programme
HM Land Registry,HM Land Registry,16/03/2021,Stationery National Contracts,Facilities,Banner Group Limited,6007543,0.66,Stationery National Contracts,Programme
HM Land Registry,HM Land Registry,16/03/2021,Stationery National Contracts,Facilities,Banner Group Limited,6007543,5.95,Stationery National Contracts,Programme
HM Land Registry,HM Land Registry,16/03/2021,Stationery National Contracts,Facilities,Banner Group Limited,6007543,8.78,Stationery National Contracts,Programme
HM Land Registry,HM Land Registry,16/03/2021,Stationery National Contracts,Facilities,Banner Group Limited,6007543,30.88,Stationery National Contracts,Programme
HM Land Registry,HM Land Registry,16/03/2021,Stationery National Contracts,Facilities,Banner Group Limited,6007543,933.02,Stationery National Contracts,Programme
HM Land Registry,HM Land Registry,16/03/2021,Stationery National Contracts,Facilities,Banner Group Limited,6007543,3944.13,Stationery National Contracts,Programme
HM Land Registry,HM Land Registry,16/03/2021,Stationery National Contracts,Facilities,Banner Group Limited,6007543,214.5,Stationery National Contracts,Programme
HM Land Registry,HM Land Registry,16/03/2021,Stationery National Contracts,Facilities,Banner Group Limited,6007543,97.5,Stationery National Contracts,Programme
HM Land Registry,HM Land Registry,16/03/2021,Stationery National Contracts,Facilities,Banner Group Limited,6007543,78,Stationery National Contracts,Programme
HM Land Registry,HM Land Registry,16/03/2021,Stationery National Contracts,Facilities,Banner Group Limited,6007543,78,Stationery National Contracts,Programme
HM Land Registry,HM Land Registry,16/03/2021,Stationery National Contracts,Facilities,Banner Group Limited,6007543,234,Stationery National Contracts,Programme
HM Land Registry,HM Land Registry,16/03/2021,Stationery National Contracts,Facilities,Banner Group Limited,6007543,195,Stationery National Contracts,Programme
HM Land Registry,HM Land Registry,16/03/2021,Stationery National Contracts,Facilities,Banner Group Limited,6007543,156,Stationery National Contracts,Programme
HM Land Registry,HM Land Registry,16/03/2021,Stationery National Contracts,Facilities,Banner Group Limited,6007543,156,Stationery National Contracts,Programme
HM Land Registry,HM Land Registry,16/03/2021,Stationery National Contracts,Facilities,Banner Group Limited,6007543,117,Stationery National Contracts,Programme
HM Land Registry,HM Land Registry,16/03/2021,Stationery National Contracts,Facilities,Banner Group Limited,6007543,195,Stationery National Contracts,Programme
HM Land Registry,HM Land Registry,16/03/2021,Stationery National Contracts,Facilities,Banner Group Limited,6007543,97.5,Stationery National Contracts,Programme
HM Land Registry,HM Land Registry,16/03/2021,Stationery National Contracts,Facilities,Banner Group Limited,6007543,214.5,Stationery National Contracts,Programme
HM Land Registry,HM Land Registry,16/03/2021,Stationery National Contracts,Facilities,Banner Group Limited,6007543,331.5,Stationery National Contracts,Programme
HM Land Registry,HM Land Registry,16/03/2021,Stationery National Contracts,Facilities,Banner Group Limited,6007543,156,Stationery National Contracts,Programme
HM Land Registry,HM Land Registry,16/03/2021,Stationery National Contracts,Facilities,Banner Group Limited,6007543,156,Stationery National Contracts,Programme
HM Land Registry,HM Land Registry,16/03/2021,Stationery National Contracts,Facilities,Banner Group Limited,6007543,494,Stationery National Contracts,Programme
HM Land Registry,HM Land Registry,16/03/2021,Stationery National Contracts,Facilities,Banner Group Limited,6007543,249.01,Stationery National Contracts,Programme
HM Land Registry,HM Land Registry,16/03/2021,Stationery National Contracts,Facilities,Banner Group Limited,6007543,61.5,Stationery National Contracts,Programme
HM Land Registry,HM Land Registry,16/03/2021,Stationery National Contracts,Facilities,Banner Group Limited,6007543,148.06,Stationery National Contracts,Programme
HM Land Registry,HM Land Registry,16/03/2021,Stationery National Contracts,Facilities,Banner Group Limited,6007543,2690.58,Stationery National Contracts,Programme
HM Land Registry,HM Land Registry,16/03/2021,Stationery National Contracts,Facilities,Banner Group Limited,6007543,104.56,Stationery National Contracts,Programme
HM Land Registry,HM Land Registry,16/03/2021,Stationery National Contracts,Facilities,Banner Group Limited,6007543,39.26,Stationery National Contracts,Programme
HM Land Registry,HM Land Registry,16/03/2021,Stationery National Contracts,Facilities,Banner Group Limited,6007543,250.36,Stationery National Contracts,Programme
HM Land Registry,HM Land Registry,16/03/2021,Stationery National Contracts,Facilities,Banner Group Limited,6007543,173.44,Stationery National Contracts,Programme
HM Land Registry,HM Land Registry,16/03/2021,Stationery National Contracts,Facilities,Banner Group Limited,6007543,79.44,Stationery National Contracts,Programme
HM Land Registry,HM Land Registry,16/03/2021,Stationery National Contracts,Facilities,Banner Group Limited,6007543,227.93,Stationery National Contracts,Programme
HM Land Registry,HM Land Registry,16/03/2021,Stationery National Contracts,Facilities,Banner Group Limited,6007543,103.22,Stationery National Contracts,Programme
HM Land Registry,HM Land Registry,16/03/2021,Stationery National Contracts,Facilities,Banner Group Limited,6007543,113.85,Stationery National Contracts,Programme
HM Land Registry,HM Land Registry,16/03/2021,Stationery National Contracts,Facilities,Banner Group Limited,6007543,92.41,Stationery National Contracts,Programme
HM Land Registry,HM Land Registry,16/03/2021,Stationery National Contracts,Facilities,Banner Group Limited,6007543,68.03,Stationery National Contracts,Programme
HM Land Registry,HM Land Registry,08/03/2021,Professional Services,Operations Change Activities,Baringa Partners LLP,6007440,131610,Professional Services,Programme
HM Land Registry,HM Land Registry,08/03/2021,Professional Services,Operations Change Activities,Baringa Partners LLP,6007440,26322,Professional Services,Programme
HM Land Registry,HM Land Registry,08/03/2021,Professional Services,Operations Change Activities,Baringa Partners LLP,6007440,159355,Professional Services,Programme
HM Land Registry,HM Land Registry,08/03/2021,Professional Services,Operations Change Activities,Baringa Partners LLP,6007440,31871,Professional Services,Programme
HM Land Registry,HM Land Registry,30/03/2021,Professional Services,Operations Change Activities,Baringa Partners LLP,6007690,31867,Professional Services,Programme
HM Land Registry,HM Land Registry,30/03/2021,Professional Services,Operations Change Activities,Baringa Partners LLP,6007690,159335,Professional Services,Programme
HM Land Registry,HM Land Registry,31/03/2021,Major Property Maintenance Projects,Facilities,Borras Construction Ltd,6007709,117731.6,Major Property Maintenance Projects,Programme
HM Land Registry,HM Land Registry,31/03/2021,Major Property Maintenance Projects,Facilities,Borras Construction Ltd,6007709,23546.32,Major Property Maintenance Projects,Programme
HM Land Registry,HM Land Registry,11/03/2021,Payroll Costs,HR Operations,CGI IT UK Limited,6007510,25768.17,Payroll Costs,Programme
HM Land Registry,HM Land Registry,18/03/2021,Software as a Service (Cloud),DDaT Operations,Clue Computing Company Ltd,6007568,41870,Software as a Service (Cloud),Programme
HM Land Registry,HM Land Registry,23/03/2021,Service Charges,Facilities & Property Asset Management,Commercial Estates Group Ltd,6007609,24493.96,Service Charges,Programme
HM Land Registry,HM Land Registry,23/03/2021,Rent Payable,Facilities & Property Asset Management,Commercial Estates Group Ltd,6007609,42422.5,Rent Payable,Programme
HM Land Registry,HM Land Registry,23/03/2021,Rent Payable,Facilities & Property Asset Management,Commercial Estates Group Ltd,6007609,8484.5,Rent Payable,Programme
HM Land Registry,HM Land Registry,11/03/2021,Gas,Facilities,Corona Energy,6007511,1984.31,Gas,Programme
HM Land Registry,HM Land Registry,11/03/2021,Gas,Facilities,Corona Energy,6007511,643.9,Gas,Programme
HM Land Registry,HM Land Registry,11/03/2021,Gas,Facilities,Corona Energy,6007511,3131.84,Gas,Programme
HM Land Registry,HM Land Registry,11/03/2021,Gas,Facilities,Corona Energy,6007511,2679.63,Gas,Programme
HM Land Registry,HM Land Registry,11/03/2021,Gas,Facilities,Corona Energy,6007511,37.81,Gas,Programme
HM Land Registry,HM Land Registry,11/03/2021,Gas,Facilities,Corona Energy,6007511,165.2,Gas,Programme
HM Land Registry,HM Land Registry,11/03/2021,Gas,Facilities,Corona Energy,6007511,3335.97,Gas,Programme
HM Land Registry,HM Land Registry,11/03/2021,Gas,Facilities,Corona Energy,6007511,1634.45,Gas,Programme
HM Land Registry,HM Land Registry,11/03/2021,Gas,Facilities,Corona Energy,6007511,432.76,Gas,Programme
HM Land Registry,HM Land Registry,11/03/2021,Gas,Facilities,Corona Energy,6007511,3623.32,Gas,Programme
HM Land Registry,HM Land Registry,11/03/2021,Gas,Facilities,Corona Energy,6007511,3414.53,Gas,Programme
HM Land Registry,HM Land Registry,11/03/2021,Gas,Facilities,Corona Energy,6007511,2460.23,Gas,Programme
HM Land Registry,HM Land Registry,11/03/2021,Gas,Facilities,Corona Energy,6007511,2205.65,Gas,Programme
HM Land Registry,HM Land Registry,11/03/2021,Gas,Facilities,Corona Energy,6007511,486.5,Gas,Programme
HM Land Registry,HM Land Registry,11/03/2021,Gas,Facilities,Corona Energy,6007511,152.29,Gas,Programme
HM Land Registry,HM Land Registry,11/03/2021,Gas,Facilities,Corona Energy,6007511,83.72,Gas,Programme
HM Land Registry,HM Land Registry,11/03/2021,Gas,Facilities,Corona Energy,6007511,2067.57,Gas,Programme
HM Land Registry,HM Land Registry,11/03/2021,Gas,Facilities,Corona Energy,6007511,2705.53,Gas,Programme
HM Land Registry,HM Land Registry,11/03/2021,Professional Services,Transformation Change Activities,DEF Software Ltd,6007512,12272.81,Professional Services,Programme
HM Land Registry,HM Land Registry,11/03/2021,Professional Services,Transformation Change Activities,DEF Software Ltd,6007512,2454.56,Professional Services,Programme
HM Land Registry,HM Land Registry,11/03/2021,Professional Services,Transformation Change Activities,DEF Software Ltd,6007512,17598.75,Professional Services,Programme
HM Land Registry,HM Land Registry,11/03/2021,Professional Services,Transformation Change Activities,DEF Software Ltd,6007512,3519.75,Professional Services,Programme
HM Land Registry,HM Land Registry,18/03/2021,Professional Services,Transformation Change Activities,DEF Software Ltd,6007570,17598.75,Professional Services,Programme
HM Land Registry,HM Land Registry,18/03/2021,Professional Services,Transformation Change Activities,DEF Software Ltd,6007570,3519.75,Professional Services,Programme
HM Land Registry,HM Land Registry,18/03/2021,Professional Services,Transformation Change Activities,DEF Software Ltd,6007570,12272.81,Professional Services,Programme
HM Land Registry,HM Land Registry,18/03/2021,Professional Services,Transformation Change Activities,DEF Software Ltd,6007570,2454.56,Professional Services,Programme
HM Land Registry,HM Land Registry,31/03/2021,Hays Document Exchange (DX),Facilities,DX Network Services Ltd,6007712,122770.06,Hays Document Exchange (DX),Programme
HM Land Registry,HM Land Registry,10/03/2021,Assets in the Course of Construction,DDaT Change Activities,Dell Corporation Ltd,6007472,7623,Assets in the Course of Construction,Programme
HM Land Registry,HM Land Registry,10/03/2021,Computer Equipment Purchases <1000,DDaT Change Activities,Dell Corporation Ltd,6007472,76.45,Computer Equipment Purchases <1000,Programme
HM Land Registry,HM Land Registry,10/03/2021,Computer Equipment Purchases <1000,DDaT Change Activities,Dell Corporation Ltd,6007472,49.5,Computer Equipment Purchases <1000,Programme
HM Land Registry,HM Land Registry,10/03/2021,Computer Equipment Purchases <1000,DDaT Change Activities,Dell Corporation Ltd,6007472,24.63,Computer Equipment Purchases <1000,Programme
HM Land Registry,HM Land Registry,10/03/2021,Assets in the Course of Construction,DDaT Change Activities,Dell Corporation Ltd,6007472,1490.88,Assets in the Course of Construction,Programme
HM Land Registry,HM Land Registry,10/03/2021,Assets in the Course of Construction,DDaT Change Activities,Dell Corporation Ltd,6007472,34650,Assets in the Course of Construction,Programme
HM Land Registry,HM Land Registry,10/03/2021,Computer Equipment Purchases <1000,DDaT Change Activities,Dell Corporation Ltd,6007472,347.5,Computer Equipment Purchases <1000,Programme
HM Land Registry,HM Land Registry,10/03/2021,Computer Equipment Purchases <1000,DDaT Change Activities,Dell Corporation Ltd,6007472,225,Computer Equipment Purchases <1000,Programme
HM Land Registry,HM Land Registry,10/03/2021,Computer Equipment Purchases <1000,DDaT Change Activities,Dell Corporation Ltd,6007472,111.97,Computer Equipment Purchases <1000,Programme
HM Land Registry,HM Land Registry,10/03/2021,Assets in the Course of Construction,DDaT Change Activities,Dell Corporation Ltd,6007472,6776.73,Assets in the Course of Construction,Programme
HM Land Registry,HM Land Registry,10/03/2021,Assets in the Course of Construction,DDaT Change Activities,Dell Corporation Ltd,6007472,31878,Assets in the Course of Construction,Programme
HM Land Registry,HM Land Registry,10/03/2021,Computer Equipment Purchases <1000,DDaT Change Activities,Dell Corporation Ltd,6007472,319.7,Computer Equipment Purchases <1000,Programme
HM Land Registry,HM Land Registry,10/03/2021,Computer Equipment Purchases <1000,DDaT Change Activities,Dell Corporation Ltd,6007472,207,Computer Equipment Purchases <1000,Programme
HM Land Registry,HM Land Registry,10/03/2021,Computer Equipment Purchases <1000,DDaT Change Activities,Dell Corporation Ltd,6007472,103.02,Computer Equipment Purchases <1000,Programme
HM Land Registry,HM Land Registry,10/03/2021,Assets in the Course of Construction,DDaT Change Activities,Dell Corporation Ltd,6007472,6234.58,Assets in the Course of Construction,Programme
HM Land Registry,HM Land Registry,15/03/2021,Assets in the Course of Construction,DDaT Change Activities,Dell Corporation Ltd,6007526,30492,Assets in the Course of Construction,Programme
HM Land Registry,HM Land Registry,15/03/2021,Computer Equipment Purchases <1000,DDaT Change Activities,Dell Corporation Ltd,6007526,305.8,Computer Equipment Purchases <1000,Programme
HM Land Registry,HM Land Registry,15/03/2021,Computer Equipment Purchases <1000,DDaT Change Activities,Dell Corporation Ltd,6007526,198,Computer Equipment Purchases <1000,Programme
HM Land Registry,HM Land Registry,15/03/2021,Computer Equipment Purchases <1000,DDaT Change Activities,Dell Corporation Ltd,6007526,98.54,Computer Equipment Purchases <1000,Programme
HM Land Registry,HM Land Registry,15/03/2021,Assets in the Course of Construction,DDaT Change Activities,Dell Corporation Ltd,6007526,5963.52,Assets in the Course of Construction,Programme
HM Land Registry,HM Land Registry,15/03/2021,Assets in the Course of Construction,DDaT Change Activities,Dell Corporation Ltd,6007526,34650,Assets in the Course of Construction,Programme
HM Land Registry,HM Land Registry,15/03/2021,Computer Equipment Purchases <1000,DDaT Change Activities,Dell Corporation Ltd,6007526,347.5,Computer Equipment Purchases <1000,Programme
HM Land Registry,HM Land Registry,15/03/2021,Computer Equipment Purchases <1000,DDaT Change Activities,Dell Corporation Ltd,6007526,225,Computer Equipment Purchases <1000,Programme
HM Land Registry,HM Land Registry,15/03/2021,Computer Equipment Purchases <1000,DDaT Change Activities,Dell Corporation Ltd,6007526,111.97,Computer Equipment Purchases <1000,Programme
HM Land Registry,HM Land Registry,15/03/2021,Assets in the Course of Construction,DDaT Change Activities,Dell Corporation Ltd,6007526,6776.73,Assets in the Course of Construction,Programme
HM Land Registry,HM Land Registry,10/03/2021,Assets in the Course of Construction,DDaT Change Activities,Dell Corporation Ltd,6007472,34650,Assets in the Course of Construction,Programme
HM Land Registry,HM Land Registry,10/03/2021,Computer Equipment Purchases <1000,DDaT Change Activities,Dell Corporation Ltd,6007472,347.5,Computer Equipment Purchases <1000,Programme
HM Land Registry,HM Land Registry,10/03/2021,Computer Equipment Purchases <1000,DDaT Change Activities,Dell Corporation Ltd,6007472,225,Computer Equipment Purchases <1000,Programme
HM Land Registry,HM Land Registry,10/03/2021,Computer Equipment Purchases <1000,DDaT Change Activities,Dell Corporation Ltd,6007472,111.97,Computer Equipment Purchases <1000,Programme
HM Land Registry,HM Land Registry,10/03/2021,Assets in the Course of Construction,DDaT Change Activities,Dell Corporation Ltd,6007472,6776.73,Assets in the Course of Construction,Programme
HM Land Registry,HM Land Registry,10/03/2021,Assets in the Course of Construction,DDaT Change Activities,Dell Corporation Ltd,6007472,34650,Assets in the Course of Construction,Programme
HM Land Registry,HM Land Registry,10/03/2021,Computer Equipment Purchases <1000,DDaT Change Activities,Dell Corporation Ltd,6007472,347.5,Computer Equipment Purchases <1000,Programme
HM Land Registry,HM Land Registry,10/03/2021,Computer Equipment Purchases <1000,DDaT Change Activities,Dell Corporation Ltd,6007472,225,Computer Equipment Purchases <1000,Programme
HM Land Registry,HM Land Registry,10/03/2021,Computer Equipment Purchases <1000,DDaT Change Activities,Dell Corporation Ltd,6007472,111.97,Computer Equipment Purchases <1000,Programme
HM Land Registry,HM Land Registry,10/03/2021,Assets in the Course of Construction,DDaT Change Activities,Dell Corporation Ltd,6007472,6776.73,Assets in the Course of Construction,Programme
HM Land Registry,HM Land Registry,10/03/2021,Assets in the Course of Construction,DDaT Change Activities,Dell Corporation Ltd,6007472,34650,Assets in the Course of Construction,Programme
HM Land Registry,HM Land Registry,10/03/2021,Computer Equipment Purchases <1000,DDaT Change Activities,Dell Corporation Ltd,6007472,347.5,Computer Equipment Purchases <1000,Programme
HM Land Registry,HM Land Registry,10/03/2021,Computer Equipment Purchases <1000,DDaT Change Activities,Dell Corporation Ltd,6007472,225,Computer Equipment Purchases <1000,Programme
HM Land Registry,HM Land Registry,10/03/2021,Computer Equipment Purchases <1000,DDaT Change Activities,Dell Corporation Ltd,6007472,111.97,Computer Equipment Purchases <1000,Programme
HM Land Registry,HM Land Registry,10/03/2021,Assets in the Course of Construction,DDaT Change Activities,Dell Corporation Ltd,6007472,6776.73,Assets in the Course of Construction,Programme
HM Land Registry,HM Land Registry,10/03/2021,Assets in the Course of Construction,DDaT Change Activities,Dell Corporation Ltd,6007472,34650,Assets in the Course of Construction,Programme
HM Land Registry,HM Land Registry,10/03/2021,Computer Equipment Purchases <1000,DDaT Change Activities,Dell Corporation Ltd,6007472,347.5,Computer Equipment Purchases <1000,Programme
HM Land Registry,HM Land Registry,10/03/2021,Computer Equipment Purchases <1000,DDaT Change Activities,Dell Corporation Ltd,6007472,225,Computer Equipment Purchases <1000,Programme
HM Land Registry,HM Land Registry,10/03/2021,Computer Equipment Purchases <1000,DDaT Change Activities,Dell Corporation Ltd,6007472,111.97,Computer Equipment Purchases <1000,Programme
HM Land Registry,HM Land Registry,10/03/2021,Assets in the Course of Construction,DDaT Change Activities,Dell Corporation Ltd,6007472,6776.73,Assets in the Course of Construction,Programme
HM Land Registry,HM Land Registry,10/03/2021,Assets in the Course of Construction,DDaT Change Activities,Dell Corporation Ltd,6007472,29106,Assets in the Course of Construction,Programme
HM Land Registry,HM Land Registry,10/03/2021,Computer Equipment Purchases <1000,DDaT Change Activities,Dell Corporation Ltd,6007472,291.9,Computer Equipment Purchases <1000,Programme
HM Land Registry,HM Land Registry,10/03/2021,Computer Equipment Purchases <1000,DDaT Change Activities,Dell Corporation Ltd,6007472,189,Computer Equipment Purchases <1000,Programme
HM Land Registry,HM Land Registry,10/03/2021,Computer Equipment Purchases <1000,DDaT Change Activities,Dell Corporation Ltd,6007472,94.06,Computer Equipment Purchases <1000,Programme
HM Land Registry,HM Land Registry,10/03/2021,Assets in the Course of Construction,DDaT Change Activities,Dell Corporation Ltd,6007472,5692.45,Assets in the Course of Construction,Programme
HM Land Registry,HM Land Registry,22/03/2021,Assets in the Course of Construction,DDaT Change Activities,Dell Corporation Ltd,6007600,34650,Assets in the Course of Construction,Programme
HM Land Registry,HM Land Registry,22/03/2021,Computer Equipment Purchases <1000,DDaT Change Activities,Dell Corporation Ltd,6007600,347.5,Computer Equipment Purchases <1000,Programme
HM Land Registry,HM Land Registry,22/03/2021,Computer Equipment Purchases <1000,DDaT Change Activities,Dell Corporation Ltd,6007600,225,Computer Equipment Purchases <1000,Programme
HM Land Registry,HM Land Registry,22/03/2021,Computer Equipment Purchases <1000,DDaT Change Activities,Dell Corporation Ltd,6007600,111.97,Computer Equipment Purchases <1000,Programme
HM Land Registry,HM Land Registry,22/03/2021,Assets in the Course of Construction,DDaT Change Activities,Dell Corporation Ltd,6007600,6776.73,Assets in the Course of Construction,Programme
HM Land Registry,HM Land Registry,22/03/2021,Assets in the Course of Construction,DDaT Change Activities,Dell Corporation Ltd,6007600,13860,Assets in the Course of Construction,Programme
HM Land Registry,HM Land Registry,22/03/2021,Computer Equipment Purchases <1000,DDaT Change Activities,Dell Corporation Ltd,6007600,139,Computer Equipment Purchases <1000,Programme
HM Land Registry,HM Land Registry,22/03/2021,Computer Equipment Purchases <1000,DDaT Change Activities,Dell Corporation Ltd,6007600,90,Computer Equipment Purchases <1000,Programme
HM Land Registry,HM Land Registry,22/03/2021,Computer Equipment Purchases <1000,DDaT Change Activities,Dell Corporation Ltd,6007600,44.79,Computer Equipment Purchases <1000,Programme
HM Land Registry,HM Land Registry,22/03/2021,Assets in the Course of Construction,DDaT Change Activities,Dell Corporation Ltd,6007600,2710.69,Assets in the Course of Construction,Programme
HM Land Registry,HM Land Registry,11/03/2021,Assets in the Course of Construction,DDaT Change Activities,Dell Corporation Ltd,6007513,34650,Assets in the Course of Construction,Programme
HM Land Registry,HM Land Registry,11/03/2021,Computer Equipment Purchases <1000,DDaT Change Activities,Dell Corporation Ltd,6007513,347.5,Computer Equipment Purchases <1000,Programme
HM Land Registry,HM Land Registry,11/03/2021,Computer Equipment Purchases <1000,DDaT Change Activities,Dell Corporation Ltd,6007513,225,Computer Equipment Purchases <1000,Programme
HM Land Registry,HM Land Registry,11/03/2021,Computer Equipment Purchases <1000,DDaT Change Activities,Dell Corporation Ltd,6007513,111.97,Computer Equipment Purchases <1000,Programme
HM Land Registry,HM Land Registry,11/03/2021,Assets in the Course of Construction,DDaT Change Activities,Dell Corporation Ltd,6007513,6776.73,Assets in the Course of Construction,Programme
HM Land Registry,HM Land Registry,22/03/2021,Assets in the Course of Construction,DDaT Change Activities,Dell Corporation Ltd,6007600,34650,Assets in the Course of Construction,Programme
HM Land Registry,HM Land Registry,22/03/2021,Computer Equipment Purchases <1000,DDaT Change Activities,Dell Corporation Ltd,6007600,347.5,Computer Equipment Purchases <1000,Programme
HM Land Registry,HM Land Registry,22/03/2021,Computer Equipment Purchases <1000,DDaT Change Activities,Dell Corporation Ltd,6007600,225,Computer Equipment Purchases <1000,Programme
HM Land Registry,HM Land Registry,22/03/2021,Computer Equipment Purchases <1000,DDaT Change Activities,Dell Corporation Ltd,6007600,111.97,Computer Equipment Purchases <1000,Programme
HM Land Registry,HM Land Registry,22/03/2021,Assets in the Course of Construction,DDaT Change Activities,Dell Corporation Ltd,6007600,6776.73,Assets in the Course of Construction,Programme
HM Land Registry,HM Land Registry,22/03/2021,Assets in the Course of Construction,DDaT Change Activities,Dell Corporation Ltd,6007600,34650,Assets in the Course of Construction,Programme
HM Land Registry,HM Land Registry,22/03/2021,Computer Equipment Purchases <1000,DDaT Change Activities,Dell Corporation Ltd,6007600,347.5,Computer Equipment Purchases <1000,Programme
HM Land Registry,HM Land Registry,22/03/2021,Computer Equipment Purchases <1000,DDaT Change Activities,Dell Corporation Ltd,6007600,225,Computer Equipment Purchases <1000,Programme
HM Land Registry,HM Land Registry,22/03/2021,Computer Equipment Purchases <1000,DDaT Change Activities,Dell Corporation Ltd,6007600,111.97,Computer Equipment Purchases <1000,Programme
HM Land Registry,HM Land Registry,22/03/2021,Assets in the Course of Construction,DDaT Change Activities,Dell Corporation Ltd,6007600,6776.73,Assets in the Course of Construction,Programme
HM Land Registry,HM Land Registry,22/03/2021,Assets in the Course of Construction,DDaT Change Activities,Dell Corporation Ltd,6007600,18711,Assets in the Course of Construction,Programme
HM Land Registry,HM Land Registry,22/03/2021,Computer Equipment Purchases <1000,DDaT Change Activities,Dell Corporation Ltd,6007600,187.65,Computer Equipment Purchases <1000,Programme
HM Land Registry,HM Land Registry,22/03/2021,Computer Equipment Purchases <1000,DDaT Change Activities,Dell Corporation Ltd,6007600,121.5,Computer Equipment Purchases <1000,Programme
HM Land Registry,HM Land Registry,22/03/2021,Computer Equipment Purchases <1000,DDaT Change Activities,Dell Corporation Ltd,6007600,60.46,Computer Equipment Purchases <1000,Programme
HM Land Registry,HM Land Registry,22/03/2021,Assets in the Course of Construction,DDaT Change Activities,Dell Corporation Ltd,6007600,3659.44,Assets in the Course of Construction,Programme
HM Land Registry,HM Land Registry,15/03/2021,Assets in the Course of Construction,DDaT Change Activities,Dell Corporation Ltd,6007526,4851,Assets in the Course of Construction,Programme
HM Land Registry,HM Land Registry,15/03/2021,Computer Equipment Purchases <1000,DDaT Change Activities,Dell Corporation Ltd,6007526,48.65,Computer Equipment Purchases <1000,Programme
HM Land Registry,HM Land Registry,15/03/2021,Computer Equipment Purchases <1000,DDaT Change Activities,Dell Corporation Ltd,6007526,31.5,Computer Equipment Purchases <1000,Programme
HM Land Registry,HM Land Registry,15/03/2021,Computer Equipment Purchases <1000,DDaT Change Activities,Dell Corporation Ltd,6007526,15.68,Computer Equipment Purchases <1000,Programme
HM Land Registry,HM Land Registry,15/03/2021,Assets in the Course of Construction,DDaT Change Activities,Dell Corporation Ltd,6007526,948.74,Assets in the Course of Construction,Programme
HM Land Registry,HM Land Registry,29/03/2021,Assets in the Course of Construction,DDaT Change Activities,Dell Corporation Ltd,6007669,34650,Assets in the Course of Construction,Programme
HM Land Registry,HM Land Registry,29/03/2021,Computer Equipment Purchases <1000,DDaT Change Activities,Dell Corporation Ltd,6007669,347.5,Computer Equipment Purchases <1000,Programme
HM Land Registry,HM Land Registry,29/03/2021,Computer Equipment Purchases <1000,DDaT Change Activities,Dell Corporation Ltd,6007669,225,Computer Equipment Purchases <1000,Programme
HM Land Registry,HM Land Registry,29/03/2021,Computer Equipment Purchases <1000,DDaT Change Activities,Dell Corporation Ltd,6007669,111.97,Computer Equipment Purchases <1000,Programme
HM Land Registry,HM Land Registry,29/03/2021,Assets in the Course of Construction,DDaT Change Activities,Dell Corporation Ltd,6007669,6776.73,Assets in the Course of Construction,Programme
HM Land Registry,HM Land Registry,11/03/2021,Assets in the Course of Construction,DDaT Change Activities,Dell Corporation Ltd,6007513,34650,Assets in the Course of Construction,Programme
HM Land Registry,HM Land Registry,11/03/2021,Computer Equipment Purchases <1000,DDaT Change Activities,Dell Corporation Ltd,6007513,225,Computer Equipment Purchases <1000,Programme
HM Land Registry,HM Land Registry,11/03/2021,Computer Equipment Purchases <1000,DDaT Change Activities,Dell Corporation Ltd,6007513,347.5,Computer Equipment Purchases <1000,Programme
HM Land Registry,HM Land Registry,11/03/2021,Computer Equipment Purchases <1000,DDaT Change Activities,Dell Corporation Ltd,6007513,111.97,Computer Equipment Purchases <1000,Programme
HM Land Registry,HM Land Registry,11/03/2021,Assets in the Course of Construction,DDaT Change Activities,Dell Corporation Ltd,6007513,6776.73,Assets in the Course of Construction,Programme
HM Land Registry,HM Land Registry,10/03/2021,Assets in the Course of Construction,DDaT Change Activities,Dell Corporation Ltd,6007472,34650,Assets in the Course of Construction,Programme
HM Land Registry,HM Land Registry,10/03/2021,Computer Equipment Purchases <1000,DDaT Change Activities,Dell Corporation Ltd,6007472,347.5,Computer Equipment Purchases <1000,Programme
HM Land Registry,HM Land Registry,10/03/2021,Computer Equipment Purchases <1000,DDaT Change Activities,Dell Corporation Ltd,6007472,225,Computer Equipment Purchases <1000,Programme
HM Land Registry,HM Land Registry,10/03/2021,Computer Equipment Purchases <1000,DDaT Change Activities,Dell Corporation Ltd,6007472,111.97,Computer Equipment Purchases <1000,Programme
HM Land Registry,HM Land Registry,10/03/2021,Assets in the Course of Construction,DDaT Change Activities,Dell Corporation Ltd,6007472,6776.73,Assets in the Course of Construction,Programme
HM Land Registry,HM Land Registry,10/03/2021,Assets in the Course of Construction,DDaT Change Activities,Dell Corporation Ltd,6007472,11781,Assets in the Course of Construction,Programme
HM Land Registry,HM Land Registry,10/03/2021,Computer Equipment Purchases <1000,DDaT Change Activities,Dell Corporation Ltd,6007472,118.15,Computer Equipment Purchases <1000,Programme
HM Land Registry,HM Land Registry,10/03/2021,Computer Equipment Purchases <1000,DDaT Change Activities,Dell Corporation Ltd,6007472,76.5,Computer Equipment Purchases <1000,Programme
HM Land Registry,HM Land Registry,10/03/2021,Computer Equipment Purchases <1000,DDaT Change Activities,Dell Corporation Ltd,6007472,38.07,Computer Equipment Purchases <1000,Programme
HM Land Registry,HM Land Registry,10/03/2021,Assets in the Course of Construction,DDaT Change Activities,Dell Corporation Ltd,6007472,2304.09,Assets in the Course of Construction,Programme
HM Land Registry,HM Land Registry,18/03/2021,Assets in the Course of Construction,DDaT Change Activities,Dell Corporation Ltd,6007571,34650,Assets in the Course of Construction,Programme
HM Land Registry,HM Land Registry,18/03/2021,Computer Equipment Purchases <1000,DDaT Change Activities,Dell Corporation Ltd,6007571,347.5,Computer Equipment Purchases <1000,Programme
HM Land Registry,HM Land Registry,18/03/2021,Computer Equipment Purchases <1000,DDaT Change Activities,Dell Corporation Ltd,6007571,225,Computer Equipment Purchases <1000,Programme
HM Land Registry,HM Land Registry,18/03/2021,Computer Equipment Purchases <1000,DDaT Change Activities,Dell Corporation Ltd,6007571,111.97,Computer Equipment Purchases <1000,Programme
HM Land Registry,HM Land Registry,18/03/2021,Assets in the Course of Construction,DDaT Change Activities,Dell Corporation Ltd,6007571,6776.73,Assets in the Course of Construction,Programme
HM Land Registry,HM Land Registry,18/03/2021,Assets in the Course of Construction,DDaT Change Activities,Dell Corporation Ltd,6007571,34650,Assets in the Course of Construction,Programme
HM Land Registry,HM Land Registry,18/03/2021,Computer Equipment Purchases <1000,DDaT Change Activities,Dell Corporation Ltd,6007571,347.5,Computer Equipment Purchases <1000,Programme
HM Land Registry,HM Land Registry,18/03/2021,Computer Equipment Purchases <1000,DDaT Change Activities,Dell Corporation Ltd,6007571,225,Computer Equipment Purchases <1000,Programme
HM Land Registry,HM Land Registry,18/03/2021,Computer Equipment Purchases <1000,DDaT Change Activities,Dell Corporation Ltd,6007571,111.97,Computer Equipment Purchases <1000,Programme
HM Land Registry,HM Land Registry,18/03/2021,Assets in the Course of Construction,DDaT Change Activities,Dell Corporation Ltd,6007571,6776.73,Assets in the Course of Construction,Programme
HM Land Registry,HM Land Registry,15/03/2021,Assets in the Course of Construction,DDaT Change Activities,Dell Corporation Ltd,6007526,34650,Assets in the Course of Construction,Programme
HM Land Registry,HM Land Registry,15/03/2021,Computer Equipment Purchases <1000,DDaT Change Activities,Dell Corporation Ltd,6007526,347.5,Computer Equipment Purchases <1000,Programme
HM Land Registry,HM Land Registry,15/03/2021,Computer Equipment Purchases <1000,DDaT Change Activities,Dell Corporation Ltd,6007526,225,Computer Equipment Purchases <1000,Programme
HM Land Registry,HM Land Registry,15/03/2021,Computer Equipment Purchases <1000,DDaT Change Activities,Dell Corporation Ltd,6007526,111.97,Computer Equipment Purchases <1000,Programme
HM Land Registry,HM Land Registry,15/03/2021,Assets in the Course of Construction,DDaT Change Activities,Dell Corporation Ltd,6007526,6776.73,Assets in the Course of Construction,Programme
HM Land Registry,HM Land Registry,10/03/2021,Assets in the Course of Construction,DDaT Change Activities,Dell Corporation Ltd,6007472,34650,Assets in the Course of Construction,Programme
HM Land Registry,HM Land Registry,10/03/2021,Computer Equipment Purchases <1000,DDaT Change Activities,Dell Corporation Ltd,6007472,347.5,Computer Equipment Purchases <1000,Programme
HM Land Registry,HM Land Registry,10/03/2021,Computer Equipment Purchases <1000,DDaT Change Activities,Dell Corporation Ltd,6007472,225,Computer Equipment Purchases <1000,Programme
HM Land Registry,HM Land Registry,10/03/2021,Computer Equipment Purchases <1000,DDaT Change Activities,Dell Corporation Ltd,6007472,111.97,Computer Equipment Purchases <1000,Programme
HM Land Registry,HM Land Registry,10/03/2021,Assets in the Course of Construction,DDaT Change Activities,Dell Corporation Ltd,6007472,6776.73,Assets in the Course of Construction,Programme
HM Land Registry,HM Land Registry,10/03/2021,Assets in the Course of Construction,DDaT Change Activities,Dell Corporation Ltd,6007472,34650,Assets in the Course of Construction,Programme
HM Land Registry,HM Land Registry,10/03/2021,Computer Equipment Purchases <1000,DDaT Change Activities,Dell Corporation Ltd,6007472,347.5,Computer Equipment Purchases <1000,Programme
HM Land Registry,HM Land Registry,10/03/2021,Computer Equipment Purchases <1000,DDaT Change Activities,Dell Corporation Ltd,6007472,225,Computer Equipment Purchases <1000,Programme
HM Land Registry,HM Land Registry,10/03/2021,Computer Equipment Purchases <1000,DDaT Change Activities,Dell Corporation Ltd,6007472,111.97,Computer Equipment Purchases <1000,Programme
HM Land Registry,HM Land Registry,10/03/2021,Assets in the Course of Construction,DDaT Change Activities,Dell Corporation Ltd,6007472,6776.73,Assets in the Course of Construction,Programme
HM Land Registry,HM Land Registry,10/03/2021,Assets in the Course of Construction,DDaT Change Activities,Dell Corporation Ltd,6007472,34650,Assets in the Course of Construction,Programme
HM Land Registry,HM Land Registry,10/03/2021,Computer Equipment Purchases <1000,DDaT Change Activities,Dell Corporation Ltd,6007472,347.5,Computer Equipment Purchases <1000,Programme
HM Land Registry,HM Land Registry,10/03/2021,Computer Equipment Purchases <1000,DDaT Change Activities,Dell Corporation Ltd,6007472,225,Computer Equipment Purchases <1000,Programme
HM Land Registry,HM Land Registry,10/03/2021,Computer Equipment Purchases <1000,DDaT Change Activities,Dell Corporation Ltd,6007472,111.97,Computer Equipment Purchases <1000,Programme
HM Land Registry,HM Land Registry,10/03/2021,Assets in the Course of Construction,DDaT Change Activities,Dell Corporation Ltd,6007472,6776.73,Assets in the Course of Construction,Programme
HM Land Registry,HM Land Registry,15/03/2021,Assets in the Course of Construction,DDaT Change Activities,Dell Corporation Ltd,6007526,34650,Assets in the Course of Construction,Programme
HM Land Registry,HM Land Registry,15/03/2021,Computer Equipment Purchases <1000,DDaT Change Activities,Dell Corporation Ltd,6007526,347.5,Computer Equipment Purchases <1000,Programme
HM Land Registry,HM Land Registry,15/03/2021,Computer Equipment Purchases <1000,DDaT Change Activities,Dell Corporation Ltd,6007526,225,Computer Equipment Purchases <1000,Programme
HM Land Registry,HM Land Registry,15/03/2021,Computer Equipment Purchases <1000,DDaT Change Activities,Dell Corporation Ltd,6007526,111.97,Computer Equipment Purchases <1000,Programme
HM Land Registry,HM Land Registry,15/03/2021,Assets in the Course of Construction,DDaT Change Activities,Dell Corporation Ltd,6007526,6776.73,Assets in the Course of Construction,Programme
HM Land Registry,HM Land Registry,10/03/2021,Assets in the Course of Construction,DDaT Change Activities,Dell Corporation Ltd,6007472,34650,Assets in the Course of Construction,Programme
HM Land Registry,HM Land Registry,10/03/2021,Computer Equipment Purchases <1000,DDaT Change Activities,Dell Corporation Ltd,6007472,347.5,Computer Equipment Purchases <1000,Programme
HM Land Registry,HM Land Registry,10/03/2021,Computer Equipment Purchases <1000,DDaT Change Activities,Dell Corporation Ltd,6007472,225,Computer Equipment Purchases <1000,Programme
HM Land Registry,HM Land Registry,10/03/2021,Computer Equipment Purchases <1000,DDaT Change Activities,Dell Corporation Ltd,6007472,111.97,Computer Equipment Purchases <1000,Programme
HM Land Registry,HM Land Registry,10/03/2021,Assets in the Course of Construction,DDaT Change Activities,Dell Corporation Ltd,6007472,6776.73,Assets in the Course of Construction,Programme
HM Land Registry,HM Land Registry,10/03/2021,Assets in the Course of Construction,DDaT Change Activities,Dell Corporation Ltd,6007472,34650,Assets in the Course of Construction,Programme
HM Land Registry,HM Land Registry,10/03/2021,Computer Equipment Purchases <1000,DDaT Change Activities,Dell Corporation Ltd,6007472,347.5,Computer Equipment Purchases <1000,Programme
HM Land Registry,HM Land Registry,10/03/2021,Computer Equipment Purchases <1000,DDaT Change Activities,Dell Corporation Ltd,6007472,225,Computer Equipment Purchases <1000,Programme
HM Land Registry,HM Land Registry,10/03/2021,Computer Equipment Purchases <1000,DDaT Change Activities,Dell Corporation Ltd,6007472,111.97,Computer Equipment Purchases <1000,Programme
HM Land Registry,HM Land Registry,10/03/2021,Assets in the Course of Construction,DDaT Change Activities,Dell Corporation Ltd,6007472,6776.73,Assets in the Course of Construction,Programme
HM Land Registry,HM Land Registry,10/03/2021,Assets in the Course of Construction,DDaT Change Activities,Dell Corporation Ltd,6007472,34650,Assets in the Course of Construction,Programme
HM Land Registry,HM Land Registry,10/03/2021,Computer Equipment Purchases <1000,DDaT Change Activities,Dell Corporation Ltd,6007472,347.5,Computer Equipment Purchases <1000,Programme
HM Land Registry,HM Land Registry,10/03/2021,Computer Equipment Purchases <1000,DDaT Change Activities,Dell Corporation Ltd,6007472,225,Computer Equipment Purchases <1000,Programme
HM Land Registry,HM Land Registry,10/03/2021,Computer Equipment Purchases <1000,DDaT Change Activities,Dell Corporation Ltd,6007472,111.97,Computer Equipment Purchases <1000,Programme
HM Land Registry,HM Land Registry,10/03/2021,Assets in the Course of Construction,DDaT Change Activities,Dell Corporation Ltd,6007472,6776.73,Assets in the Course of Construction,Programme
HM Land Registry,HM Land Registry,10/03/2021,Assets in the Course of Construction,DDaT Change Activities,Dell Corporation Ltd,6007472,22869,Assets in the Course of Construction,Programme
HM Land Registry,HM Land Registry,10/03/2021,Computer Equipment Purchases <1000,DDaT Change Activities,Dell Corporation Ltd,6007472,229.35,Computer Equipment Purchases <1000,Programme
HM Land Registry,HM Land Registry,10/03/2021,Computer Equipment Purchases <1000,DDaT Change Activities,Dell Corporation Ltd,6007472,148.5,Computer Equipment Purchases <1000,Programme
HM Land Registry,HM Land Registry,10/03/2021,Computer Equipment Purchases <1000,DDaT Change Activities,Dell Corporation Ltd,6007472,73.9,Computer Equipment Purchases <1000,Programme
HM Land Registry,HM Land Registry,10/03/2021,Assets in the Course of Construction,DDaT Change Activities,Dell Corporation Ltd,6007472,4472.64,Assets in the Course of Construction,Programme
HM Land Registry,HM Land Registry,22/03/2021,Assets in the Course of Construction,DDaT Change Activities,Dell Corporation Ltd,6007600,34650,Assets in the Course of Construction,Programme
HM Land Registry,HM Land Registry,22/03/2021,Computer Equipment Purchases <1000,DDaT Change Activities,Dell Corporation Ltd,6007600,347.5,Computer Equipment Purchases <1000,Programme
HM Land Registry,HM Land Registry,22/03/2021,Computer Equipment Purchases <1000,DDaT Change Activities,Dell Corporation Ltd,6007600,225,Computer Equipment Purchases <1000,Programme
HM Land Registry,HM Land Registry,22/03/2021,Computer Equipment Purchases <1000,DDaT Change Activities,Dell Corporation Ltd,6007600,111.97,Computer Equipment Purchases <1000,Programme
HM Land Registry,HM Land Registry,22/03/2021,Assets in the Course of Construction,DDaT Change Activities,Dell Corporation Ltd,6007600,6776.73,Assets in the Course of Construction,Programme
HM Land Registry,HM Land Registry,15/03/2021,Assets in the Course of Construction,DDaT Change Activities,Dell Corporation Ltd,6007526,34650,Assets in the Course of Construction,Programme
HM Land Registry,HM Land Registry,15/03/2021,Computer Equipment Purchases <1000,DDaT Change Activities,Dell Corporation Ltd,6007526,347.5,Computer Equipment Purchases <1000,Programme
HM Land Registry,HM Land Registry,15/03/2021,Computer Equipment Purchases <1000,DDaT Change Activities,Dell Corporation Ltd,6007526,225,Computer Equipment Purchases <1000,Programme
HM Land Registry,HM Land Registry,15/03/2021,Computer Equipment Purchases <1000,DDaT Change Activities,Dell Corporation Ltd,6007526,111.97,Computer Equipment Purchases <1000,Programme
HM Land Registry,HM Land Registry,15/03/2021,Assets in the Course of Construction,DDaT Change Activities,Dell Corporation Ltd,6007526,6776.73,Assets in the Course of Construction,Programme
HM Land Registry,HM Land Registry,22/03/2021,Assets in the Course of Construction,DDaT Change Activities,Dell Corporation Ltd,6007600,13167,Assets in the Course of Construction,Programme
HM Land Registry,HM Land Registry,22/03/2021,Computer Equipment Purchases <1000,DDaT Change Activities,Dell Corporation Ltd,6007600,132.05,Computer Equipment Purchases <1000,Programme
HM Land Registry,HM Land Registry,22/03/2021,Computer Equipment Purchases <1000,DDaT Change Activities,Dell Corporation Ltd,6007600,85.5,Computer Equipment Purchases <1000,Programme
HM Land Registry,HM Land Registry,22/03/2021,Computer Equipment Purchases <1000,DDaT Change Activities,Dell Corporation Ltd,6007600,42.55,Computer Equipment Purchases <1000,Programme
HM Land Registry,HM Land Registry,22/03/2021,Assets in the Course of Construction,DDaT Change Activities,Dell Corporation Ltd,6007600,2575.16,Assets in the Course of Construction,Programme
HM Land Registry,HM Land Registry,10/03/2021,Assets in the Course of Construction,DDaT Change Activities,Dell Corporation Ltd,6007472,34650,Assets in the Course of Construction,Programme
HM Land Registry,HM Land Registry,10/03/2021,Computer Equipment Purchases <1000,DDaT Change Activities,Dell Corporation Ltd,6007472,347.5,Computer Equipment Purchases <1000,Programme
HM Land Registry,HM Land Registry,10/03/2021,Computer Equipment Purchases <1000,DDaT Change Activities,Dell Corporation Ltd,6007472,225,Computer Equipment Purchases <1000,Programme
HM Land Registry,HM Land Registry,10/03/2021,Computer Equipment Purchases <1000,DDaT Change Activities,Dell Corporation Ltd,6007472,111.97,Computer Equipment Purchases <1000,Programme
HM Land Registry,HM Land Registry,10/03/2021,Assets in the Course of Construction,DDaT Change Activities,Dell Corporation Ltd,6007472,6776.73,Assets in the Course of Construction,Programme
HM Land Registry,HM Land Registry,22/03/2021,Assets in the Course of Construction,DDaT Change Activities,Dell Corporation Ltd,6007600,34650,Assets in the Course of Construction,Programme
HM Land Registry,HM Land Registry,22/03/2021,Computer Equipment Purchases <1000,DDaT Change Activities,Dell Corporation Ltd,6007600,347.5,Computer Equipment Purchases <1000,Programme
HM Land Registry,HM Land Registry,22/03/2021,Computer Equipment Purchases <1000,DDaT Change Activities,Dell Corporation Ltd,6007600,225,Computer Equipment Purchases <1000,Programme
HM Land Registry,HM Land Registry,22/03/2021,Computer Equipment Purchases <1000,DDaT Change Activities,Dell Corporation Ltd,6007600,111.97,Computer Equipment Purchases <1000,Programme
HM Land Registry,HM Land Registry,22/03/2021,Assets in the Course of Construction,DDaT Change Activities,Dell Corporation Ltd,6007600,6776.73,Assets in the Course of Construction,Programme
HM Land Registry,HM Land Registry,10/03/2021,Assets in the Course of Construction,DDaT Change Activities,Dell Corporation Ltd,6007472,34650,Assets in the Course of Construction,Programme
HM Land Registry,HM Land Registry,10/03/2021,Computer Equipment Purchases <1000,DDaT Change Activities,Dell Corporation Ltd,6007472,347.5,Computer Equipment Purchases <1000,Programme
HM Land Registry,HM Land Registry,10/03/2021,Computer Equipment Purchases <1000,DDaT Change Activities,Dell Corporation Ltd,6007472,225,Computer Equipment Purchases <1000,Programme
HM Land Registry,HM Land Registry,10/03/2021,Computer Equipment Purchases <1000,DDaT Change Activities,Dell Corporation Ltd,6007472,111.97,Computer Equipment Purchases <1000,Programme
HM Land Registry,HM Land Registry,10/03/2021,Assets in the Course of Construction,DDaT Change Activities,Dell Corporation Ltd,6007472,6776.73,Assets in the Course of Construction,Programme
HM Land Registry,HM Land Registry,10/03/2021,Assets in the Course of Construction,DDaT Change Activities,Dell Corporation Ltd,6007472,34650,Assets in the Course of Construction,Programme
HM Land Registry,HM Land Registry,10/03/2021,Computer Equipment Purchases <1000,DDaT Change Activities,Dell Corporation Ltd,6007472,347.5,Computer Equipment Purchases <1000,Programme
HM Land Registry,HM Land Registry,10/03/2021,Computer Equipment Purchases <1000,DDaT Change Activities,Dell Corporation Ltd,6007472,225,Computer Equipment Purchases <1000,Programme
HM Land Registry,HM Land Registry,10/03/2021,Computer Equipment Purchases <1000,DDaT Change Activities,Dell Corporation Ltd,6007472,111.97,Computer Equipment Purchases <1000,Programme
HM Land Registry,HM Land Registry,10/03/2021,Assets in the Course of Construction,DDaT Change Activities,Dell Corporation Ltd,6007472,6776.73,Assets in the Course of Construction,Programme
HM Land Registry,HM Land Registry,10/03/2021,Assets in the Course of Construction,DDaT Change Activities,Dell Corporation Ltd,6007472,34650,Assets in the Course of Construction,Programme
HM Land Registry,HM Land Registry,10/03/2021,Computer Equipment Purchases <1000,DDaT Change Activities,Dell Corporation Ltd,6007472,347.5,Computer Equipment Purchases <1000,Programme
HM Land Registry,HM Land Registry,10/03/2021,Computer Equipment Purchases <1000,DDaT Change Activities,Dell Corporation Ltd,6007472,225,Computer Equipment Purchases <1000,Programme
HM Land Registry,HM Land Registry,10/03/2021,Computer Equipment Purchases <1000,DDaT Change Activities,Dell Corporation Ltd,6007472,111.97,Computer Equipment Purchases <1000,Programme
HM Land Registry,HM Land Registry,10/03/2021,Assets in the Course of Construction,DDaT Change Activities,Dell Corporation Ltd,6007472,6776.73,Assets in the Course of Construction,Programme
HM Land Registry,HM Land Registry,10/03/2021,Assets in the Course of Construction,DDaT Change Activities,Dell Corporation Ltd,6007472,34650,Assets in the Course of Construction,Programme
HM Land Registry,HM Land Registry,10/03/2021,Computer Equipment Purchases <1000,DDaT Change Activities,Dell Corporation Ltd,6007472,347.5,Computer Equipment Purchases <1000,Programme
HM Land Registry,HM Land Registry,10/03/2021,Computer Equipment Purchases <1000,DDaT Change Activities,Dell Corporation Ltd,6007472,225,Computer Equipment Purchases <1000,Programme
HM Land Registry,HM Land Registry,10/03/2021,Computer Equipment Purchases <1000,DDaT Change Activities,Dell Corporation Ltd,6007472,111.97,Computer Equipment Purchases <1000,Programme
HM Land Registry,HM Land Registry,10/03/2021,Assets in the Course of Construction,DDaT Change Activities,Dell Corporation Ltd,6007472,6776.73,Assets in the Course of Construction,Programme
HM Land Registry,HM Land Registry,10/03/2021,Assets in the Course of Construction,DDaT Change Activities,Dell Corporation Ltd,6007472,34650,Assets in the Course of Construction,Programme
HM Land Registry,HM Land Registry,10/03/2021,Computer Equipment Purchases <1000,DDaT Change Activities,Dell Corporation Ltd,6007472,347.5,Computer Equipment Purchases <1000,Programme
HM Land Registry,HM Land Registry,10/03/2021,Computer Equipment Purchases <1000,DDaT Change Activities,Dell Corporation Ltd,6007472,225,Computer Equipment Purchases <1000,Programme
HM Land Registry,HM Land Registry,10/03/2021,Computer Equipment Purchases <1000,DDaT Change Activities,Dell Corporation Ltd,6007472,111.96,Computer Equipment Purchases <1000,Programme
HM Land Registry,HM Land Registry,10/03/2021,Assets in the Course of Construction,DDaT Change Activities,Dell Corporation Ltd,6007472,6776.74,Assets in the Course of Construction,Programme
HM Land Registry,HM Land Registry,22/03/2021,Assets in the Course of Construction,DDaT Change Activities,Dell Corporation Ltd,6007600,34650,Assets in the Course of Construction,Programme
HM Land Registry,HM Land Registry,22/03/2021,Computer Equipment Purchases <1000,DDaT Change Activities,Dell Corporation Ltd,6007600,347.5,Computer Equipment Purchases <1000,Programme
HM Land Registry,HM Land Registry,22/03/2021,Computer Equipment Purchases <1000,DDaT Change Activities,Dell Corporation Ltd,6007600,225,Computer Equipment Purchases <1000,Programme
HM Land Registry,HM Land Registry,22/03/2021,Computer Equipment Purchases <1000,DDaT Change Activities,Dell Corporation Ltd,6007600,111.97,Computer Equipment Purchases <1000,Programme
HM Land Registry,HM Land Registry,22/03/2021,Assets in the Course of Construction,DDaT Change Activities,Dell Corporation Ltd,6007600,6776.73,Assets in the Course of Construction,Programme
HM Land Registry,HM Land Registry,22/03/2021,Assets in the Course of Construction,DDaT Change Activities,Dell Corporation Ltd,6007600,34650,Assets in the Course of Construction,Programme
HM Land Registry,HM Land Registry,22/03/2021,Computer Equipment Purchases <1000,DDaT Change Activities,Dell Corporation Ltd,6007600,347.5,Computer Equipment Purchases <1000,Programme
HM Land Registry,HM Land Registry,22/03/2021,Computer Equipment Purchases <1000,DDaT Change Activities,Dell Corporation Ltd,6007600,225,Computer Equipment Purchases <1000,Programme
HM Land Registry,HM Land Registry,22/03/2021,Computer Equipment Purchases <1000,DDaT Change Activities,Dell Corporation Ltd,6007600,111.97,Computer Equipment Purchases <1000,Programme
HM Land Registry,HM Land Registry,22/03/2021,Assets in the Course of Construction,DDaT Change Activities,Dell Corporation Ltd,6007600,6776.73,Assets in the Course of Construction,Programme
HM Land Registry,HM Land Registry,22/03/2021,Assets in the Course of Construction,DDaT Change Activities,Dell Corporation Ltd,6007600,34650,Assets in the Course of Construction,Programme
HM Land Registry,HM Land Registry,22/03/2021,Computer Equipment Purchases <1000,DDaT Change Activities,Dell Corporation Ltd,6007600,347.5,Computer Equipment Purchases <1000,Programme
HM Land Registry,HM Land Registry,22/03/2021,Computer Equipment Purchases <1000,DDaT Change Activities,Dell Corporation Ltd,6007600,225,Computer Equipment Purchases <1000,Programme
HM Land Registry,HM Land Registry,22/03/2021,Computer Equipment Purchases <1000,DDaT Change Activities,Dell Corporation Ltd,6007600,111.97,Computer Equipment Purchases <1000,Programme
HM Land Registry,HM Land Registry,22/03/2021,Assets in the Course of Construction,DDaT Change Activities,Dell Corporation Ltd,6007600,6776.73,Assets in the Course of Construction,Programme
HM Land Registry,HM Land Registry,15/03/2021,Assets in the Course of Construction,DDaT Change Activities,Dell Corporation Ltd,6007526,34650,Assets in the Course of Construction,Programme
HM Land Registry,HM Land Registry,15/03/2021,Computer Equipment Purchases <1000,DDaT Change Activities,Dell Corporation Ltd,6007526,347.5,Computer Equipment Purchases <1000,Programme
HM Land Registry,HM Land Registry,15/03/2021,Computer Equipment Purchases <1000,DDaT Change Activities,Dell Corporation Ltd,6007526,225,Computer Equipment Purchases <1000,Programme
HM Land Registry,HM Land Registry,15/03/2021,Computer Equipment Purchases <1000,DDaT Change Activities,Dell Corporation Ltd,6007526,111.97,Computer Equipment Purchases <1000,Programme
HM Land Registry,HM Land Registry,15/03/2021,Assets in the Course of Construction,DDaT Change Activities,Dell Corporation Ltd,6007526,6776.73,Assets in the Course of Construction,Programme
HM Land Registry,HM Land Registry,22/03/2021,Assets in the Course of Construction,DDaT Change Activities,Dell Corporation Ltd,6007600,34650,Assets in the Course of Construction,Programme
HM Land Registry,HM Land Registry,22/03/2021,Computer Equipment Purchases <1000,DDaT Change Activities,Dell Corporation Ltd,6007600,347.5,Computer Equipment Purchases <1000,Programme
HM Land Registry,HM Land Registry,22/03/2021,Computer Equipment Purchases <1000,DDaT Change Activities,Dell Corporation Ltd,6007600,225,Computer Equipment Purchases <1000,Programme
HM Land Registry,HM Land Registry,22/03/2021,Computer Equipment Purchases <1000,DDaT Change Activities,Dell Corporation Ltd,6007600,111.97,Computer Equipment Purchases <1000,Programme
HM Land Registry,HM Land Registry,22/03/2021,Assets in the Course of Construction,DDaT Change Activities,Dell Corporation Ltd,6007600,6776.73,Assets in the Course of Construction,Programme
HM Land Registry,HM Land Registry,22/03/2021,Assets in the Course of Construction,DDaT Change Activities,Dell Corporation Ltd,6007600,34650,Assets in the Course of Construction,Programme
HM Land Registry,HM Land Registry,22/03/2021,Computer Equipment Purchases <1000,DDaT Change Activities,Dell Corporation Ltd,6007600,347.5,Computer Equipment Purchases <1000,Programme
HM Land Registry,HM Land Registry,22/03/2021,Computer Equipment Purchases <1000,DDaT Change Activities,Dell Corporation Ltd,6007600,225,Computer Equipment Purchases <1000,Programme
HM Land Registry,HM Land Registry,22/03/2021,Computer Equipment Purchases <1000,DDaT Change Activities,Dell Corporation Ltd,6007600,111.97,Computer Equipment Purchases <1000,Programme
HM Land Registry,HM Land Registry,22/03/2021,Assets in the Course of Construction,DDaT Change Activities,Dell Corporation Ltd,6007600,6776.73,Assets in the Course of Construction,Programme
HM Land Registry,HM Land Registry,15/03/2021,Assets in the Course of Construction,DDaT Change Activities,Dell Corporation Ltd,6007526,34650,Assets in the Course of Construction,Programme
HM Land Registry,HM Land Registry,15/03/2021,Computer Equipment Purchases <1000,DDaT Change Activities,Dell Corporation Ltd,6007526,347.5,Computer Equipment Purchases <1000,Programme
HM Land Registry,HM Land Registry,15/03/2021,Computer Equipment Purchases <1000,DDaT Change Activities,Dell Corporation Ltd,6007526,225,Computer Equipment Purchases <1000,Programme
HM Land Registry,HM Land Registry,15/03/2021,Computer Equipment Purchases <1000,DDaT Change Activities,Dell Corporation Ltd,6007526,111.97,Computer Equipment Purchases <1000,Programme
HM Land Registry,HM Land Registry,15/03/2021,Assets in the Course of Construction,DDaT Change Activities,Dell Corporation Ltd,6007526,6776.73,Assets in the Course of Construction,Programme
HM Land Registry,HM Land Registry,10/03/2021,Assets in the Course of Construction,DDaT Change Activities,Dell Corporation Ltd,6007472,34650,Assets in the Course of Construction,Programme
HM Land Registry,HM Land Registry,10/03/2021,Computer Equipment Purchases <1000,DDaT Change Activities,Dell Corporation Ltd,6007472,347.5,Computer Equipment Purchases <1000,Programme
HM Land Registry,HM Land Registry,10/03/2021,Computer Equipment Purchases <1000,DDaT Change Activities,Dell Corporation Ltd,6007472,225,Computer Equipment Purchases <1000,Programme
HM Land Registry,HM Land Registry,10/03/2021,Computer Equipment Purchases <1000,DDaT Change Activities,Dell Corporation Ltd,6007472,111.97,Computer Equipment Purchases <1000,Programme
HM Land Registry,HM Land Registry,10/03/2021,Assets in the Course of Construction,DDaT Change Activities,Dell Corporation Ltd,6007472,6776.73,Assets in the Course of Construction,Programme
HM Land Registry,HM Land Registry,22/03/2021,Assets in the Course of Construction,DDaT Change Activities,Dell Corporation Ltd,6007600,33957,Assets in the Course of Construction,Programme
HM Land Registry,HM Land Registry,22/03/2021,Computer Equipment Purchases <1000,DDaT Change Activities,Dell Corporation Ltd,6007600,340.55,Computer Equipment Purchases <1000,Programme
HM Land Registry,HM Land Registry,22/03/2021,Computer Equipment Purchases <1000,DDaT Change Activities,Dell Corporation Ltd,6007600,220.5,Computer Equipment Purchases <1000,Programme
HM Land Registry,HM Land Registry,22/03/2021,Computer Equipment Purchases <1000,DDaT Change Activities,Dell Corporation Ltd,6007600,109.73,Computer Equipment Purchases <1000,Programme
HM Land Registry,HM Land Registry,22/03/2021,Assets in the Course of Construction,DDaT Change Activities,Dell Corporation Ltd,6007600,6641.2,Assets in the Course of Construction,Programme
HM Land Registry,HM Land Registry,22/03/2021,Assets in the Course of Construction,DDaT Change Activities,Dell Corporation Ltd,6007600,34650,Assets in the Course of Construction,Programme
HM Land Registry,HM Land Registry,22/03/2021,Computer Equipment Purchases <1000,DDaT Change Activities,Dell Corporation Ltd,6007600,347.5,Computer Equipment Purchases <1000,Programme
HM Land Registry,HM Land Registry,22/03/2021,Computer Equipment Purchases <1000,DDaT Change Activities,Dell Corporation Ltd,6007600,225,Computer Equipment Purchases <1000,Programme
HM Land Registry,HM Land Registry,22/03/2021,Computer Equipment Purchases <1000,DDaT Change Activities,Dell Corporation Ltd,6007600,111.97,Computer Equipment Purchases <1000,Programme
HM Land Registry,HM Land Registry,22/03/2021,Assets in the Course of Construction,DDaT Change Activities,Dell Corporation Ltd,6007600,6776.73,Assets in the Course of Construction,Programme
HM Land Registry,HM Land Registry,26/03/2021,Assets in the Course of Construction,DDaT Change Activities,Dell Corporation Ltd,6007649,34650,Assets in the Course of Construction,Programme
HM Land Registry,HM Land Registry,26/03/2021,Computer Equipment Purchases <1000,DDaT Change Activities,Dell Corporation Ltd,6007649,347.5,Computer Equipment Purchases <1000,Programme
HM Land Registry,HM Land Registry,26/03/2021,Computer Equipment Purchases <1000,DDaT Change Activities,Dell Corporation Ltd,6007649,225,Computer Equipment Purchases <1000,Programme
HM Land Registry,HM Land Registry,26/03/2021,Computer Equipment Purchases <1000,DDaT Change Activities,Dell Corporation Ltd,6007649,111.97,Computer Equipment Purchases <1000,Programme
HM Land Registry,HM Land Registry,26/03/2021,Assets in the Course of Construction,DDaT Change Activities,Dell Corporation Ltd,6007649,6776.73,Assets in the Course of Construction,Programme
HM Land Registry,HM Land Registry,15/03/2021,Assets in the Course of Construction,DDaT Change Activities,Dell Corporation Ltd,6007526,34650,Assets in the Course of Construction,Programme
HM Land Registry,HM Land Registry,15/03/2021,Computer Equipment Purchases <1000,DDaT Change Activities,Dell Corporation Ltd,6007526,347.5,Computer Equipment Purchases <1000,Programme
HM Land Registry,HM Land Registry,15/03/2021,Computer Equipment Purchases <1000,DDaT Change Activities,Dell Corporation Ltd,6007526,225,Computer Equipment Purchases <1000,Programme
HM Land Registry,HM Land Registry,15/03/2021,Computer Equipment Purchases <1000,DDaT Change Activities,Dell Corporation Ltd,6007526,111.97,Computer Equipment Purchases <1000,Programme
HM Land Registry,HM Land Registry,15/03/2021,Assets in the Course of Construction,DDaT Change Activities,Dell Corporation Ltd,6007526,6776.73,Assets in the Course of Construction,Programme
HM Land Registry,HM Land Registry,22/03/2021,Assets in the Course of Construction,DDaT Change Activities,Dell Corporation Ltd,6007600,34650,Assets in the Course of Construction,Programme
HM Land Registry,HM Land Registry,22/03/2021,Computer Equipment Purchases <1000,DDaT Change Activities,Dell Corporation Ltd,6007600,347.5,Computer Equipment Purchases <1000,Programme
HM Land Registry,HM Land Registry,22/03/2021,Computer Equipment Purchases <1000,DDaT Change Activities,Dell Corporation Ltd,6007600,225,Computer Equipment Purchases <1000,Programme
HM Land Registry,HM Land Registry,22/03/2021,Computer Equipment Purchases <1000,DDaT Change Activities,Dell Corporation Ltd,6007600,111.97,Computer Equipment Purchases <1000,Programme
HM Land Registry,HM Land Registry,22/03/2021,Assets in the Course of Construction,DDaT Change Activities,Dell Corporation Ltd,6007600,6776.73,Assets in the Course of Construction,Programme
HM Land Registry,HM Land Registry,10/03/2021,Assets in the Course of Construction,DDaT Change Activities,Dell Corporation Ltd,6007472,34650,Assets in the Course of Construction,Programme
HM Land Registry,HM Land Registry,10/03/2021,Computer Equipment Purchases <1000,DDaT Change Activities,Dell Corporation Ltd,6007472,347.5,Computer Equipment Purchases <1000,Programme
HM Land Registry,HM Land Registry,10/03/2021,Computer Equipment Purchases <1000,DDaT Change Activities,Dell Corporation Ltd,6007472,225,Computer Equipment Purchases <1000,Programme
HM Land Registry,HM Land Registry,10/03/2021,Computer Equipment Purchases <1000,DDaT Change Activities,Dell Corporation Ltd,6007472,111.97,Computer Equipment Purchases <1000,Programme
HM Land Registry,HM Land Registry,10/03/2021,Assets in the Course of Construction,DDaT Change Activities,Dell Corporation Ltd,6007472,6776.73,Assets in the Course of Construction,Programme
HM Land Registry,HM Land Registry,22/03/2021,Assets in the Course of Construction,DDaT Change Activities,Dell Corporation Ltd,6007600,34650,Assets in the Course of Construction,Programme
HM Land Registry,HM Land Registry,22/03/2021,Computer Equipment Purchases <1000,DDaT Change Activities,Dell Corporation Ltd,6007600,347.5,Computer Equipment Purchases <1000,Programme
HM Land Registry,HM Land Registry,22/03/2021,Computer Equipment Purchases <1000,DDaT Change Activities,Dell Corporation Ltd,6007600,225,Computer Equipment Purchases <1000,Programme
HM Land Registry,HM Land Registry,22/03/2021,Computer Equipment Purchases <1000,DDaT Change Activities,Dell Corporation Ltd,6007600,111.97,Computer Equipment Purchases <1000,Programme
HM Land Registry,HM Land Registry,22/03/2021,Assets in the Course of Construction,DDaT Change Activities,Dell Corporation Ltd,6007600,6776.73,Assets in the Course of Construction,Programme
HM Land Registry,HM Land Registry,22/03/2021,Assets in the Course of Construction,DDaT Change Activities,Dell Corporation Ltd,6007600,34650,Assets in the Course of Construction,Programme
HM Land Registry,HM Land Registry,22/03/2021,Computer Equipment Purchases <1000,DDaT Change Activities,Dell Corporation Ltd,6007600,347.5,Computer Equipment Purchases <1000,Programme
HM Land Registry,HM Land Registry,22/03/2021,Computer Equipment Purchases <1000,DDaT Change Activities,Dell Corporation Ltd,6007600,225,Computer Equipment Purchases <1000,Programme
HM Land Registry,HM Land Registry,22/03/2021,Assets in the Course of Construction,DDaT Change Activities,Dell Corporation Ltd,6007600,6776.73,Assets in the Course of Construction,Programme
HM Land Registry,HM Land Registry,22/03/2021,Computer Equipment Purchases <1000,DDaT Change Activities,Dell Corporation Ltd,6007600,111.97,Computer Equipment Purchases <1000,Programme
HM Land Registry,HM Land Registry,18/03/2021,Assets in the Course of Construction,DDaT Change Activities,Dell Corporation Ltd,6007571,34650,Assets in the Course of Construction,Programme
HM Land Registry,HM Land Registry,18/03/2021,Computer Equipment Purchases <1000,DDaT Change Activities,Dell Corporation Ltd,6007571,347.5,Computer Equipment Purchases <1000,Programme
HM Land Registry,HM Land Registry,18/03/2021,Computer Equipment Purchases <1000,DDaT Change Activities,Dell Corporation Ltd,6007571,225,Computer Equipment Purchases <1000,Programme
HM Land Registry,HM Land Registry,18/03/2021,Computer Equipment Purchases <1000,DDaT Change Activities,Dell Corporation Ltd,6007571,111.97,Computer Equipment Purchases <1000,Programme
HM Land Registry,HM Land Registry,18/03/2021,Assets in the Course of Construction,DDaT Change Activities,Dell Corporation Ltd,6007571,6776.73,Assets in the Course of Construction,Programme
HM Land Registry,HM Land Registry,22/03/2021,Assets in the Course of Construction,DDaT Change Activities,Dell Corporation Ltd,6007600,34650,Assets in the Course of Construction,Programme
HM Land Registry,HM Land Registry,22/03/2021,Computer Equipment Purchases <1000,DDaT Change Activities,Dell Corporation Ltd,6007600,347.5,Computer Equipment Purchases <1000,Programme
HM Land Registry,HM Land Registry,22/03/2021,Computer Equipment Purchases <1000,DDaT Change Activities,Dell Corporation Ltd,6007600,225,Computer Equipment Purchases <1000,Programme
HM Land Registry,HM Land Registry,22/03/2021,Computer Equipment Purchases <1000,DDaT Change Activities,Dell Corporation Ltd,6007600,111.97,Computer Equipment Purchases <1000,Programme
HM Land Registry,HM Land Registry,22/03/2021,Assets in the Course of Construction,DDaT Change Activities,Dell Corporation Ltd,6007600,6776.73,Assets in the Course of Construction,Programme
HM Land Registry,HM Land Registry,11/03/2021,Assets in the Course of Construction,DDaT Change Activities,Dell Corporation Ltd,6007513,34650,Assets in the Course of Construction,Programme
HM Land Registry,HM Land Registry,11/03/2021,Computer Equipment Purchases <1000,DDaT Change Activities,Dell Corporation Ltd,6007513,347.5,Computer Equipment Purchases <1000,Programme
HM Land Registry,HM Land Registry,11/03/2021,Computer Equipment Purchases <1000,DDaT Change Activities,Dell Corporation Ltd,6007513,225,Computer Equipment Purchases <1000,Programme
HM Land Registry,HM Land Registry,11/03/2021,Computer Equipment Purchases <1000,DDaT Change Activities,Dell Corporation Ltd,6007513,111.97,Computer Equipment Purchases <1000,Programme
HM Land Registry,HM Land Registry,11/03/2021,Assets in the Course of Construction,DDaT Change Activities,Dell Corporation Ltd,6007513,6776.73,Assets in the Course of Construction,Programme
HM Land Registry,HM Land Registry,22/03/2021,Assets in the Course of Construction,DDaT Change Activities,Dell Corporation Ltd,6007600,34650,Assets in the Course of Construction,Programme
HM Land Registry,HM Land Registry,22/03/2021,Computer Equipment Purchases <1000,DDaT Change Activities,Dell Corporation Ltd,6007600,347.5,Computer Equipment Purchases <1000,Programme
HM Land Registry,HM Land Registry,22/03/2021,Computer Equipment Purchases <1000,DDaT Change Activities,Dell Corporation Ltd,6007600,225,Computer Equipment Purchases <1000,Programme
HM Land Registry,HM Land Registry,22/03/2021,Assets in the Course of Construction,DDaT Change Activities,Dell Corporation Ltd,6007600,6776.73,Assets in the Course of Construction,Programme
HM Land Registry,HM Land Registry,22/03/2021,Computer Equipment Purchases <1000,DDaT Change Activities,Dell Corporation Ltd,6007600,111.97,Computer Equipment Purchases <1000,Programme
HM Land Registry,HM Land Registry,23/03/2021,Assets in the Course of Construction,DDaT Change Activities,Dell Corporation Ltd,6007611,34650,Assets in the Course of Construction,Programme
HM Land Registry,HM Land Registry,23/03/2021,Computer Equipment Purchases <1000,DDaT Change Activities,Dell Corporation Ltd,6007611,347.5,Computer Equipment Purchases <1000,Programme
HM Land Registry,HM Land Registry,23/03/2021,Computer Equipment Purchases <1000,DDaT Change Activities,Dell Corporation Ltd,6007611,225,Computer Equipment Purchases <1000,Programme
HM Land Registry,HM Land Registry,23/03/2021,Computer Equipment Purchases <1000,DDaT Change Activities,Dell Corporation Ltd,6007611,111.97,Computer Equipment Purchases <1000,Programme
HM Land Registry,HM Land Registry,23/03/2021,Assets in the Course of Construction,DDaT Change Activities,Dell Corporation Ltd,6007611,6776.73,Assets in the Course of Construction,Programme
HM Land Registry,HM Land Registry,15/03/2021,Assets in the Course of Construction,DDaT Change Activities,Dell Corporation Ltd,6007526,34650,Assets in the Course of Construction,Programme
HM Land Registry,HM Land Registry,15/03/2021,Computer Equipment Purchases <1000,DDaT Change Activities,Dell Corporation Ltd,6007526,347.5,Computer Equipment Purchases <1000,Programme
HM Land Registry,HM Land Registry,15/03/2021,Computer Equipment Purchases <1000,DDaT Change Activities,Dell Corporation Ltd,6007526,225,Computer Equipment Purchases <1000,Programme
HM Land Registry,HM Land Registry,15/03/2021,Computer Equipment Purchases <1000,DDaT Change Activities,Dell Corporation Ltd,6007526,111.97,Computer Equipment Purchases <1000,Programme
HM Land Registry,HM Land Registry,15/03/2021,Assets in the Course of Construction,DDaT Change Activities,Dell Corporation Ltd,6007526,6776.73,Assets in the Course of Construction,Programme
HM Land Registry,HM Land Registry,18/03/2021,Assets in the Course of Construction,DDaT Change Activities,Dell Corporation Ltd,6007571,34650,Assets in the Course of Construction,Programme
HM Land Registry,HM Land Registry,18/03/2021,Computer Equipment Purchases <1000,DDaT Change Activities,Dell Corporation Ltd,6007571,347.5,Computer Equipment Purchases <1000,Programme
HM Land Registry,HM Land Registry,18/03/2021,Computer Equipment Purchases <1000,DDaT Change Activities,Dell Corporation Ltd,6007571,225,Computer Equipment Purchases <1000,Programme
HM Land Registry,HM Land Registry,18/03/2021,Computer Equipment Purchases <1000,DDaT Change Activities,Dell Corporation Ltd,6007571,111.97,Computer Equipment Purchases <1000,Programme
HM Land Registry,HM Land Registry,18/03/2021,Assets in the Course of Construction,DDaT Change Activities,Dell Corporation Ltd,6007571,6776.73,Assets in the Course of Construction,Programme
HM Land Registry,HM Land Registry,18/03/2021,Assets in the Course of Construction,DDaT Change Activities,Dell Corporation Ltd,6007571,31185,Assets in the Course of Construction,Programme
HM Land Registry,HM Land Registry,18/03/2021,Computer Equipment Purchases <1000,DDaT Change Activities,Dell Corporation Ltd,6007571,312.75,Computer Equipment Purchases <1000,Programme
HM Land Registry,HM Land Registry,18/03/2021,Computer Equipment Purchases <1000,DDaT Change Activities,Dell Corporation Ltd,6007571,202.5,Computer Equipment Purchases <1000,Programme
HM Land Registry,HM Land Registry,18/03/2021,Computer Equipment Purchases <1000,DDaT Change Activities,Dell Corporation Ltd,6007571,100.78,Computer Equipment Purchases <1000,Programme
HM Land Registry,HM Land Registry,18/03/2021,Assets in the Course of Construction,DDaT Change Activities,Dell Corporation Ltd,6007571,6099.05,Assets in the Course of Construction,Programme
HM Land Registry,HM Land Registry,22/03/2021,Assets in the Course of Construction,DDaT Change Activities,Dell Corporation Ltd,6007600,29106,Assets in the Course of Construction,Programme
HM Land Registry,HM Land Registry,22/03/2021,Computer Equipment Purchases <1000,DDaT Change Activities,Dell Corporation Ltd,6007600,291.9,Computer Equipment Purchases <1000,Programme
HM Land Registry,HM Land Registry,22/03/2021,Computer Equipment Purchases <1000,DDaT Change Activities,Dell Corporation Ltd,6007600,189,Computer Equipment Purchases <1000,Programme
HM Land Registry,HM Land Registry,22/03/2021,Assets in the Course of Construction,DDaT Change Activities,Dell Corporation Ltd,6007600,5692.45,Assets in the Course of Construction,Programme
HM Land Registry,HM Land Registry,22/03/2021,Computer Equipment Purchases <1000,DDaT Change Activities,Dell Corporation Ltd,6007600,94.06,Computer Equipment Purchases <1000,Programme
HM Land Registry,HM Land Registry,10/03/2021,Assets in the Course of Construction,DDaT Change Activities,Dell Corporation Ltd,6007472,34650,Assets in the Course of Construction,Programme
